Workbook

Sheet Impressum

Sheet Tool
D3: Identity of the farm: | I3: Select the good scenario | L3: Broiler_Broiler_2.6 kg alive at 98 days_3 feeds_3_Finishing_Red clover silage_3
D4: Farmer's name: | I4: Feeding phase | L4: Finishing
D5: Date: | H5: =TEXT(E5,"aaaammjj") -> 19000100 | I5: Duration | L5: =_xlfn.IFNA(VLOOKUP($L$12,Requirment[],7,FALSE)," ") -> 63-98 day
D6: Production: | I6: This type of feed is used in | L6: =_xlfn.IFNA(VLOOKUP($L$12,Requirment[],8,FALSE)," ") -> France
D7: Poultry Flocks | I7: Category of animals | L7: =_xlfn.IFNA(VLOOKUP($L$12,Requirment[],9,FALSE)," ") -> broiler
D8: Objectives (kg, days) | L8: =IF(L11=0,"SCENARIO NOT AVAILABLE","") -> 
D9: Number of feed phases
D10: Type of animals
D11: Total ration weight: | F11: Kg (Grinder capacity) | L11: =COUNTIF(Poultry_Needs!A:A,Tool!L12) -> 1
L12: =L3&"_"&L4 -> Broiler_Broiler_2.6 kg alive at 98 days_3 feeds_3_Finishing_Red clover silage_3_Finishing
D13: Feedstuffs | E13: Kg | F13: % | G13: ME roaster MJ/Kg | H13: CP % | I13: Fat % | J13: Fiber % | K13: LYS % | L13: MET % | M13: MET+CYS % | N13: THR % | O13: TRY % | P13: DIS LYS poultry % | Q13: DIS MET poultry % | R13: DIS MET+CYS poultry % | S13: DIS THR poultry % raw | T13: DIS TRY poultry % raw | U13: Ca g/kg Raw | V13: P g/kg Raw | W13: Na g/kg Raw | Y13: Min | Z13: =CONCATENATE("Ration limitation level ",L7) -> Ration limitation level broiler | AA13: TAKE CARE OF | AC13: Feedstuffs costs (€/T) | AD13: Ration Costs (€) | AE13: % of cost | AG13: C16:0 % Fat | AH13: C18:0 % Fat | AI13: C18:1 % Fat (Oleic) | AJ13: C18:2 % Fat (linoleic) | AK13: C18:3 % Fat (Alpha linolenic) | AL13: Mg g/kg Raw | AM13: K g/kg as fed | AN13: Avail. P Hen g/kg brut | AO13: Avail. P broiler g/kg brut
C14: 1 | E14: =_xlfn.IFNA($E$11*F14/100,0) -> 0.00 | F14: 0.00 | G14: =_xlfn.IFNA(VLOOKUP(D14,Feedstuff[],26,FALSE),0) -> 0.00 | H14: =_xlfn.IFNA(VLOOKUP(D14,Feedstuff[],5,FALSE),0) -> 0.00 | I14: =_xlfn.IFNA(VLOOKUP(D14,Feedstuff[],7,FALSE),0) -> 0.00 | J14: =_xlfn.IFNA(VLOOKUP(D14,Feedstuff[],6,FALSE),0) -> 0.00 | K14: =_xlfn.IFNA(VLOOKUP(D14,Feedstuff[],9,FALSE),0) -> 0.00 | L14: =_xlfn.IFNA(VLOOKUP(D14,Feedstuff[],11,FALSE),0) -> 0.00 | M14: =_xlfn.IFNA(VLOOKUP(D14,Feedstuff[],13,FALSE),0) -> 0.00 | N14: =_xlfn.IFNA(VLOOKUP(D14,Feedstuff[],10,FALSE),0) -> 0.00 | O14: =_xlfn.IFNA(VLOOKUP(D14,Feedstuff[],14,FALSE),0) -> 0.00 | P14: =_xlfn.IFNA(VLOOKUP(D14,Feedstuff[],33,FALSE),0) -> 0.00 | Q14: =_xlfn.IFNA(VLOOKUP(D14,Feedstuff[],35,FALSE),0) -> 0.00 | R14: =_xlfn.IFNA(VLOOKUP(D14,Feedstuff[],37,FALSE),0) -> 0.00 | S14: =_xlfn.IFNA(VLOOKUP(D14,Feedstuff[],34,FALSE),0) -> 0.00 | T14: =_xlfn.IFNA(VLOOKUP(D14,Feedstuff[],38,FALSE),0) -> 0.00 | U14: =_xlfn.IFNA(VLOOKUP(D14,Feedstuff[],20,FALSE),0) -> 0.00 | V14: =_xlfn.IFNA(VLOOKUP(D14,Feedstuff[],21,FALSE),0) -> 0.00 | W14: =_xlfn.IFNA(VLOOKUP(D14,Feedstuff[],25,FALSE),) -> 0.00 | Z14: =_xlfn.IFNA(IF($L$7="< 28 day broiler",(VLOOKUP(D14,Feedstuff[],28,FALSE)),IF($L$7="broiler",(VLOOKUP(D14,Feedstuff[],29,FALSE)),IF($L$7="Hen",(VLOOKUP(D14,Feedstuff[],30,FALSE)),0))),"0") -> 0 | AA14: =IF(D14<>"",IF($E$13="%",IF(E14>Z14,"SUP",IF(E14=Z14,"MAX","OK")),IF(F14>Z14,"SUP",IF(F14=Z14,"MAX","OK"))),"") ->  | AD14: =E14*AC14/1000 -> 0 | AE14: =F14*AC14/$AD$29 ->  | AG14: =_xlfn.IFNA(VLOOKUP(D14,Feedstuff[],15,FALSE),0) -> 0.00 | AH14: =_xlfn.IFNA(VLOOKUP(D13,Feedstuff[],16,FALSE),0) -> 0.00 | AI14: =_xlfn.IFNA(VLOOKUP(D14,Feedstuff[],17,FALSE),0) -> 0.00 | AJ14: =_xlfn.IFNA(VLOOKUP(D14,Feedstuff[],18,FALSE),0) -> 0.00 | AK14: =_xlfn.IFNA(VLOOKUP(D14,Feedstuff[],19,FALSE),0) -> 0.00 | AL14: =_xlfn.IFNA(VLOOKUP(D14,Feedstuff[],23,FALSE),0) -> 0.00 | AM14: =_xlfn.IFNA(VLOOKUP(D14,Feedstuff[],24,FALSE),0) -> 0.00 | AN14: =_xlfn.IFNA(VLOOKUP(D14,Feedstuff[],31,FALSE),0) -> 0.00 | AO14: =_xlfn.IFNA(VLOOKUP(D14,Feedstuff[],32,FALSE),0) -> 0.00
C15: 2 | E15: =_xlfn.IFNA($E$11*F15/100,0) -> 0.00 | F15: 0.00 | G15: =_xlfn.IFNA(VLOOKUP(D15,Feedstuff[],26,FALSE),0) -> 0.00 | H15: =_xlfn.IFNA(VLOOKUP(D15,Feedstuff[],5,FALSE),0) -> 0.00 | I15: =_xlfn.IFNA(VLOOKUP(D15,Feedstuff[],7,FALSE),0) -> 0.00 | J15: =_xlfn.IFNA(VLOOKUP(D15,Feedstuff[],6,FALSE),0) -> 0.00 | K15: =_xlfn.IFNA(VLOOKUP(D15,Feedstuff[],9,FALSE),0) -> 0.00 | L15: =_xlfn.IFNA(VLOOKUP(D15,Feedstuff[],11,FALSE),0) -> 0.00 | M15: =_xlfn.IFNA(VLOOKUP(D15,Feedstuff[],13,FALSE),0) -> 0.00 | N15: =_xlfn.IFNA(VLOOKUP(D15,Feedstuff[],10,FALSE),0) -> 0.00 | O15: =_xlfn.IFNA(VLOOKUP(D15,Feedstuff[],14,FALSE),0) -> 0.00 | P15: =_xlfn.IFNA(VLOOKUP(D15,Feedstuff[],33,FALSE),0) -> 0.00 | Q15: =_xlfn.IFNA(VLOOKUP(D15,Feedstuff[],35,FALSE),0) -> 0.00 | R15: =_xlfn.IFNA(VLOOKUP(D15,Feedstuff[],37,FALSE),0) -> 0.00 | S15: =_xlfn.IFNA(VLOOKUP(D15,Feedstuff[],34,FALSE),0) -> 0.00 | T15: =_xlfn.IFNA(VLOOKUP(D15,Feedstuff[],38,FALSE),0) -> 0.00 | U15: =_xlfn.IFNA(VLOOKUP(D15,Feedstuff[],20,FALSE),0) -> 0.00 | V15: =_xlfn.IFNA(VLOOKUP(D15,Feedstuff[],21,FALSE),0) -> 0.00 | W15: =_xlfn.IFNA(VLOOKUP(D15,Feedstuff[],25,FALSE),) -> 0.00 | Z15: =_xlfn.IFNA(IF($L$7="< 28 day broiler",(VLOOKUP(D15,Feedstuff[],28,FALSE)),IF($L$7="broiler",(VLOOKUP(D15,Feedstuff[],29,FALSE)),IF($L$7="Hen",(VLOOKUP(D15,Feedstuff[],30,FALSE)),0))),"0") -> 0 | AD15: =E15*AC15/1000 -> 0 | AE15: =F15*AC15/$AD$29 ->  | AG15: =_xlfn.IFNA(VLOOKUP(D15,Feedstuff[],15,FALSE),0) -> 0.00 | AH15: =_xlfn.IFNA(VLOOKUP(D14,Feedstuff[],16,FALSE),0) -> 0.00 | AI15: =_xlfn.IFNA(VLOOKUP(D15,Feedstuff[],17,FALSE),0) -> 0.00 | AJ15: =_xlfn.IFNA(VLOOKUP(D15,Feedstuff[],18,FALSE),0) -> 0.00 | AK15: =_xlfn.IFNA(VLOOKUP(D15,Feedstuff[],19,FALSE),0) -> 0.00 | AL15: =_xlfn.IFNA(VLOOKUP(D15,Feedstuff[],23,FALSE),0) -> 0.00 | AM15: =_xlfn.IFNA(VLOOKUP(D15,Feedstuff[],24,FALSE),0) -> 0.00 | AN15: =_xlfn.IFNA(VLOOKUP(D15,Feedstuff[],31,FALSE),0) -> 0.00 | AO15: =_xlfn.IFNA(VLOOKUP(D15,Feedstuff[],32,FALSE),0) -> 0.00
C16: 3 | E16: 0.00 | F16: 0.00 | G16: =_xlfn.IFNA(VLOOKUP(D16,Feedstuff[],26,FALSE),0) -> 0.00 | H16: =_xlfn.IFNA(VLOOKUP(D16,Feedstuff[],5,FALSE),0) -> 0.00 | I16: =_xlfn.IFNA(VLOOKUP(D16,Feedstuff[],7,FALSE),0) -> 0.00 | J16: =_xlfn.IFNA(VLOOKUP(D16,Feedstuff[],6,FALSE),0) -> 0.00 | K16: =_xlfn.IFNA(VLOOKUP(D16,Feedstuff[],9,FALSE),0) -> 0.00 | L16: =_xlfn.IFNA(VLOOKUP(D16,Feedstuff[],11,FALSE),0) -> 0.00 | M16: =_xlfn.IFNA(VLOOKUP(D16,Feedstuff[],13,FALSE),0) -> 0.00 | N16: =_xlfn.IFNA(VLOOKUP(D16,Feedstuff[],10,FALSE),0) -> 0.00 | O16: =_xlfn.IFNA(VLOOKUP(D16,Feedstuff[],14,FALSE),0) -> 0.00 | P16: =_xlfn.IFNA(VLOOKUP(D16,Feedstuff[],33,FALSE),0) -> 0.00 | Q16: =_xlfn.IFNA(VLOOKUP(D16,Feedstuff[],35,FALSE),0) -> 0.00 | R16: =_xlfn.IFNA(VLOOKUP(D16,Feedstuff[],37,FALSE),0) -> 0.00 | S16: =_xlfn.IFNA(VLOOKUP(D16,Feedstuff[],34,FALSE),0) -> 0.00 | T16: =_xlfn.IFNA(VLOOKUP(D16,Feedstuff[],38,FALSE),0) -> 0.00 | U16: =_xlfn.IFNA(VLOOKUP(D16,Feedstuff[],20,FALSE),0) -> 0.00 | V16: =_xlfn.IFNA(VLOOKUP(D16,Feedstuff[],21,FALSE),0) -> 0.00 | W16: =_xlfn.IFNA(VLOOKUP(D16,Feedstuff[],25,FALSE),) -> 0.00 | Z16: =_xlfn.IFNA(IF($L$7="< 28 day broiler",(VLOOKUP(D16,Feedstuff[],28,FALSE)),IF($L$7="broiler",(VLOOKUP(D16,Feedstuff[],29,FALSE)),IF($L$7="Hen",(VLOOKUP(D16,Feedstuff[],30,FALSE)),0))),"0") -> 0 | AD16: 0 | AG16: =_xlfn.IFNA(VLOOKUP(D16,Feedstuff[],15,FALSE),0) -> 0.00 | AH16: =_xlfn.IFNA(VLOOKUP(D15,Feedstuff[],16,FALSE),0) -> 0.00 | AI16: =_xlfn.IFNA(VLOOKUP(D16,Feedstuff[],17,FALSE),0) -> 0.00 | AJ16: =_xlfn.IFNA(VLOOKUP(D16,Feedstuff[],18,FALSE),0) -> 0.00 | AK16: =_xlfn.IFNA(VLOOKUP(D16,Feedstuff[],19,FALSE),0) -> 0.00 | AL16: =_xlfn.IFNA(VLOOKUP(D16,Feedstuff[],23,FALSE),0) -> 0.00 | AM16: =_xlfn.IFNA(VLOOKUP(D16,Feedstuff[],24,FALSE),0) -> 0.00 | AN16: =_xlfn.IFNA(VLOOKUP(D16,Feedstuff[],31,FALSE),0) -> 0.00 | AO16: =_xlfn.IFNA(VLOOKUP(D16,Feedstuff[],32,FALSE),0) -> 0.00
C17: 4 | E17: 0.00 | F17: 0.00 | G17: =_xlfn.IFNA(VLOOKUP(D17,Feedstuff[],26,FALSE),0) -> 0.00 | H17: =_xlfn.IFNA(VLOOKUP(D17,Feedstuff[],5,FALSE),0) -> 0.00 | I17: =_xlfn.IFNA(VLOOKUP(D17,Feedstuff[],7,FALSE),0) -> 0.00 | J17: =_xlfn.IFNA(VLOOKUP(D17,Feedstuff[],6,FALSE),0) -> 0.00 | K17: =_xlfn.IFNA(VLOOKUP(D17,Feedstuff[],9,FALSE),0) -> 0.00 | L17: =_xlfn.IFNA(VLOOKUP(D17,Feedstuff[],11,FALSE),0) -> 0.00 | M17: =_xlfn.IFNA(VLOOKUP(D17,Feedstuff[],13,FALSE),0) -> 0.00 | N17: =_xlfn.IFNA(VLOOKUP(D17,Feedstuff[],10,FALSE),0) -> 0.00 | O17: =_xlfn.IFNA(VLOOKUP(D17,Feedstuff[],14,FALSE),0) -> 0.00 | P17: =_xlfn.IFNA(VLOOKUP(D17,Feedstuff[],33,FALSE),0) -> 0.00 | Q17: =_xlfn.IFNA(VLOOKUP(D17,Feedstuff[],35,FALSE),0) -> 0.00 | R17: =_xlfn.IFNA(VLOOKUP(D17,Feedstuff[],37,FALSE),0) -> 0.00 | S17: =_xlfn.IFNA(VLOOKUP(D17,Feedstuff[],34,FALSE),0) -> 0.00 | T17: =_xlfn.IFNA(VLOOKUP(D17,Feedstuff[],38,FALSE),0) -> 0.00 | U17: =_xlfn.IFNA(VLOOKUP(D17,Feedstuff[],20,FALSE),0) -> 0.00 | V17: =_xlfn.IFNA(VLOOKUP(D17,Feedstuff[],21,FALSE),0) -> 0.00 | W17: =_xlfn.IFNA(VLOOKUP(D17,Feedstuff[],25,FALSE),) -> 0.00 | Z17: =_xlfn.IFNA(IF($L$7="< 28 day broiler",(VLOOKUP(D17,Feedstuff[],28,FALSE)),IF($L$7="broiler",(VLOOKUP(D17,Feedstuff[],29,FALSE)),IF($L$7="Hen",(VLOOKUP(D17,Feedstuff[],30,FALSE)),0))),"0") -> 0 | AD17: 0 | AG17: =_xlfn.IFNA(VLOOKUP(D17,Feedstuff[],15,FALSE),0) -> 0.00 | AH17: =_xlfn.IFNA(VLOOKUP(D16,Feedstuff[],16,FALSE),0) -> 0.00 | AI17: =_xlfn.IFNA(VLOOKUP(D17,Feedstuff[],17,FALSE),0) -> 0.00 | AJ17: =_xlfn.IFNA(VLOOKUP(D17,Feedstuff[],18,FALSE),0) -> 0.00 | AK17: =_xlfn.IFNA(VLOOKUP(D17,Feedstuff[],19,FALSE),0) -> 0.00 | AL17: =_xlfn.IFNA(VLOOKUP(D17,Feedstuff[],23,FALSE),0) -> 0.00 | AM17: =_xlfn.IFNA(VLOOKUP(D17,Feedstuff[],24,FALSE),0) -> 0.00 | AN17: =_xlfn.IFNA(VLOOKUP(D17,Feedstuff[],31,FALSE),0) -> 0.00 | AO17: =_xlfn.IFNA(VLOOKUP(D17,Feedstuff[],32,FALSE),0) -> 0.00
C18: 5 | E18: 0.00 | F18: 0.00 | G18: =_xlfn.IFNA(VLOOKUP(D18,Feedstuff[],26,FALSE),0) -> 0.00 | H18: =_xlfn.IFNA(VLOOKUP(D18,Feedstuff[],5,FALSE),0) -> 0.00 | I18: =_xlfn.IFNA(VLOOKUP(D18,Feedstuff[],7,FALSE),0) -> 0.00 | J18: =_xlfn.IFNA(VLOOKUP(D18,Feedstuff[],6,FALSE),0) -> 0.00 | K18: =_xlfn.IFNA(VLOOKUP(D18,Feedstuff[],9,FALSE),0) -> 0.00 | L18: =_xlfn.IFNA(VLOOKUP(D18,Feedstuff[],11,FALSE),0) -> 0.00 | M18: =_xlfn.IFNA(VLOOKUP(D18,Feedstuff[],13,FALSE),0) -> 0.00 | N18: =_xlfn.IFNA(VLOOKUP(D18,Feedstuff[],10,FALSE),0) -> 0.00 | O18: =_xlfn.IFNA(VLOOKUP(D18,Feedstuff[],14,FALSE),0) -> 0.00 | P18: =_xlfn.IFNA(VLOOKUP(D18,Feedstuff[],33,FALSE),0) -> 0.00 | Q18: =_xlfn.IFNA(VLOOKUP(D18,Feedstuff[],35,FALSE),0) -> 0.00 | R18: =_xlfn.IFNA(VLOOKUP(D18,Feedstuff[],37,FALSE),0) -> 0.00 | S18: =_xlfn.IFNA(VLOOKUP(D18,Feedstuff[],34,FALSE),0) -> 0.00 | T18: =_xlfn.IFNA(VLOOKUP(D18,Feedstuff[],38,FALSE),0) -> 0.00 | U18: =_xlfn.IFNA(VLOOKUP(D18,Feedstuff[],20,FALSE),0) -> 0.00 | V18: =_xlfn.IFNA(VLOOKUP(D18,Feedstuff[],21,FALSE),0) -> 0.00 | W18: =_xlfn.IFNA(VLOOKUP(D18,Feedstuff[],25,FALSE),) -> 0.00 | Z18: =_xlfn.IFNA(IF($L$7="< 28 day broiler",(VLOOKUP(D18,Feedstuff[],28,FALSE)),IF($L$7="broiler",(VLOOKUP(D18,Feedstuff[],29,FALSE)),IF($L$7="Hen",(VLOOKUP(D18,Feedstuff[],30,FALSE)),0))),"0") -> 0 | AD18: 0 | AG18: =_xlfn.IFNA(VLOOKUP(D18,Feedstuff[],15,FALSE),0) -> 0.00 | AH18: =_xlfn.IFNA(VLOOKUP(D17,Feedstuff[],16,FALSE),0) -> 0.00 | AI18: =_xlfn.IFNA(VLOOKUP(D18,Feedstuff[],17,FALSE),0) -> 0.00 | AJ18: =_xlfn.IFNA(VLOOKUP(D18,Feedstuff[],18,FALSE),0) -> 0.00 | AK18: =_xlfn.IFNA(VLOOKUP(D18,Feedstuff[],19,FALSE),0) -> 0.00 | AL18: =_xlfn.IFNA(VLOOKUP(D18,Feedstuff[],23,FALSE),0) -> 0.00 | AM18: =_xlfn.IFNA(VLOOKUP(D18,Feedstuff[],24,FALSE),0) -> 0.00 | AN18: =_xlfn.IFNA(VLOOKUP(D18,Feedstuff[],31,FALSE),0) -> 0.00 | AO18: =_xlfn.IFNA(VLOOKUP(D18,Feedstuff[],32,FALSE),0) -> 0.00
C19: 6 | E19: 0.00 | F19: 0.00 | G19: =_xlfn.IFNA(VLOOKUP(D19,Feedstuff[],26,FALSE),0) -> 0.00 | H19: =_xlfn.IFNA(VLOOKUP(D19,Feedstuff[],5,FALSE),0) -> 0.00 | I19: =_xlfn.IFNA(VLOOKUP(D19,Feedstuff[],7,FALSE),0) -> 0.00 | J19: =_xlfn.IFNA(VLOOKUP(D19,Feedstuff[],6,FALSE),0) -> 0.00 | K19: =_xlfn.IFNA(VLOOKUP(D19,Feedstuff[],9,FALSE),0) -> 0.00 | L19: =_xlfn.IFNA(VLOOKUP(D19,Feedstuff[],11,FALSE),0) -> 0.00 | M19: =_xlfn.IFNA(VLOOKUP(D19,Feedstuff[],13,FALSE),0) -> 0.00 | N19: =_xlfn.IFNA(VLOOKUP(D19,Feedstuff[],10,FALSE),0) -> 0.00 | O19: =_xlfn.IFNA(VLOOKUP(D19,Feedstuff[],14,FALSE),0) -> 0.00 | P19: =_xlfn.IFNA(VLOOKUP(D19,Feedstuff[],33,FALSE),0) -> 0.00 | Q19: =_xlfn.IFNA(VLOOKUP(D19,Feedstuff[],35,FALSE),0) -> 0.00 | R19: =_xlfn.IFNA(VLOOKUP(D19,Feedstuff[],37,FALSE),0) -> 0.00 | S19: =_xlfn.IFNA(VLOOKUP(D19,Feedstuff[],34,FALSE),0) -> 0.00 | T19: =_xlfn.IFNA(VLOOKUP(D19,Feedstuff[],38,FALSE),0) -> 0.00 | U19: =_xlfn.IFNA(VLOOKUP(D19,Feedstuff[],20,FALSE),0) -> 0.00 | V19: =_xlfn.IFNA(VLOOKUP(D19,Feedstuff[],21,FALSE),0) -> 0.00 | W19: =_xlfn.IFNA(VLOOKUP(D19,Feedstuff[],25,FALSE),) -> 0.00 | Z19: =_xlfn.IFNA(IF($L$7="< 28 day broiler",(VLOOKUP(D19,Feedstuff[],28,FALSE)),IF($L$7="broiler",(VLOOKUP(D19,Feedstuff[],29,FALSE)),IF($L$7="Hen",(VLOOKUP(D19,Feedstuff[],30,FALSE)),0))),"0") -> 0 | AD19: 0 | AG19: =_xlfn.IFNA(VLOOKUP(D19,Feedstuff[],15,FALSE),0) -> 0.00 | AH19: =_xlfn.IFNA(VLOOKUP(D18,Feedstuff[],16,FALSE),0) -> 0.00 | AI19: =_xlfn.IFNA(VLOOKUP(D19,Feedstuff[],17,FALSE),0) -> 0.00 | AJ19: =_xlfn.IFNA(VLOOKUP(D19,Feedstuff[],18,FALSE),0) -> 0.00 | AK19: =_xlfn.IFNA(VLOOKUP(D19,Feedstuff[],19,FALSE),0) -> 0.00 | AL19: =_xlfn.IFNA(VLOOKUP(D19,Feedstuff[],23,FALSE),0) -> 0.00 | AM19: =_xlfn.IFNA(VLOOKUP(D19,Feedstuff[],24,FALSE),0) -> 0.00 | AN19: =_xlfn.IFNA(VLOOKUP(D19,Feedstuff[],31,FALSE),0) -> 0.00 | AO19: =_xlfn.IFNA(VLOOKUP(D19,Feedstuff[],32,FALSE),0) -> 0.00
C20: 7 | E20: 0.00 | F20: 0.00 | G20: =_xlfn.IFNA(VLOOKUP(D20,Feedstuff[],26,FALSE),0) -> 0.00 | H20: =_xlfn.IFNA(VLOOKUP(D20,Feedstuff[],5,FALSE),0) -> 0.00 | I20: =_xlfn.IFNA(VLOOKUP(D20,Feedstuff[],7,FALSE),0) -> 0.00 | J20: =_xlfn.IFNA(VLOOKUP(D20,Feedstuff[],6,FALSE),0) -> 0.00 | K20: =_xlfn.IFNA(VLOOKUP(D20,Feedstuff[],9,FALSE),0) -> 0.00 | L20: =_xlfn.IFNA(VLOOKUP(D20,Feedstuff[],11,FALSE),0) -> 0.00 | M20: =_xlfn.IFNA(VLOOKUP(D20,Feedstuff[],13,FALSE),0) -> 0.00 | N20: =_xlfn.IFNA(VLOOKUP(D20,Feedstuff[],10,FALSE),0) -> 0.00 | O20: =_xlfn.IFNA(VLOOKUP(D20,Feedstuff[],14,FALSE),0) -> 0.00 | P20: =_xlfn.IFNA(VLOOKUP(D20,Feedstuff[],33,FALSE),0) -> 0.00 | Q20: =_xlfn.IFNA(VLOOKUP(D20,Feedstuff[],35,FALSE),0) -> 0.00 | R20: =_xlfn.IFNA(VLOOKUP(D20,Feedstuff[],37,FALSE),0) -> 0.00 | S20: =_xlfn.IFNA(VLOOKUP(D20,Feedstuff[],34,FALSE),0) -> 0.00 | T20: =_xlfn.IFNA(VLOOKUP(D20,Feedstuff[],38,FALSE),0) -> 0.00 | U20: =_xlfn.IFNA(VLOOKUP(D20,Feedstuff[],20,FALSE),0) -> 0.00 | V20: =_xlfn.IFNA(VLOOKUP(D20,Feedstuff[],21,FALSE),0) -> 0.00 | W20: =_xlfn.IFNA(VLOOKUP(D20,Feedstuff[],25,FALSE),) -> 0.00 | Z20: =_xlfn.IFNA(IF($L$7="< 28 day broiler",(VLOOKUP(D20,Feedstuff[],28,FALSE)),IF($L$7="broiler",(VLOOKUP(D20,Feedstuff[],29,FALSE)),IF($L$7="Hen",(VLOOKUP(D20,Feedstuff[],30,FALSE)),0))),"0") -> 0 | AD20: 0 | AG20: =_xlfn.IFNA(VLOOKUP(D20,Feedstuff[],15,FALSE),0) -> 0.00 | AH20: =_xlfn.IFNA(VLOOKUP(D19,Feedstuff[],16,FALSE),0) -> 0.00 | AI20: =_xlfn.IFNA(VLOOKUP(D20,Feedstuff[],17,FALSE),0) -> 0.00 | AJ20: =_xlfn.IFNA(VLOOKUP(D20,Feedstuff[],18,FALSE),0) -> 0.00 | AK20: =_xlfn.IFNA(VLOOKUP(D20,Feedstuff[],19,FALSE),0) -> 0.00 | AL20: =_xlfn.IFNA(VLOOKUP(D20,Feedstuff[],23,FALSE),0) -> 0.00 | AM20: =_xlfn.IFNA(VLOOKUP(D20,Feedstuff[],24,FALSE),0) -> 0.00 | AN20: =_xlfn.IFNA(VLOOKUP(D20,Feedstuff[],31,FALSE),0) -> 0.00 | AO20: =_xlfn.IFNA(VLOOKUP(D20,Feedstuff[],32,FALSE),0) -> 0.00
C21: 8 | E21: 0.00 | F21: 0.00 | G21: =_xlfn.IFNA(VLOOKUP(D21,Feedstuff[],26,FALSE),0) -> 0.00 | H21: =_xlfn.IFNA(VLOOKUP(D21,Feedstuff[],5,FALSE),0) -> 0.00 | I21: =_xlfn.IFNA(VLOOKUP(D21,Feedstuff[],7,FALSE),0) -> 0.00 | J21: =_xlfn.IFNA(VLOOKUP(D21,Feedstuff[],6,FALSE),0) -> 0.00 | K21: =_xlfn.IFNA(VLOOKUP(D21,Feedstuff[],9,FALSE),0) -> 0.00 | L21: =_xlfn.IFNA(VLOOKUP(D21,Feedstuff[],11,FALSE),0) -> 0.00 | M21: =_xlfn.IFNA(VLOOKUP(D21,Feedstuff[],13,FALSE),0) -> 0.00 | N21: =_xlfn.IFNA(VLOOKUP(D21,Feedstuff[],10,FALSE),0) -> 0.00 | O21: =_xlfn.IFNA(VLOOKUP(D21,Feedstuff[],14,FALSE),0) -> 0.00 | P21: =_xlfn.IFNA(VLOOKUP(D21,Feedstuff[],33,FALSE),0) -> 0.00 | Q21: =_xlfn.IFNA(VLOOKUP(D21,Feedstuff[],35,FALSE),0) -> 0.00 | R21: =_xlfn.IFNA(VLOOKUP(D21,Feedstuff[],37,FALSE),0) -> 0.00 | S21: =_xlfn.IFNA(VLOOKUP(D21,Feedstuff[],34,FALSE),0) -> 0.00 | T21: =_xlfn.IFNA(VLOOKUP(D21,Feedstuff[],38,FALSE),0) -> 0.00 | U21: =_xlfn.IFNA(VLOOKUP(D21,Feedstuff[],20,FALSE),0) -> 0.00 | V21: =_xlfn.IFNA(VLOOKUP(D21,Feedstuff[],21,FALSE),0) -> 0.00 | W21: =_xlfn.IFNA(VLOOKUP(D21,Feedstuff[],25,FALSE),) -> 0.00 | Z21: =_xlfn.IFNA(IF($L$7="< 28 day broiler",(VLOOKUP(D21,Feedstuff[],28,FALSE)),IF($L$7="broiler",(VLOOKUP(D21,Feedstuff[],29,FALSE)),IF($L$7="Hen",(VLOOKUP(D21,Feedstuff[],30,FALSE)),0))),"0") -> 0 | AD21: 0 | AG21: =_xlfn.IFNA(VLOOKUP(D21,Feedstuff[],15,FALSE),0) -> 0.00 | AH21: =_xlfn.IFNA(VLOOKUP(D20,Feedstuff[],16,FALSE),0) -> 0.00 | AI21: =_xlfn.IFNA(VLOOKUP(D21,Feedstuff[],17,FALSE),0) -> 0.00 | AJ21: =_xlfn.IFNA(VLOOKUP(D21,Feedstuff[],18,FALSE),0) -> 0.00 | AK21: =_xlfn.IFNA(VLOOKUP(D21,Feedstuff[],19,FALSE),0) -> 0.00 | AL21: =_xlfn.IFNA(VLOOKUP(D21,Feedstuff[],23,FALSE),0) -> 0.00 | AM21: =_xlfn.IFNA(VLOOKUP(D21,Feedstuff[],24,FALSE),0) -> 0.00 | AN21: =_xlfn.IFNA(VLOOKUP(D21,Feedstuff[],31,FALSE),0) -> 0.00 | AO21: =_xlfn.IFNA(VLOOKUP(D21,Feedstuff[],32,FALSE),0) -> 0.00
C22: 9 | E22: 0.00 | F22: 0.00 | G22: =_xlfn.IFNA(VLOOKUP(D22,Feedstuff[],26,FALSE),0) -> 0.00 | H22: =_xlfn.IFNA(VLOOKUP(D22,Feedstuff[],5,FALSE),0) -> 0.00 | I22: =_xlfn.IFNA(VLOOKUP(D22,Feedstuff[],7,FALSE),0) -> 0.00 | J22: =_xlfn.IFNA(VLOOKUP(D22,Feedstuff[],6,FALSE),0) -> 0.00 | K22: =_xlfn.IFNA(VLOOKUP(D22,Feedstuff[],9,FALSE),0) -> 0.00 | L22: =_xlfn.IFNA(VLOOKUP(D22,Feedstuff[],11,FALSE),0) -> 0.00 | M22: =_xlfn.IFNA(VLOOKUP(D22,Feedstuff[],13,FALSE),0) -> 0.00 | N22: =_xlfn.IFNA(VLOOKUP(D22,Feedstuff[],10,FALSE),0) -> 0.00 | O22: =_xlfn.IFNA(VLOOKUP(D22,Feedstuff[],14,FALSE),0) -> 0.00 | P22: =_xlfn.IFNA(VLOOKUP(D22,Feedstuff[],33,FALSE),0) -> 0.00 | Q22: =_xlfn.IFNA(VLOOKUP(D22,Feedstuff[],35,FALSE),0) -> 0.00 | R22: =_xlfn.IFNA(VLOOKUP(D22,Feedstuff[],37,FALSE),0) -> 0.00 | S22: =_xlfn.IFNA(VLOOKUP(D22,Feedstuff[],34,FALSE),0) -> 0.00 | T22: =_xlfn.IFNA(VLOOKUP(D22,Feedstuff[],38,FALSE),0) -> 0.00 | U22: =_xlfn.IFNA(VLOOKUP(D22,Feedstuff[],20,FALSE),0) -> 0.00 | V22: =_xlfn.IFNA(VLOOKUP(D22,Feedstuff[],21,FALSE),0) -> 0.00 | W22: =_xlfn.IFNA(VLOOKUP(D22,Feedstuff[],25,FALSE),) -> 0.00 | Z22: =_xlfn.IFNA(IF($L$7="< 28 day broiler",(VLOOKUP(D22,Feedstuff[],28,FALSE)),IF($L$7="broiler",(VLOOKUP(D22,Feedstuff[],29,FALSE)),IF($L$7="Hen",(VLOOKUP(D22,Feedstuff[],30,FALSE)),0))),"0") -> 0 | AD22: 0 | AG22: =_xlfn.IFNA(VLOOKUP(D22,Feedstuff[],15,FALSE),0) -> 0.00 | AH22: =_xlfn.IFNA(VLOOKUP(D21,Feedstuff[],16,FALSE),0) -> 0.00 | AI22: =_xlfn.IFNA(VLOOKUP(D22,Feedstuff[],17,FALSE),0) -> 0.00 | AJ22: =_xlfn.IFNA(VLOOKUP(D22,Feedstuff[],18,FALSE),0) -> 0.00 | AK22: =_xlfn.IFNA(VLOOKUP(D22,Feedstuff[],19,FALSE),0) -> 0.00 | AL22: =_xlfn.IFNA(VLOOKUP(D22,Feedstuff[],23,FALSE),0) -> 0.00 | AM22: =_xlfn.IFNA(VLOOKUP(D22,Feedstuff[],24,FALSE),0) -> 0.00 | AN22: =_xlfn.IFNA(VLOOKUP(D22,Feedstuff[],31,FALSE),0) -> 0.00 | AO22: =_xlfn.IFNA(VLOOKUP(D22,Feedstuff[],32,FALSE),0) -> 0.00
C23: 10 | E23: 0.00 | F23: 0.00 | G23: =_xlfn.IFNA(VLOOKUP(D23,Feedstuff[],26,FALSE),0) -> 0.00 | H23: =_xlfn.IFNA(VLOOKUP(D23,Feedstuff[],5,FALSE),0) -> 0.00 | I23: =_xlfn.IFNA(VLOOKUP(D23,Feedstuff[],7,FALSE),0) -> 0.00 | J23: =_xlfn.IFNA(VLOOKUP(D23,Feedstuff[],6,FALSE),0) -> 0.00 | K23: =_xlfn.IFNA(VLOOKUP(D23,Feedstuff[],9,FALSE),0) -> 0.00 | L23: =_xlfn.IFNA(VLOOKUP(D23,Feedstuff[],11,FALSE),0) -> 0.00 | M23: =_xlfn.IFNA(VLOOKUP(D23,Feedstuff[],13,FALSE),0) -> 0.00 | N23: =_xlfn.IFNA(VLOOKUP(D23,Feedstuff[],10,FALSE),0) -> 0.00 | O23: =_xlfn.IFNA(VLOOKUP(D23,Feedstuff[],14,FALSE),0) -> 0.00 | P23: =_xlfn.IFNA(VLOOKUP(D23,Feedstuff[],33,FALSE),0) -> 0.00 | Q23: =_xlfn.IFNA(VLOOKUP(D23,Feedstuff[],35,FALSE),0) -> 0.00 | R23: =_xlfn.IFNA(VLOOKUP(D23,Feedstuff[],37,FALSE),0) -> 0.00 | S23: =_xlfn.IFNA(VLOOKUP(D23,Feedstuff[],34,FALSE),0) -> 0.00 | T23: =_xlfn.IFNA(VLOOKUP(D23,Feedstuff[],38,FALSE),0) -> 0.00 | U23: =_xlfn.IFNA(VLOOKUP(D23,Feedstuff[],20,FALSE),0) -> 0.00 | V23: =_xlfn.IFNA(VLOOKUP(D23,Feedstuff[],21,FALSE),0) -> 0.00 | W23: =_xlfn.IFNA(VLOOKUP(D23,Feedstuff[],25,FALSE),) -> 0.00 | Z23: =_xlfn.IFNA(IF($L$7="< 28 day broiler",(VLOOKUP(D23,Feedstuff[],28,FALSE)),IF($L$7="broiler",(VLOOKUP(D23,Feedstuff[],29,FALSE)),IF($L$7="Hen",(VLOOKUP(D23,Feedstuff[],30,FALSE)),0))),"0") -> 0 | AD23: 0 | AG23: =_xlfn.IFNA(VLOOKUP(D23,Feedstuff[],15,FALSE),0) -> 0.00 | AH23: =_xlfn.IFNA(VLOOKUP(D22,Feedstuff[],16,FALSE),0) -> 0.00 | AI23: =_xlfn.IFNA(VLOOKUP(D23,Feedstuff[],17,FALSE),0) -> 0.00 | AJ23: =_xlfn.IFNA(VLOOKUP(D23,Feedstuff[],18,FALSE),0) -> 0.00 | AK23: =_xlfn.IFNA(VLOOKUP(D23,Feedstuff[],19,FALSE),0) -> 0.00 | AL23: =_xlfn.IFNA(VLOOKUP(D23,Feedstuff[],23,FALSE),0) -> 0.00 | AM23: =_xlfn.IFNA(VLOOKUP(D23,Feedstuff[],24,FALSE),0) -> 0.00 | AN23: =_xlfn.IFNA(VLOOKUP(D23,Feedstuff[],31,FALSE),0) -> 0.00 | AO23: =_xlfn.IFNA(VLOOKUP(D23,Feedstuff[],32,FALSE),0) -> 0.00
C24: 11 | E24: 0.00 | F24: 0.00 | G24: =_xlfn.IFNA(VLOOKUP(D24,Feedstuff[],26,FALSE),0) -> 0.00 | H24: =_xlfn.IFNA(VLOOKUP(D24,Feedstuff[],5,FALSE),0) -> 0.00 | I24: =_xlfn.IFNA(VLOOKUP(D24,Feedstuff[],7,FALSE),0) -> 0.00 | J24: =_xlfn.IFNA(VLOOKUP(D24,Feedstuff[],6,FALSE),0) -> 0.00 | K24: =_xlfn.IFNA(VLOOKUP(D24,Feedstuff[],9,FALSE),0) -> 0.00 | L24: =_xlfn.IFNA(VLOOKUP(D24,Feedstuff[],11,FALSE),0) -> 0.00 | M24: =_xlfn.IFNA(VLOOKUP(D24,Feedstuff[],13,FALSE),0) -> 0.00 | N24: =_xlfn.IFNA(VLOOKUP(D24,Feedstuff[],10,FALSE),0) -> 0.00 | O24: =_xlfn.IFNA(VLOOKUP(D24,Feedstuff[],14,FALSE),0) -> 0.00 | P24: =_xlfn.IFNA(VLOOKUP(D24,Feedstuff[],33,FALSE),0) -> 0.00 | Q24: =_xlfn.IFNA(VLOOKUP(D24,Feedstuff[],35,FALSE),0) -> 0.00 | R24: =_xlfn.IFNA(VLOOKUP(D24,Feedstuff[],37,FALSE),0) -> 0.00 | S24: =_xlfn.IFNA(VLOOKUP(D24,Feedstuff[],34,FALSE),0) -> 0.00 | T24: =_xlfn.IFNA(VLOOKUP(D24,Feedstuff[],38,FALSE),0) -> 0.00 | U24: =_xlfn.IFNA(VLOOKUP(D24,Feedstuff[],20,FALSE),0) -> 0.00 | V24: =_xlfn.IFNA(VLOOKUP(D24,Feedstuff[],21,FALSE),0) -> 0.00 | W24: =_xlfn.IFNA(VLOOKUP(D24,Feedstuff[],25,FALSE),) -> 0.00 | Z24: =_xlfn.IFNA(IF($L$7="< 28 day broiler",(VLOOKUP(D24,Feedstuff[],28,FALSE)),IF($L$7="broiler",(VLOOKUP(D24,Feedstuff[],29,FALSE)),IF($L$7="Hen",(VLOOKUP(D24,Feedstuff[],30,FALSE)),0))),"0") -> 0 | AD24: 0 | AG24: =_xlfn.IFNA(VLOOKUP(D24,Feedstuff[],15,FALSE),0) -> 0.00 | AH24: =_xlfn.IFNA(VLOOKUP(D23,Feedstuff[],16,FALSE),0) -> 0.00 | AI24: =_xlfn.IFNA(VLOOKUP(D24,Feedstuff[],17,FALSE),0) -> 0.00 | AJ24: =_xlfn.IFNA(VLOOKUP(D24,Feedstuff[],18,FALSE),0) -> 0.00 | AK24: =_xlfn.IFNA(VLOOKUP(D24,Feedstuff[],19,FALSE),0) -> 0.00 | AL24: =_xlfn.IFNA(VLOOKUP(D24,Feedstuff[],23,FALSE),0) -> 0.00 | AM24: =_xlfn.IFNA(VLOOKUP(D24,Feedstuff[],24,FALSE),0) -> 0.00 | AN24: =_xlfn.IFNA(VLOOKUP(D24,Feedstuff[],31,FALSE),0) -> 0.00 | AO24: =_xlfn.IFNA(VLOOKUP(D24,Feedstuff[],32,FALSE),0) -> 0.00
C25: 12 | E25: 0.00 | F25: 0.00 | G25: =_xlfn.IFNA(VLOOKUP(D25,Feedstuff[],26,FALSE),0) -> 0.00 | H25: =_xlfn.IFNA(VLOOKUP(D25,Feedstuff[],5,FALSE),0) -> 0.00 | I25: =_xlfn.IFNA(VLOOKUP(D25,Feedstuff[],7,FALSE),0) -> 0.00 | J25: =_xlfn.IFNA(VLOOKUP(D25,Feedstuff[],6,FALSE),0) -> 0.00 | K25: =_xlfn.IFNA(VLOOKUP(D25,Feedstuff[],9,FALSE),0) -> 0.00 | L25: =_xlfn.IFNA(VLOOKUP(D25,Feedstuff[],11,FALSE),0) -> 0.00 | M25: =_xlfn.IFNA(VLOOKUP(D25,Feedstuff[],13,FALSE),0) -> 0.00 | N25: =_xlfn.IFNA(VLOOKUP(D25,Feedstuff[],10,FALSE),0) -> 0.00 | O25: =_xlfn.IFNA(VLOOKUP(D25,Feedstuff[],14,FALSE),0) -> 0.00 | P25: =_xlfn.IFNA(VLOOKUP(D25,Feedstuff[],33,FALSE),0) -> 0.00 | Q25: =_xlfn.IFNA(VLOOKUP(D25,Feedstuff[],35,FALSE),0) -> 0.00 | R25: =_xlfn.IFNA(VLOOKUP(D25,Feedstuff[],37,FALSE),0) -> 0.00 | S25: =_xlfn.IFNA(VLOOKUP(D25,Feedstuff[],34,FALSE),0) -> 0.00 | T25: =_xlfn.IFNA(VLOOKUP(D25,Feedstuff[],38,FALSE),0) -> 0.00 | U25: =_xlfn.IFNA(VLOOKUP(D25,Feedstuff[],20,FALSE),0) -> 0.00 | V25: =_xlfn.IFNA(VLOOKUP(D25,Feedstuff[],21,FALSE),0) -> 0.00 | W25: =_xlfn.IFNA(VLOOKUP(D25,Feedstuff[],25,FALSE),) -> 0.00 | Z25: =_xlfn.IFNA(IF($L$7="< 28 day broiler",(VLOOKUP(D25,Feedstuff[],28,FALSE)),IF($L$7="broiler",(VLOOKUP(D25,Feedstuff[],29,FALSE)),IF($L$7="Hen",(VLOOKUP(D25,Feedstuff[],30,FALSE)),0))),"0") -> 0 | AD25: 0 | AG25: =_xlfn.IFNA(VLOOKUP(D25,Feedstuff[],15,FALSE),0) -> 0.00 | AH25: =_xlfn.IFNA(VLOOKUP(D24,Feedstuff[],16,FALSE),0) -> 0.00 | AI25: =_xlfn.IFNA(VLOOKUP(D25,Feedstuff[],17,FALSE),0) -> 0.00 | AJ25: =_xlfn.IFNA(VLOOKUP(D25,Feedstuff[],18,FALSE),0) -> 0.00 | AK25: =_xlfn.IFNA(VLOOKUP(D25,Feedstuff[],19,FALSE),0) -> 0.00 | AL25: =_xlfn.IFNA(VLOOKUP(D25,Feedstuff[],23,FALSE),0) -> 0.00 | AM25: =_xlfn.IFNA(VLOOKUP(D25,Feedstuff[],24,FALSE),0) -> 0.00 | AN25: =_xlfn.IFNA(VLOOKUP(D25,Feedstuff[],31,FALSE),0) -> 0.00 | AO25: =_xlfn.IFNA(VLOOKUP(D25,Feedstuff[],32,FALSE),0) -> 0.00
D27: TOTAL | E27: =SUM(E14:E25) -> 0.00 | F27: =SUM(F14:F25) -> 0.00 | G27: =SUMPRODUCT($F$14:$F$25,G14:G25)/100 -> 0.00 | H27: =SUMPRODUCT($F$14:$F$25,H14:H25)/100 -> 0.00 | I27: =SUMPRODUCT($F$14:$F$25,I14:I25)/100 -> 0.00 | J27: =SUMPRODUCT($F$14:$F$25,J14:J25)/100 -> 0.00 | K27: 0.00 | L27: 0.00 | M27: 0.00 | N27: 0.00 | O27: 0.00 | P27: 0.00 | Q27: 0.00 | R27: 0.00 | S27: 0.00 | T27: 0.00 | U27: =SUMPRODUCT($F$14:$F$25,U14:U25)/1000 -> 0.00 | V27: =SUMPRODUCT($F$14:$F$25,V14:V25)/1000 -> 0.00 | W27: =SUMPRODUCT($F$14:$F$25,W14:W25)/1000 -> 0.00 | AD27: =SUM(AD14:AD25) -> 0 | AG27: =IF($E$13="%",(SUMPRODUCT($E$14:$E$25,AG14:AG25)/100),(SUMPRODUCT($F$14:$F$25,AG14:AG25)/100)) -> 0.00 | AH27: =IF($E$13="%",(SUMPRODUCT($E$14:$E$25,AH14:AH25)/100),(SUMPRODUCT($F$14:$F$25,AH14:AH25)/100)) -> 0.00 | AI27: =IF($E$13="%",(SUMPRODUCT($E$14:$E$25,AI14:AI25)/100),(SUMPRODUCT($F$14:$F$25,AI14:AI25)/100)) -> 0.00 | AJ27: 0.00 | AK27: 0.00 | AL27: 0.00 | AM27: 0.00 | AN27: 0.00 | AO27: 0.00
D28: Grinder capacity? | E28: =E11-E27 -> 0.00 | F28: kg
G29: ME | H29: CP | I29: FAT | J29: CF | K29: LYS | L29: Met | M29: Met+Cys | N29: Thr | O29: Trp | P29: Dis Lys | Q29: Dis Met | R29: Dis Met+Cys | S29: Dis Thr | T29: Dis Try | U29: Ca | V29: P | W29: Na | AC29: Feed Prices (€/T) | AD29: =SUMPRODUCT(F14:F25,AC14:AC25)/100 -> 0
F30: Min | G30: =_xlfn.IFNA(VLOOKUP($L$12,Requirment[],10,FALSE)," ") -> 12.95 | H30: =_xlfn.IFNA(VLOOKUP($L$12,Requirment[],11,FALSE)," ") -> 17.11 | I30: =_xlfn.IFNA(VLOOKUP($L$12,Requirment[],12,FALSE)," ") -> 4.56 | J30: =_xlfn.IFNA(VLOOKUP($L$12,Requirment[],13,FALSE)," ") -> 3.50 | K30: =_xlfn.IFNA(VLOOKUP($L$12,Requirment[],17,FALSE)," ") -> 0.63 | L30: =_xlfn.IFNA(VLOOKUP($L$12,Requirment[],19,FALSE)," ") -> 0.78 | M30: =_xlfn.IFNA(VLOOKUP($L$12,Requirment[],21,FALSE)," ") -> 0.62 | N30: =_xlfn.IFNA(VLOOKUP($L$12,Requirment[],23,FALSE)," ") -> 0.27 | O30: =_xlfn.IFNA(VLOOKUP($L$12,Requirment[],25,FALSE)," ") -> 0.33 | P30: =_xlfn.IFNA(VLOOKUP($L$12,Requirment[],18,FALSE)," ") -> 0.30 | Q30: =_xlfn.IFNA(VLOOKUP($L$12,Requirment[],20,FALSE)," ") -> 0.34 | R30: =_xlfn.IFNA(VLOOKUP($L$12,Requirment[],22,FALSE)," ") -> 0.49 | S30: =_xlfn.IFNA(VLOOKUP($L$12,Requirment[],20,FALSE)," ") -> 0.34 | T30: =_xlfn.IFNA(VLOOKUP($L$12,Requirment[],26,FALSE)," ") -> 0.18 | U30: =_xlfn.IFNA(VLOOKUP($L$12,Requirment[],14,FALSE)," ") -> 0.86 | V30: =_xlfn.IFNA(VLOOKUP($L$12,Requirment[],15,FALSE)," ") -> 0.41 | W30: =_xlfn.IFNA(VLOOKUP($L$12,Requirment[],16,FALSE)," ") -> 0.70
F31: Max | G31: =_xlfn.IFNA(VLOOKUP($L$12,Requirment[],27,FALSE)," ") -> 0.00 | H31: =_xlfn.IFNA(VLOOKUP($L$12,Requirment[],28,FALSE)," ") -> 0.00 | I31: =_xlfn.IFNA(VLOOKUP($L$12,Requirment[],29,FALSE)," ") -> 0.00 | J31: =_xlfn.IFNA(VLOOKUP($L$12,Requirment[],30,FALSE)," ") -> 0.00 | K31: =_xlfn.IFNA(VLOOKUP($L$12,Requirment[],34,FALSE)," ") -> 0.00 | L31: =_xlfn.IFNA(VLOOKUP($L$12,Requirment[],36,FALSE)," ") -> 0.00 | M31: =_xlfn.IFNA(VLOOKUP($L$12,Requirment[],38,FALSE)," ") -> 0.00 | N31: =_xlfn.IFNA(VLOOKUP($L$12,Requirment[],40,FALSE)," ") -> 0.00 | O31: =_xlfn.IFNA(VLOOKUP($L$12,Requirment[],42,FALSE)," ") -> 0.00 | P31: =_xlfn.IFNA(VLOOKUP($L$12,Requirment[],35,FALSE)," ") -> 0.00 | Q31: =_xlfn.IFNA(VLOOKUP($L$12,Requirment[],37,FALSE)," ") -> 0.00 | R31: =_xlfn.IFNA(VLOOKUP($L$12,Requirment[],39,FALSE)," ") -> 0.00 | S31: =_xlfn.IFNA(VLOOKUP($L$12,Requirment[],41,FALSE)," ") -> 0.00 | T31: =_xlfn.IFNA(VLOOKUP($L$12,Requirment[],43,FALSE)," ") -> 0.00 | U31: =_xlfn.IFNA(VLOOKUP($L$12,Requirment[],31,FALSE)," ") -> 0.00 | V31: =_xlfn.IFNA(VLOOKUP($L$12,Requirment[],15,FALSE)," ") -> 0.41 | W31: =_xlfn.IFNA(VLOOKUP($L$12,Requirment[],33,FALSE)," ") -> 0.00
F34: List selections
F35: Manual selections

Sheet Database_Feedstuffs
D1: Main constituents | I1: Total Amino Acid | O1: Fatty Acids | T1: Minerals | Z1: Energy | AB1: Inclusion levels | AG1: Digestible Amino acid
A2: Feedstuffs | B2: Matière première | C2: Category | D2: DM % | E2: CP % | F2: Fiber % | G2: Fat % | H2: Ash % | I2: LYS % | J2: THR % | K2: MET % | L2: CYS % | M2: MET+CYS % | N2: TRY % | O2: C16:0 g/Kg Fat | P2: C18:0 g/Kg Fat | Q2: C18:1 g/Kg Fat (Oleic) | R2: C18:2 g/Kg Fat (linoleic) | S2: C18:3 g/Kg Fat (Alpha linolenic) | T2: Ca g/kg | U2: P g/kg | V2: Phytate P g/kg | W2: Mg g/kg | X2: K g/kg as fed | Y2: Na g/kg | Z2: EMAn roaster MJ/Kg | AA2: EMAn broiler MJ/kg | AB2: % max < 28 day broiler | AC2: % max broiler | AD2: % max Hen | AE2: Avail. P Hen g/kg | AF2: Avail. P broiler g/kg | AG2: DIS LYS poultry % | AH2: DIS THR poultry % | AI2: DIS MET poultry % | AJ2: DIS CYS poultry % | AK2: DIS MET+CYS poultry % | AL2: DIS TRY poultry % | AM2: Source
A3: Alfalfa protein concentrate | C3: Other | D3: 92.00 | E3: 49.20 | F3: 2.90 | G3: 8.20 | H3: 10.10 | I3: 2.94 | J3: 2.34 | K3: 1.00 | L3: 0.47 | M3: 1.47 | N3: 0.75 | O3: 16.60 | P3: 2.80 | Q3: 7.60 | R3: 29.30 | S3: 35.80 | T3: 33.70 | U3: 8.40 | V3: 0.40 | W3: 1.40 | X3: 7.00 | Y3: 0.07 | Z3: 10.96 | AA3: 10.96 | AB3: 5.00 | AC3: 5.00 | AD3: 5.00 | AF3: 6.80 | AG3: 2.63 | AH3: 1.91 | AI3: 0.86 | AJ3: 0.27 | AK3: 1.13 | AL3: 0.63 | AM3: Organic table
A4: Alfalfa, dehydrated, protein < 16% | C4: Dehydrated forage | D4: 92.60 | E4: 13.60 | F4: 28.90 | G4: 2.20 | H4: 9.50 | I4: 0.52 | J4: 0.46 | K4: 0.11 | L4: 0.19 | M4: 0.30 | N4: 0.19 | O4: 16.60 | P4: 2.80 | Q4: 7.60 | R4: 29.30 | S4: 35.80 | T4: 17.70 | U4: 2.40 | V4: 0.10 | W4: 1.90 | X4: 23.00 | Y4: 0.56 | Z4: 4.77 | AA4: 4.69 | AB4: 5.00 | AC4: 5.00 | AD4: 5.00 | AG4: 0.24 | AH4: 0.21 | AI4: 0.05 | AJ4: 0.08 | AK4: 0.13 | AL4: 0.08 | AM4: Organic table
A5: Alfalfa, dehydrated, protein 16-18% | C5: Dehydrated forage | D5: 91.90 | E5: 15.60 | F5: 26.50 | G5: 2.20 | H5: 9.80 | I5: 0.66 | J5: 0.57 | K5: 0.16 | L5: 0.20 | M5: 0.36 | N5: 0.22 | O5: 16.60 | P5: 2.80 | Q5: 7.60 | R5: 29.30 | S5: 35.80 | T5: 20.50 | U5: 2.30 | V5: 0.10 | W5: 1.80 | X5: 23.80 | Y5: 0.33 | Z5: 4.85 | AA5: 4.77 | AB5: 5.00 | AC5: 5.00 | AD5: 5.00 | AG5: 0.37 | AH5: 0.31 | AI5: 0.09 | AJ5: 0.10 | AK5: 0.19 | AL5: 0.11 | AM5: Organic table
A6: Alfalfa, dehydrated, protein 17-19% | C6: Dehydrated forage | D6: 92.10 | E6: 16.40 | F6: 25.40 | G6: 2.30 | H6: 10.00 | I6: 0.72 | J6: 0.61 | K6: 0.18 | L6: 0.21 | M6: 0.39 | N6: 0.23 | O6: 16.60 | P6: 2.80 | Q6: 7.60 | R6: 29.30 | S6: 35.80 | T6: 18.80 | U6: 2.40 | V6: 0.10 | W6: 1.90 | X6: 22.20 | Y6: 0.39 | Z6: 4.94 | AA6: 4.85 | AB6: 5.00 | AC6: 5.00 | AD6: 5.00 | AG6: 0.42 | AH6: 0.35 | AI6: 0.11 | AJ6: 0.11 | AK6: 0.22 | AL6: 0.13 | AM6: Organic table
A7: Alfalfa, dehydrated, protein 19-22% | C7: Dehydrated forage | D7: 92.00 | E7: 18.60 | F7: 23.60 | G7: 2.80 | H7: 10.60 | I7: 0.86 | J7: 0.72 | K7: 0.23 | L7: 0.23 | M7: 0.46 | N7: 0.26 | O7: 16.60 | P7: 2.80 | Q7: 7.60 | R7: 29.30 | S7: 35.80 | T7: 20.00 | U7: 2.40 | V7: 0.10 | W7: 1.90 | X7: 23.00 | Y7: 0.40 | Z7: 5.06 | AA7: 4.94 | AB7: 5.00 | AC7: 5.00 | AD7: 5.00 | AG7: 0.58 | AH7: 0.47 | AI7: 0.16 | AJ7: 0.14 | AK7: 0.30 | AL7: 0.17 | AM7: Organic table
A8: Barley 10,3% CP | B8: Orge 10,3% MAT | C8: Cereals | D8: 87.90 | E8: 10.30 | F8: 4.70 | G8: 1.80 | H8: 2.20 | I8: 0.40 | J8: 0.37 | K8: 0.18 | L8: 0.24 | M8: 0.42 | N8: 0.13 | O8: 21.20 | P8: 1.10 | Q8: 13.40 | R8: 55.90 | S8: 8.70 | T8: 0.70 | U8: 3.40 | V8: 1.80 | W8: 1.10 | X8: 4.90 | Y8: 0.03 | Z8: 11.55 | AA8: 10.96 | AB8: 10.00 | AC8: 10.00 | AD8: 10.00 | AG8: 0.30 | AH8: 0.26 | AI8: 0.15 | AJ8: 0.17 | AK8: 0.32 | AL8: 0.10 | AM8: Organic table
A9: Barley 8,3% CP | B9: Orge 8,3% MAT | C9: Cereals | D9: 87.90 | E9: 8.30 | F9: 4.70 | G9: 1.80 | H9: 2.20 | I9: 0.32 | J9: 0.29 | K9: 0.14 | L9: 0.20 | M9: 0.34 | N9: 0.11 | O9: 21.20 | P9: 1.10 | Q9: 13.40 | R9: 55.90 | S9: 8.70 | T9: 0.70 | U9: 3.40 | V9: 1.80 | W9: 1.10 | X9: 4.90 | Y9: 0.03 | Z9: 11.55 | AA9: 10.96 | AB9: 10.00 | AC9: 10.00 | AD9: 10.00 | AG9: 0.30 | AH9: 0.26 | AI9: 0.15 | AJ9: 0.17 | AK9: 0.32 | AL9: 0.10 | AM9: Organic table
A10: Barley 9,3% CP | B10: Orge 9,3% MAT | C10: Cereals | D10: 87.90 | E10: 9.30 | F10: 4.70 | G10: 1.80 | H10: 2.20 | I10: 0.36 | J10: 0.33 | K10: 0.16 | L10: 0.22 | M10: 0.38 | N10: 0.12 | O10: 21.20 | P10: 1.10 | Q10: 13.40 | R10: 55.90 | S10: 8.70 | T10: 0.70 | U10: 3.40 | V10: 1.80 | W10: 1.10 | X10: 4.90 | Y10: 0.03 | Z10: 11.55 | AA10: 10.96 | AB10: 10.00 | AC10: 10.00 | AD10: 10.00 | AF10: * | AG10: 0.30 | AH10: 0.26 | AI10: 0.15 | AJ10: 0.17 | AK10: 0.32 | AL10: 0.10 | AM10: Organic table
A11: Bicalcium Phosphate | C11: Minerals | D11: 97.00 | E11: 0.00 | F11: 0.00 | G11: 0.00 | H11: 88.50 | I11: 0.00 | J11: 0.00 | K11: 0.00 | L11: 0.00 | M11: 0.00 | N11: 0.00 | O11: 0.00 | P11: 0.00 | Q11: 0.00 | R11: 0.00 | S11: 0.00 | T11: 272.00 | U11: 204.00 | V11: 0.00 | W11: 59.00 | X11: 22.00 | Y11: 25.20 | Z11: 0.00 | AA11: 0.00 | AB11: 5.00 | AC11: 5.00 | AD11: 5.00 | AM11: INRA table
A12: Blue Lupine | C12: Legume seeds | D12: 90.30 | E12: 30.30 | F12: 14.20 | G12: 5.40 | H12: 3.20 | I12: 1.53 | J12: 1.18 | K12: 0.26 | L12: 0.54 | M12: 0.80 | N12: 0.22 | O12: 6.90 | P12: 3.60 | Q12: 31.90 | R12: 46.70 | S12: 4.80 | T12: 26.00 | U12: 34.00 | V12: 21.00 | W12: 19.00 | X12: 99.00 | Y12: 0.40 | Z12: 8.74 | AA12: 8.62 | AB12: 10.00 | AC12: 15.00 | AD12: 5.00 | AG12: 1.33 | AH12: 0.96 | AI12: 0.22 | AJ12: 0.44 | AK12: 0.65 | AL12: 0.18 | AM12: INRA feed table 2002
A13: Calcium carbonate | C13: Minerals | D13: 99.90 | E13: 0.00 | F13: 0.00 | G13: 0.00 | H13: 99.30 | I13: 0.00 | J13: 0.00 | K13: 0.00 | L13: 0.00 | M13: 0.00 | N13: 0.00 | O13: 0.00 | P13: 0.00 | Q13: 0.00 | R13: 0.00 | S13: 0.00 | T13: 387.00 | U13: 3.00 | V13: 0.00 | W13: 4.00 | X13: 0.00 | Y13: 6.40 | Z13: 0.00 | AA13: 0.00 | AB13: 5.00 | AC13: 5.00 | AD13: 5.00 | AM13: INRA table
A14: Camelina cake | C14: Oilseeds (Cake) | D14: 91.10 | E14: 33.20 | F14: 11.50 | G14: 14.50 | H14: 5.50 | I14: 1.54 | J14: 1.30 | K14: 0.64 | L14: 0.76 | M14: 1.39 | N14: 0.38 | O14: 8.10 | P14: 2.50 | Q14: 18.30 | R14: 24.60 | S14: 33.20 | T14: 3.40 | U14: 8.60 | V14: 5.20 | W14: 3.60 | X14: 12.00 | Y14: 0.05 | Z14: 11.17 | AA14: 10.42 | AB14: 3.00 | AC14: 5.00 | AD14: 5.00 | AE14: * | AF14: 2.20 | AG14: 1.18 | AH14: 0.95 | AI14: 0.55 | AJ14: 0.55 | AK14: 1.10 | AL14: 0.32 | AM14: Organic table
A15: Chickpea | C15: Legume seeds | D15: 87.90 | E15: 18.60 | F15: 3.40 | G15: 5.50 | H15: 2.90 | I15: 1.26 | J15: 0.66 | K15: 0.23 | L15: 0.22 | M15: 0.45 | N15: 0.17 | O15: 25.50 | P15: 1.80 | Q15: 53.30 | R15: 13.10 | S15: 5.50 | T15: 12.00 | U15: 41.00 | V15: 20.00 | W15: 13.00 | X15: 96.00 | Y15: 3.40 | Z15: 12.93 | AA15: 12.68 | AB15: 15.00 | AC15: 25.00 | AD15: 20.00 | AG15: 0.97 | AH15: 0.48 | AI15: 0.18 | AJ15: 0.17 | AK15: 0.35 | AL15: 0.13 | AM15: INRA feed table 2002
A16: Conventionnal corn gluten | C16: Cereals byproducts | D16: 87.80 | E16: 18.90 | F16: 7.90 | G16: 2.50 | H16: 5.70 | I16: 0.60 | J16: 0.65 | K16: 0.32 | L16: 0.35 | M16: 0.67 | N16: 0.13 | O16: 10.50 | P16: 1.80 | Q16: 26.10 | R16: 59.50 | S16: 1.30 | T16: 1.40 | U16: 8.60 | V16: 5.60 | W16: 3.70 | X16: 13.50 | Y16: 0.83 | Z16: 7.45 | AA16: 7.28 | AB16: 5.00 | AC16: 5.00 | AD16: 5.00 | AG16: 0.44 | AH16: 0.49 | AI16: 0.26 | AJ16: 0.25 | AK16: 0.51 | AL16: 0.11 | AM16: INRA feed table 2002
A17: Conventionnal potato protein | C17: Root byproduct | D17: 91.80 | E17: 77.20 | F17: 0.80 | G17: 0.60 | H17: 2.40 | I17: 5.89 | J17: 4.34 | K17: 1.70 | L17: 1.05 | M17: 2.75 | N17: 1.08 | O17: 17.80 | P17: 5.40 | Q17: 1.90 | R17: 56.50 | S17: 17.20 | T17: 2.00 | U17: 4.10 | V17: 0.60 | W17: 0.50 | X17: 5.40 | Y17: 0.42 | Z17: 0.00 | AA17: 0.00 | AB17: 5.00 | AC17: 5.00 | AD17: 5.00 | AG17: 5.42 | AH17: 3.95 | AI17: 1.65 | AJ17: 0.76 | AK17: 2.41 | AL17: 0.97 | AM17: INRA feed table 2002
A18: Corn 7,6% CP | B18: Maïs 7,6% MAT | C18: Cereals | D18: 86.40 | E18: 7.60 | F18: 2.30 | G18: 3.30 | H18: 1.20 | I18: 0.23 | J18: 0.29 | K18: 0.16 | L18: 0.19 | M18: 0.35 | N18: 0.05 | O18: 3.20 | P18: 0.50 | Q18: 7.90 | R18: 17.90 | S18: 0.40 | T18: 0.40 | U18: 2.60 | V18: 1.90 | W18: 1.10 | X18: 3.10 | Y18: 0.10 | Z18: 13.14 | AA18: 12.89 | AB18: 65.00 | AC18: 65.00 | AD18: 70.00 | AE18: * | AG18: 0.21 | AH18: 0.24 | AI18: 0.15 | AJ18: 0.16 | AK18: 0.32 | AL18: 0.04 | AM18: Organic table
A19: Corn 8,6% CP | B19: Maïs 8,6% MAT | C19: Cereals | D19: 86.40 | E19: 8.60 | F19: 2.30 | G19: 3.30 | H19: 1.20 | I19: 0.26 | J19: 0.33 | K19: 0.18 | L19: 0.22 | M19: 0.40 | N19: 0.06 | O19: 3.20 | P19: 0.50 | Q19: 7.90 | R19: 17.90 | S19: 0.40 | T19: 0.40 | U19: 2.60 | V19: 1.90 | W19: 1.10 | X19: 3.10 | Y19: 0.10 | Z19: 13.14 | AA19: 12.89 | AB19: 65.00 | AC19: 65.00 | AD19: 70.00 | AG19: 0.21 | AH19: 0.24 | AI19: 0.15 | AJ19: 0.16 | AK19: 0.32 | AL19: 0.04 | AM19: Organic table
A20: Corn 9,6% CP | B20: Maïs 9,6% MAT | C20: Cereals | D20: 86.40 | E20: 9.60 | F20: 2.30 | G20: 3.30 | H20: 1.20 | I20: 0.29 | J20: 0.37 | K20: 0.20 | L20: 0.24 | M20: 0.44 | N20: 0.06 | O20: 3.20 | P20: 0.50 | Q20: 7.90 | R20: 17.90 | S20: 0.40 | T20: 0.40 | U20: 2.60 | V20: 1.90 | W20: 1.10 | X20: 3.10 | Y20: 0.10 | Z20: 13.14 | AA20: 12.89 | AB20: 65.00 | AC20: 65.00 | AD20: 70.00 | AG20: 0.21 | AH20: 0.24 | AI20: 0.15 | AJ20: 0.16 | AK20: 0.32 | AL20: 0.04 | AM20: Organic table
A21: Crepidula | C21: Fishmeals and solubles | D21: 91.30 | E21: 47.40 | F21: 0.00 | G21: 2.60 | H21: 20.10 | I21: 2.68 | J21: 1.97 | K21: 0.89 | L21: 0.55 | M21: 1.43 | N21: 0.00 | O21: 13.50 | P21: 7.40 | Q21: 6.80 | R21: 3.00 | S21: 1.10 | T21: 0.00 | U21: 4.60 | V21: 0.00 | W21: 0.00 | Y21: 0.00 | Z21: 10.13 | AA21: 10.00 | AB21: 5.00 | AC21: 2.00 | AD21: 0.00 | AM21: Organic table
A22: Faba Bean (coloured flower) | C22: Legume seeds | D22: 87.90 | E22: 25.60 | F22: 9.10 | G22: 1.10 | H22: 3.40 | I22: 1.67 | J22: 0.92 | K22: 0.18 | L22: 0.32 | M22: 0.51 | N22: 0.21 | O22: 17.20 | P22: 2.60 | Q22: 25.80 | R22: 49.90 | S22: 3.50 | T22: 1.30 | U22: 4.90 | V22: 2.90 | W22: 1.60 | X22: 10.30 | Y22: 0.11 | Z22: 9.58 | AA22: 9.33 | AB22: 0.00 | AC22: 10.00 | AD22: 7.00 | AE22: * | AF22: 1.10 | AG22: 1.44 | AH22: 0.71 | AI22: 0.16 | AJ22: 0.39 | AK22: 0.14 | AL22: 0.83 | AM22: Organic table
A23: Faba Bean (white flower) | C23: Legume seeds | D23: 84.40 | E23: 24.40 | F23: 8.60 | G23: 1.00 | H23: 3.40 | I23: 1.60 | J23: 0.87 | K23: 0.18 | L23: 0.31 | M23: 0.48 | N23: 0.20 | O23: 17.20 | P23: 2.60 | Q23: 25.80 | R23: 49.90 | S23: 3.50 | T23: 1.30 | U23: 4.70 | V23: 2.80 | W23: 1.70 | X23: 10.10 | Y23: 0.10 | Z23: 10.04 | AA23: 9.83 | AB23: 15.00 | AC23: 20.00 | AD23: 7.00 | AE23: * | AF23: 1.10 | AG23: 1.37 | AH23: 0.68 | AI23: 0.15 | AJ23: 0.22 | AK23: 0.37 | AL23: 0.13 | AM23: Organic table
A24: Fodder beet | C24: Individual component with low DM | D24: 16.10 | E24: 1.30 | F24: 1.00 | G24: 0.07 | H24: 1.70 | I24: 0.07 | J24: 0.06 | K24: 0.02 | L24: 0.01 | M24: 0.04 | N24: 0.02 | O24: 0.06 | P24: 0.00 | Q24: 0.03 | R24: 0.20 | S24: 0.03 | T24: 9.00 | U24: 4.00 | V24: 0.40 | W24: 6.00 | X24: 50.00 | Y24: 11.00 | Z24: 1.60 | AA24: 1.60 | AG24: 0.06 | AH24: 0.04 | AI24: 0.02 | AJ24: 0.01 | AK24: 0.03 | AL24: 0.01 | AM24: INRA table
A25: Grass pea | C25: Legume seeds | D25: 87.90 | E25: 24.20 | F25: 6.60 | G25: 0.70 | H25: 3.10 | I25: 0.60 | J25: 0.34 | K25: 0.09 | L25: 0.17 | M25: 0.26 | N25: 0.09 | O25: 10.70 | P25: 8.89 | Q25: 19.40 | R25: 50.40 | S25: 6.78 | T25: 1.00 | U25: 2.60 | V25: 1.10 | W25: 1.30 | X25: 9.20 | Y25: 0.20 | Z25: 11.55 | AA25: 11.30 | AG25: 0.00 | AH25: 0.00 | AI25: 0.00 | AJ25: 0.00 | AK25: 0.00 | AL25: 0.00 | AM25: Organic table
A26: Hemp cake | C26: Oilseeds (Cake) | D26: 90.40 | E26: 30.40 | F26: 28.40 | G26: 11.10 | H26: 6.10 | I26: 1.04 | J26: 1.08 | K26: 0.70 | L26: 0.52 | M26: 1.22 | N26: 0.30 | O26: 6.60 | P26: 2.50 | Q26: 11.90 | R26: 55.10 | S26: 21.40 | T26: 2.60 | U26: 9.50 | V26: 5.70 | W26: 0.00 | X26: 0.00 | Z26: 9.00 | AA26: 8.54 | AB26: 10.00 | AC26: 15.00 | AD26: 15.00 | AE26: * | AF26: 2.20 | AG26: 0.00 | AH26: 0.00 | AI26: 0.00 | AJ26: 0.00 | AK26: 0.00 | AL26: 0.00 | AM26: Organic table
A27: Linseed meal, oil > 5% | C27: Oilseeds (Cake) | D27: 90.40 | E27: 33.40 | F27: 7.40 | G27: 12.80 | H27: 4.80 | I27: 1.31 | J27: 1.27 | K27: 0.63 | L27: 0.62 | M27: 1.25 | N27: 0.50 | O27: 5.60 | P27: 4.40 | Q27: 20.20 | R27: 14.70 | S27: 53.80 | T27: 3.90 | U27: 8.40 | V27: 5.50 | W27: 4.70 | X27: 10.20 | Y27: 0.62 | Z27: 11.55 | AA27: 11.00 | AB27: 0.00 | AC27: 5.00 | AD27: 5.00 | AG27: 1.09 | AH27: 1.01 | AI27: 0.55 | AJ27: 0.41 | AK27: 0.97 | AL27: 0.40 | AM27: Organic table
A28: Lithotamne | C28: Minerals | I28: 0.00 | J28: 0.00 | K28: 0.00 | L28: 0.00 | M28: 0.00 | N28: 0.00 | O28: 0.00 | P28: 0.00 | Q28: 0.00 | R28: 0.00 | S28: 0.00 | T28: 33.00 | U28: 0.00 | V28: 0.00 | W28: 3.30 | X28: 0.00 | Y28: 0.00 | Z28: 0.00 | AA28: 0.00 | AB28: 5.00 | AC28: 5.00 | AD28: 5.00 | AM28: Organic table
A29: Molasses | C29: Other plant product | D29: 75.40 | E29: 10.70 | F29: 0.00 | G29: 0.20 | H29: 9.60 | I29: 0.16 | J29: 0.07 | K29: 0.02 | L29: 0.07 | M29: 0.09 | N29: 0.08 | O29: 0.40 | P29: 0.03 | Q29: 0.20 | R29: 0.60 | S29: 0.20 | T29: 0.90 | U29: 0.20 | V29: 0.02 | W29: 0.20 | X29: 38.60 | Y29: 5.15 | Z29: 9.29 | AA29: 9.29 | AG29: 0.15 | AH29: 0.06 | AI29: 0.02 | AJ29: 0.06 | AK29: 0.08 | AL29: 0.08 | AM29: INRA feed table 2002
A30: Monocalcic phosphate | C30: Minerals | D30: 98.50 | H30: 80.50 | I30: 0.00 | J30: 0.00 | K30: 0.00 | L30: 0.00 | M30: 0.00 | N30: 0.00 | O30: 0.00 | P30: 0.00 | Q30: 0.00 | R30: 0.00 | S30: 0.00 | T30: 167.00 | U30: 224.00 | W30: 4.80 | X30: 2.30 | Y30: 0.72 | Z30: 0.00 | AA30: 0.00 | AB30: 5.00 | AC30: 5.00 | AD30: 5.00 | AM30: INRA table
A31: Oat | B31: Avoine | C31: Cereals | D31: 87.80 | E31: 9.40 | F31: 11.20 | G31: 4.60 | H31: 2.60 | I31: 0.39 | J31: 0.33 | K31: 0.17 | L31: 0.31 | M31: 0.48 | N31: 0.12 | O31: 16.50 | P31: 1.20 | Q31: 38.60 | R31: 40.90 | S31: 1.60 | T31: 1.00 | U31: 3.20 | V31: 1.90 | W31: 0.90 | X31: 4.50 | Y31: 0.12 | Z31: 9.92 | AA31: 9.37 | AB31: 5.00 | AC31: 10.00 | AD31: 10.00 | AE31: 0.70 | AF31: 0.80 | AG31: 0.33 | AH31: 0.24 | AI31: 0.15 | AJ31: 0.21 | AK31: 0.36 | AL31: 0.09 | AM31: Organic table
A32: Oat dehulled | B32: Avoine décortiqué | C32: Cereals | D32: 85.70 | E32: 11.10 | F32: 3.90 | G32: 2.60 | H32: 2.10 | I32: 0.46 | J32: 0.39 | K32: 0.19 | L32: 0.35 | M32: 0.54 | N32: 0.14 | O32: 3.90 | P32: 0.30 | Q32: 8.80 | R32: 8.90 | S32: 0.40 | T32: 0.90 | U32: 2.90 | V32: 1.60 | W32: 0.90 | X32: 4.50 | Y32: 0.12 | Z32: 9.87 | AA32: 9.37 | AB32: 5.00 | AC32: 10.00 | AD32: 10.00 | AE32: * | AF32: 0.60 | AG32: 0.41 | AH32: 0.31 | AI32: 0.18 | AJ32: 0.25 | AK32: 0.43 | AL32: 0.11 | AM32: INRA feed table 2002
A33: Oat withtout hull | B33: Avoine nue | C33: Cereals | D33: 87.60 | E33: 9.40 | F33: 11.60 | G33: 4.70 | H33: 2.50 | I33: 0.40 | J33: 0.33 | K33: 0.17 | L33: 0.31 | M33: 0.49 | N33: 0.12 | O33: 16.60 | P33: 1.20 | Q33: 37.10 | R33: 37.50 | S33: 1.50 | T33: 1.00 | U33: 3.10 | V33: 1.70 | W33: 0.90 | X33: 4.50 | Y33: 0.12 | Z33: 11.80 | AA33: 11.21 | AB33: 5.00 | AC33: 10.00 | AD33: 10.00 | AE33: * | AF33: * | AG33: 0.41 | AH33: 0.31 | AI33: 0.18 | AJ33: 0.25 | AK33: 0.43 | AL33: 0.11 | AM33: INRA feed table 2002
A34: Okara, fat > 5% | C34: Other plant product | D34: 94.40 | E34: 30.70 | F34: 10.00 | G34: 11.70 | H34: 4.30 | I34: 1.79 | J34: 1.31 | K34: 0.44 | L34: 0.43 | M34: 0.87 | N34: 0.42 | O34: 11.20 | P34: 3.80 | Q34: 23.10 | R34: 54.00 | S34: 7.20 | T34: 3.50 | U34: 5.20 | V34: 3.10 | Z34: 11.92 | AA34: 11.59 | AB34: 50.00 | AC34: 50.00 | AD34: 50.00 | AG34: 0.00 | AH34: 0.00 | AI34: 0.00 | AJ34: 0.00 | AK34: 0.00 | AL34: 0.00 | AM34: Organic table
A35: Oyster shells | C35: Minerals | D35: 99.60 | H35: 95.80 | I35: 0.00 | J35: 0.00 | K35: 0.00 | L35: 0.00 | M35: 0.00 | N35: 0.00 | O35: 0.00 | P35: 0.00 | Q35: 0.00 | R35: 0.00 | S35: 0.00 | T35: 350.00 | W35: 10.10 | Y35: 5.20 | Z35: 0.00 | AA35: 0.00 | AB35: 5.00 | AC35: 5.00 | AD35: 5.00 | AG35: 0.00 | AH35: 0.00 | AI35: 0.00 | AJ35: 0.00 | AK35: 0.00 | AL35: 0.00 | AM35: Organic table
A36: pea (coloured) | C36: Legume seeds | D36: 86.10 | E36: 21.00 | F36: 6.20 | G36: 1.30 | H36: 2.70 | I36: 1.52 | J36: 0.79 | K36: 0.20 | L36: 0.28 | M36: 0.48 | N36: 0.18 | O36: 14.30 | P36: 3.80 | Q36: 24.80 | R36: 47.30 | S36: 8.80 | T36: 2.20 | U36: 4.20 | V36: 1.90 | W36: 1.50 | X36: 9.90 | Y36: 0.04 | Z36: 10.33 | AA36: 10.08 | AB36: 0.00 | AC36: 25.00 | AD36: 20.00 | AE36: * | AF36: 1.10 | AG36: 0.00 | AH36: 0.00 | AI36: 0.00 | AJ36: 0.00 | AK36: 0.00 | AL36: 0.00 | AM36: Organic table
A37: pea (white) | C37: Legume seeds | D37: 87.50 | E37: 20.70 | F37: 6.10 | G37: 1.20 | H37: 3.00 | I37: 1.51 | J37: 0.79 | K37: 0.20 | L37: 0.28 | M37: 0.48 | N37: 0.18 | O37: 14.30 | P37: 3.80 | Q37: 24.80 | R37: 47.30 | S37: 8.80 | T37: 1.10 | U37: 4.30 | V37: 2.00 | W37: 1.10 | X37: 9.90 | Y37: 0.04 | Z37: 10.50 | AA37: 10.25 | AB37: 15.00 | AC37: 25.00 | AD37: 20.00 | AE37: * | AF37: 1.10 | AG37: 1.37 | AH37: 0.67 | AI37: 0.18 | AJ37: 0.22 | AK37: 0.40 | AL37: 0.14 | AM37: Organic table
A38: Rape oil | C38: Oil | D38: 99.90 | E38: 0.00 | F38: 0.00 | G38: 99.60 | H38: 0.20 | I38: 0.00 | J38: 0.00 | K38: 0.00 | L38: 0.00 | M38: 0.00 | N38: 0.00 | O38: 4.80 | P38: 1.60 | Q38: 59.90 | R38: 20.40 | S38: 9.20 | Y38: 0.07 | Z38: 0.00 | AA38: 0.00 | AB38: 4.00 | AC38: 4.00 | AD38: 2.00 | AG38: 0.00 | AH38: 0.00 | AI38: 0.00 | AJ38: 0.00 | AK38: 0.00 | AL38: 0.00 | AM38: INRA feed table 2002
A39: Rapeseed | C39: Legume seeds | D39: 92.40 | E39: 18.70 | F39: 8.50 | G39: 44.00 | H39: 4.00 | I39: 1.16 | J39: 0.89 | K39: 0.41 | L39: 0.47 | M39: 0.88 | N39: 0.24 | O39: 4.80 | P39: 1.60 | Q39: 59.90 | R39: 20.40 | S39: 9.20 | T39: 4.50 | U39: 6.70 | V39: 4.70 | W39: 2.40 | X39: 7.80 | Y39: 0.06 | Z39: 14.85 | AA39: 18.28 | AB39: 5.00 | AC39: 5.00 | AD39: 5.00 | AF39: * | AG39: 0.90 | AH39: 0.67 | AI39: 0.36 | AJ39: 0.34 | AK39: 0.70 | AL39: 0.20 | AM39: INRA feed table 2002
A40: Rapeseed cake (low fat) | C40: Oilseeds (Cake) | D40: 90.40 | E40: 33.40 | F40: 7.40 | G40: 12.80 | H40: 4.80 | I40: 1.31 | J40: 1.27 | K40: 0.63 | L40: 0.62 | M40: 1.24 | N40: 0.50 | O40: 5.60 | P40: 4.40 | Q40: 20.20 | R40: 14.70 | S40: 53.80 | T40: 3.90 | U40: 8.40 | V40: 5.50 | W40: 4.70 | X40: 11.60 | Y40: 0.61 | Z40: 11.55 | AA40: 11.00 | AB40: 5.00 | AC40: 10.00 | AD40: 6.00 | AE40: * | AG40: 1.09 | AH40: 1.01 | AI40: 0.55 | AJ40: 0.41 | AK40: 0.96 | AL40: 0.40 | AM40: Organic table
A41: Rapeseed meal, oil > 5%, organic | C41: Legume seeds | D41: 91.50 | E41: 29.70 | F41: 11.50 | G41: 14.20 | H41: 6.30 | I41: 1.64 | J41: 1.30 | K41: 0.60 | L41: 0.72 | M41: 1.32 | N41: 0.37 | O41: 4.70 | P41: 1.60 | Q41: 60.40 | R41: 20.00 | S41: 9.20 | T41: 7.50 | U41: 10.90 | V41: 6.50 | W41: 4.80 | X41: 11.40 | Y41: 0.51 | Z41: 11.09 | AA41: 9.46 | AB41: 5.00 | AC41: 10.00 | AD41: 6.00 | AG41: 1.28 | AH41: 0.98 | AI41: 0.53 | AJ41: 0.52 | AK41: 1.06 | AL41: 0.30 | AM41: Organic table
A42: Red clover | C42: ndividual component with low DM | D42: 27.10 | E42: 13.70 | F42: 28.30 | G42: 37.00 | H42: 13.00 | I42: 0.41 | J42: 0.34 | K42: 0.16 | L42: 0.06 | M42: 0.22 | N42: 0.00 | O42: 0.00 | P42: 0.00 | Q42: 0.00 | R42: 0.00 | S42: 0.00 | T42: 9.10 | U42: 2.60 | W42: 2.10 | X42: 34.10 | Y42: 0.30 | Z42: 3.20 | AA42: 0.00 | AG42: 0.25 | AH42: 0.00 | AI42: 0.10 | AJ42: 0.03 | AK42: 0.00 | AL42: 0.00 | AM42: ICOPP MTT
A43: Rice protein concentrate | C43: Other plant product | D43: 94.80 | E43: 46.50 | F43: 1.20 | G43: 3.60 | H43: 2.30 | I43: 1.47 | J43: 1.69 | K43: 1.33 | L43: 1.02 | M43: 2.35 | N43: 0.62 | O43: 18.80 | P43: 2.10 | Q43: 39.90 | R43: 35.80 | S43: 1.50 | T43: 1.00 | U43: 4.50 | V43: 3.90 | W43: 0.40 | X43: 0.20 | Y43: 0.96 | Z43: 9.41 | AA43: 9.41 | AB43: 5.00 | AC43: 5.00 | AD43: 5.00 | AG43: 0.00 | AH43: 0.00 | AI43: 0.00 | AJ43: 0.00 | AK43: 0.00 | AL43: 0.00 | AM43: Organic table
A44: Rye | B44: Seigle | C44: Cereals | D44: 84.20 | E44: 9.30 | F44: 2.10 | G44: 1.10 | H44: 1.70 | I44: 0.35 | J44: 0.32 | K44: 0.15 | L44: 0.21 | M44: 0.36 | N44: 0.08 | O44: 14.90 | P44: 0.80 | Q44: 18.10 | R44: 57.70 | S44: 7.10 | T44: 0.06 | U44: 0.29 | V44: 1.90 | W44: 1.00 | X44: 4.40 | Y44: 0.03 | Z44: 11.09 | AA44: 9.50 | AB44: 15.00 | AC44: 15.00 | AD44: 25.00 | AE44: * | AF44: * | AG44: 0.25 | AH44: 0.17 | AI44: 0.12 | AJ44: 0.12 | AK44: 0.24 | AL44: 0.04 | AM44: Organic table
A45: Sesame oil meal, oil > 5% | C45: Oilseeds (Cake) | D45: 93.60 | E45: 43.20 | F45: 6.60 | G45: 14.30 | H45: 8.60 | I45: 1.01 | J45: 1.28 | K45: 1.11 | L45: 0.77 | M45: 1.88 | N45: 0.48 | O45: 8.80 | P45: 4.90 | Q45: 38.90 | R45: 43.70 | S45: 0.40 | T45: 18.70 | U45: 11.50 | V45: 8.60 | W45: 5.60 | X45: 9.70 | Y45: 0.06 | Z45: 11.67 | AA45: 11.09 | AB45: 10.00 | AC45: 15.00 | AD45: 15.00 | AG45: 0.81 | AH45: 0.98 | AI45: 0.98 | AJ45: 0.53 | AK45: 1.51 | AL45: 0.40 | AM45: Organic table
A46: Sodium chlorite | C46: Minerals | D46: 99.60 | E46: 0.00 | F46: 0.00 | G46: 0.00 | H46: 99.30 | I46: 0.00 | J46: 0.00 | K46: 0.00 | L46: 0.00 | M46: 0.00 | N46: 0.00 | O46: 0.00 | P46: 0.00 | Q46: 0.00 | R46: 0.00 | T46: 0.00 | U46: 0.00 | W46: 0.00 | Y46: 380.00 | Z46: 0.00 | AA46: 0.00 | AB46: 5.00 | AC46: 5.00 | AD46: 5.00 | AM46: Organic table
A47: Sorghum | B47: Sorghum | C47: Cereals | D47: 87.70 | E47: 9.00 | F47: 3.50 | G47: 2.90 | H47: 1.90 | I47: 2.20 | J47: 3.00 | K47: 1.50 | L47: 1.70 | M47: 3.20 | N47: 0.90 | O47: 14.30 | P47: 1.70 | Q47: 38.20 | R47: 42.20 | S47: 1.80 | T47: 0.30 | U47: 3.00 | V47: 2.10 | W47: 1.50 | X47: 3.60 | Y47: 0.16 | Z47: 13.72 | AA47: 13.47 | AB47: 15.00 | AC47: 65.00 | AD47: 70.00 | AG47: 0.19 | AH47: 0.25 | AI47: 0.13 | AJ47: 0.16 | AK47: 0.29 | AL47: 0.08 | AM47: Organic table
A48: Soya bean | C48: Legume seeds | D48: 88.20 | E48: 35.70 | F48: 6.30 | G48: 18.60 | H48: 4.60 | I48: 2.22 | J48: 1.44 | K48: 0.52 | L48: 0.53 | M48: 1.04 | N48: 0.45 | O48: 11.20 | P48: 3.80 | Q48: 23.10 | R48: 54.00 | S48: 7.20 | T48: 2.90 | U48: 5.40 | V48: 3.30 | W48: 2.00 | X48: 16.60 | Y48: 0.06 | Z48: 0.00 | AA48: 0.00 | AB48: 15.00 | AC48: 20.00 | AD48: 20.00 | AG48: 0.00 | AH48: 0.00 | AI48: 0.00 | AJ48: 0.00 | AK48: 0.00 | AL48: 0.00 | AM48: Organic table
A49: Soya bean thermically treated | C49: Legume seeds | D49: 90.70 | E49: 37.60 | F49: 4.20 | G49: 17.50 | H49: 5.20 | I49: 2.34 | J49: 1.51 | K49: 0.54 | L49: 0.56 | M49: 1.10 | N49: 0.48 | O49: 11.20 | P49: 3.80 | Q49: 23.10 | R49: 54.00 | S49: 7.20 | T49: 3.00 | U49: 5.50 | V49: 3.30 | W49: 2.30 | X49: 18.30 | Y49: 0.05 | Z49: 13.26 | AA49: 12.89 | AB49: 15.00 | AC49: 20.00 | AD49: 20.00 | AG49: 1.99 | AH49: 1.16 | AI49: 0.46 | AJ49: 0.38 | AK49: 0.84 | AL49: 0.36 | AM49: Organic table
A50: Soya bean toasted | C50: Legume seeds | D50: 88.6. | E50: 35.70 | F50: 5.80 | G50: 19.70 | H50: 4.90 | I50: 2.22 | J50: 1.44 | K50: 0.52 | L50: 0.53 | M50: 1.04 | N50: 0.45 | O50: 10.50 | P50: 3.80 | Q50: 21.70 | R50: 53.10 | S50: 7.40 | T50: 3.00 | U50: 5.30 | V50: 3.20 | W50: 2.20 | X50: 17.50 | Y50: 0.06 | Z50: 13.89 | AA50: 14.27 | AB50: 15.00 | AC50: 20.00 | AD50: 20.00 | AG50: 1.89 | AH50: 1.11 | AI50: 0.43 | AJ50: 0.36 | AK50: 0.79 | AL50: 0.34 | AM50: INRA feed table 2002
A51: Soya oil | C51: Oil | D51: 99.80 | E51: 0.00 | F51: 0.00 | G51: 99.70 | H51: 0.00 | I51: 0.00 | J51: 0.00 | K51: 0.00 | L51: 0.00 | M51: 0.00 | N51: 0.00 | O51: 10.50 | P51: 3.80 | Q51: 21.70 | R51: 53.10 | S51: 7.40 | U51: 0.00 | V51: 0.00 | W51: 0.00 | X51: 0.20 | Y51: 0.08 | Z51: 0.00 | AA51: 37.57 | AB51: 4.00 | AC51: 4.00 | AD51: 3.00 | AG51: 0.00 | AH51: 0.00 | AI51: 0.00 | AJ51: 0.00 | AK51: 0.00 | AL51: 0.00 | AM51: INRA feed table 2002
A52: Soyabean cake (high protein) | C52: Oilseeds (Cake) | D52: 94.40 | E52: 46.20 | F52: 5.90 | G52: 8.70 | H52: 6.20 | I52: 2.60 | J52: 1.79 | K52: 0.66 | L52: 0.71 | M52: 1.38 | N52: 0.63 | O52: 11.20 | P52: 3.80 | Q52: 23.10 | R52: 54.00 | S52: 7.20 | T52: 3.50 | U52: 6.60 | V52: 3.90 | W52: 2.80 | X52: 21.20 | Y52: 0.00 | Z52: 12.01 | AA52: 11.55 | AB52: 100.00 | AC52: 100.00 | AD52: 100.00 | AF52: 1.40 | AG52: 2.29 | AH52: 1.49 | AI52: 0.59 | AJ52: 0.54 | AK52: 1.13 | AL52: 0.56 | AM52: Organic table
A53: Soyabean cake (low protein) | C53: Oilseeds (Cake) | D53: 92.60 | E53: 42.00 | F53: 6.10 | G53: 8.90 | H53: 6.00 | I53: 2.37 | J53: 1.65 | K53: 0.60 | L53: 0.64 | M53: 1.24 | N53: 0.56 | O53: 11.20 | P53: 3.80 | Q53: 23.10 | R53: 54.00 | S53: 7.20 | T53: 3.40 | U53: 6.40 | V53: 3.80 | W53: 2.70 | X53: 20.50 | Y53: 0.01 | Z53: 11.76 | AA53: 11.30 | AB53: 100.00 | AC53: 100.00 | AD53: 100.00 | AF53: 1.40 | AG53: 2.08 | AH53: 1.37 | AI53: 0.54 | AJ53: 0.48 | AK53: 1.02 | AL53: 0.50 | AM53: Organic table
A54: Spelt | C54: Cereals | D54: 86.90 | E54: 9.90 | F54: 11.10 | G54: 1.30 | H54: 2.70 | I54: 3.00 | J54: 3.00 | K54: 1.60 | L54: 2.30 | M54: 3.90 | N54: 1.20 | O54: 17.80 | P54: 0.80 | Q54: 15.20 | R54: 56.40 | S54: 5.90 | T54: 0.80 | U54: 3.70 | V54: 2.40 | W54: 1.60 | X54: 1.90 | Y54: 0.11 | Z54: 10.63 | AA54: 10.17 | AG54: 0.00 | AH54: 0.00 | AI54: 0.00 | AJ54: 0.00 | AK54: 0.00 | AL54: 0.00 | AM54: Organic table
A55: Sunflower bean | C55: Legume seeds | D55: 93.60 | E55: 15.20 | F55: 14.40 | G55: 45.10 | H55: 3.10 | I55: 0.62 | J55: 0.58 | K55: 0.35 | L55: 0.27 | M55: 0.61 | N55: 0.21 | O55: 6.40 | P55: 4.30 | Q55: 20.20 | R55: 65.20 | S55: 0.30 | T55: 2.60 | U55: 5.10 | V55: 4.30 | W55: 2.70 | X55: 7.70 | Y55: 0.05 | Z55: 18.54 | AA55: 17.49 | AB55: 5.00 | AC55: 5.00 | AD55: 5.00 | AG55: 0 | AH55: 0 | AI55: 0 | AJ55: 0 | AK55: 0 | AL55: 0 | AM55: Organic table
A56: Sunflower cake (dehulled) | C56: Oilseeds (Cake) | D56: 93.80 | E56: 33.70 | F56: 18.50 | G56: 8.80 | H56: 6.20 | I56: 1.21 | J56: 1.22 | K56: 0.76 | L56: 0.57 | M56: 1.32 | N56: 0.43 | O56: 6.30 | P56: 4.30 | Q56: 20.30 | R56: 64.90 | S56: 0.30 | T56: 3.90 | U56: 9.90 | V56: 8.40 | W56: 4.90 | X56: 13.20 | Y56: 0.00 | Z56: 7.28 | AA56: 6.90 | AB56: 8.00 | AC56: 20.00 | AD56: 15.00 | AG56: 0.99 | AH56: 0.92 | AI56: 0.69 | AJ56: 0.39 | AK56: 1.09 | AL56: 0.36 | AM56: INRA feed table 2002
A57: Sunflower cake (high protein) | C57: Oilseeds (Cake) | D57: 94.20 | E57: 33.30 | F57: 18.90 | G57: 8.60 | H57: 6.00 | I57: 1.20 | J57: 1.20 | K57: 0.75 | L57: 0.56 | M57: 1.31 | N57: 0.42 | O57: 6.40 | P57: 4.30 | Q57: 20.20 | R57: 65.20 | S57: 0.30 | T57: 3.90 | U57: 9.70 | V57: 8.30 | W57: 4.80 | X57: 14.10 | Y57: 0.12 | Z57: 10.04 | AA57: 9.67 | AB57: 8.00 | AC57: 20.00 | AD57: 15.00 | AF57: 1.70 | AG57: 0.98 | AH57: 0.91 | AI57: 0.69 | AJ57: 0.41 | AK57: 1.10 | AL57: 0.36 | AM57: Organic table
A58: Sunflower cake (low protein) | C58: Oilseeds (Cake) | D58: 92.30 | E58: 24.10 | F58: 24.60 | G58: 14.90 | H58: 5.30 | I58: 0.90 | J58: 0.89 | K58: 0.54 | L58: 0.41 | M58: 0.96 | N58: 0.31 | O58: 6.40 | P58: 4.30 | Q58: 20.20 | R58: 65.20 | S58: 0.30 | T58: 3.60 | U58: 8.50 | V58: 7.20 | W58: 4.20 | X58: 12.50 | Y58: 0.01 | Z58: 10.42 | AA58: 9.79 | AB58: 8.00 | AC58: 20.00 | AD58: 15.00 | AF58: 1.40 | AG58: 0.74 | AH58: 0.67 | AI58: 0.50 | AJ58: 0.30 | AK58: 0.80 | AL58: 0.26 | AM58: Organic table
A59: Sunflower oil | C59: Oil | D59: 99.30 | E59: 0.00 | F59: 0.00 | G59: 99.50 | H59: 0.05 | I59: 0.00 | J59: 0.00 | K59: 0.00 | L59: 0.00 | M59: 0.00 | N59: 0.00 | O59: 6.30 | P59: 4.30 | Q59: 20.30 | R59: 64.90 | S59: 0.30 | T59: 0.00 | U59: 0.00 | V59: 0.00 | W59: 0.00 | X59: 0.00 | Y59: 0.08 | Z59: 0.00 | AA59: 37.41 | AB59: 4.00 | AC59: 4.00 | AD59: 3.00 | AG59: 0.00 | AH59: 0.00 | AI59: 0.00 | AJ59: 0.00 | AK59: 0.00 | AL59: 0.00 | AM59: INRA feed table 2002
A60: Triticale 10,9% CP | B60: Triticale 10,9% MAT | C60: Cereals | D60: 87.00 | E60: 10.90 | F60: 2.90 | G60: 1.50 | H60: 1.70 | I60: 0.43 | J60: 0.36 | K60: 0.19 | L60: 0.29 | M60: 0.47 | N60: 0.14 | O60: 17.00 | P60: 0.90 | Q60: 13.50 | R60: 60.80 | S60: 7.10 | T60: 0.60 | U60: 3.30 | V60: 2.50 | W60: 1.10 | X60: 5.00 | Y60: 0.06 | Z60: 12.26 | AA60: 11.72 | AB60: 40.00 | AC60: 40.00 | AD60: 40.00 | AF60: 2.20 | AG60: 0.32 | AH60: 0.26 | AI60: 0.16 | AJ60: 0.19 | AK60: 0.35 | AL60: 0.10 | AM60: Organic table
A61: Triticale 7,9% CP | B61: Triticale 7,9% MAT | C61: Cereals | D61: 87.00 | E61: 7.90 | F61: 2.90 | G61: 1.50 | H61: 1.70 | I61: 0.31 | J61: 0.26 | K61: 0.14 | L61: 0.21 | M61: 0.34 | N61: 0.10 | O61: 17.00 | P61: 0.90 | Q61: 13.50 | R61: 60.80 | S61: 7.10 | T61: 0.60 | U61: 3.30 | V61: 2.50 | W61: 1.10 | X61: 5.00 | Y61: 0.06 | Z61: 13.72 | AA61: 13.47 | AB61: 40.00 | AC61: 40.00 | AD61: 40.00 | AF61: 2.20 | AG61: 0.32 | AH61: 0.26 | AI61: 0.16 | AJ61: 0.19 | AK61: 0.35 | AL61: 0.10 | AM61: Organic table
A62: Triticale 8,9% CP | B62: Triticale 8,9% MAT | C62: Cereals | D62: 87.00 | E62: 8.90 | F62: 2.90 | G62: 1.50 | H62: 1.70 | I62: 0.35 | J62: 0.30 | K62: 0.15 | L62: 0.23 | M62: 0.39 | N62: 0.12 | O62: 17.00 | P62: 0.90 | Q62: 13.50 | R62: 60.80 | S62: 7.10 | T62: 0.60 | U62: 3.30 | V62: 2.50 | W62: 1.10 | X62: 5.00 | Y62: 0.06 | Z62: 13.72 | AA62: 13.47 | AB62: 40.00 | AC62: 40.00 | AD62: 40.00 | AF62: 2.20 | AG62: 0.32 | AH62: 0.26 | AI62: 0.16 | AJ62: 0.19 | AK62: 0.35 | AL62: 0.10 | AM62: Organic table
A63: Triticale 9,9% CP | B63: Triticale 9,9% MAT | C63: Cereals | D63: 87.00 | E63: 9.90 | F63: 2.90 | G63: 1.50 | H63: 1.70 | I63: 0.39 | J63: 0.33 | K63: 0.17 | L63: 0.26 | M63: 0.43 | N63: 0.13 | O63: 17.00 | P63: 0.90 | Q63: 13.50 | R63: 60.80 | S63: 7.10 | T63: 0.60 | U63: 3.30 | V63: 2.50 | W63: 1.10 | X63: 5.00 | Y63: 0.06 | Z63: 12.26 | AA63: 11.72 | AB63: 40.00 | AC63: 70.00 | AD63: 40.00 | AE63: * | AF63: 2.20 | AG63: 0.32 | AH63: 0.26 | AI63: 0.16 | AJ63: 0.19 | AK63: 0.35 | AL63: 0.10 | AM63: Organic table
A64: Vetch common | C64: Legume seeds | D64: 90.90 | E64: 27.20 | F64: 5.90 | G64: 1.00 | H64: 2.90 | I64: 1.75 | J64: 1.02 | K64: 0.22 | L64: 0.44 | M64: 0.66 | N64: 0.24 | O64: 19.90 | P64: 4.80 | Q64: 8.90 | R64: 61.50 | S64: 2.60 | T64: 4.80 | U64: 4.30 | V64: 1.90 | W64: 1.40 | X64: 9.60 | Y64: 0.00 | Z64: 9.54 | AA64: 9.29 | AB64: 5.00 | AC64: 5.00 | AD64: 0.00 | AG64: 0.00 | AH64: 0.00 | AI64: 0.00 | AJ64: 0.00 | AK64: 0.00 | AL64: 0.00 | AM64: Organic table
A65: Vetch common leaves | C65: Dehydrated forage | D65: 19.30 | E65: 23.00 | F65: 25.40 | G65: 2.50 | H65: 9.80 | I65: 0.53 | J65: 0.58 | K65: 0.09 | L65: 0.00 | M65: 0.00 | N65: 0.00 | T65: 12.00 | U65: 4.40 | Z65: 0.00 | AA65: 0.00 | AM65: Feedipedia
A66: Wheat 10,5% CP | B66: Blé tendre 10,5% MAT | C66: Cereals | D66: 86.90 | E66: 10.90 | F66: 2.40 | G66: 1.40 | H66: 1.50 | I66: 0.31 | J66: 0.33 | K66: 0.18 | L66: 0.25 | M66: 0.42 | N66: 0.13 | O66: 1.80 | P66: 0.08 | Q66: 1.60 | R66: 5.80 | S66: 0.60 | T66: 0.60 | U66: 3.10 | V66: 2.00 | W66: 1.00 | X66: 4.00 | Y66: 0.05 | Z66: 6.69 | AA66: 6.61 | AB66: 40.00 | AC66: 70.00 | AD66: 70.00 | AE66: 1.00 | AF66: * | AG66: 0.26 | AH66: 0.27 | AI66: 0.16 | AJ66: 0.21 | AK66: 0.36 | AL66: 0.11 | AM66: Organic table
A67: Wheat 11,5% CP | B67: Blé tendre 11,5% MAT | C67: Cereals | D67: 86.90 | E67: 11.50 | F67: 2.40 | G67: 1.40 | H67: 1.50 | I67: 0.34 | J67: 0.36 | K67: 0.20 | L67: 0.27 | M67: 0.46 | N67: 0.14 | O67: 1.80 | P67: 0.08 | Q67: 1.60 | R67: 5.80 | S67: 0.60 | T67: 0.60 | U67: 3.10 | V67: 2.00 | W67: 1.00 | X67: 4.00 | Y67: 0.05 | Z67: 6.69 | AA67: 6.61 | AB67: 40.00 | AC67: 70.00 | AD67: 70.00 | AG67: 0.26 | AH67: 0.27 | AI67: 0.16 | AJ67: 0.21 | AK67: 0.36 | AL67: 0.11 | AM67: Organic table
A68: Wheat 9,5% CP | B68: Blé tendre 9,5% MAT | C68: Cereals | D68: 86.90 | E68: 9.50 | F68: 2.40 | G68: 1.40 | H68: 1.50 | I68: 0.28 | J68: 0.30 | K68: 0.16 | L68: 0.23 | M68: 0.38 | N68: 0.12 | O68: 1.80 | P68: 0.08 | Q68: 1.60 | R68: 5.80 | S68: 0.60 | T68: 0.60 | U68: 3.10 | V68: 2.00 | W68: 1.00 | X68: 4.00 | Y68: 0.05 | Z68: 6.69 | AA68: 6.61 | AB68: 40.00 | AC68: 70.00 | AD68: 70.00 | AG68: 0.26 | AH68: 0.27 | AI68: 0.16 | AJ68: 0.21 | AK68: 0.36 | AL68: 0.11 | AM68: Organic table
A69: Wheat bran | C69: Wheat by-products | D69: 87.50 | E69: 10.50 | F69: 2.60 | G69: 1.60 | H69: 1.60 | I69: 0.31 | J69: 0.32 | K69: 0.17 | L69: 0.24 | M69: 0.41 | N69: 0.13 | O69: 17.80 | P69: 0.80 | Q69: 15.20 | R69: 56.40 | S69: 5.90 | T69: 0.60 | U69: 3.20 | V69: 2.10 | W69: 1.00 | X69: 4.00 | Y69: 0.05 | Z69: 12.43 | AA69: 11.92 | AB69: 8.00 | AC69: 8.00 | AD69: 5.00 | AE69: 55.00 | AG69: 0.25 | AH69: 0.26 | AI69: 0.15 | AJ69: 0.20 | AK69: 0.35 | AL69: 0.11 | AM69: Organic table
A70: Wheat middlings, all types except durum | C70: Wheat by-products | D70: 86.60 | E70: 15.20 | F70: 6.60 | G70: 3.90 | H70: 4.40 | I70: 0.60 | J70: 0.49 | K70: 0.23 | L70: 0.31 | M70: 0.54 | N70: 0.20 | O70: 17.80 | P70: 0.80 | Q70: 15.20 | R70: 56.40 | S70: 5.90 | T70: 1.10 | U70: 8.80 | V70: 7.00 | W70: 3.50 | X70: 10.90 | Y70: 0.05 | Z70: 8.74 | AA70: 8.37 | AG70: 0.47 | AH70: 0.36 | AI70: 0.19 | AJ70: 0.24 | AK70: 0.43 | AL70: 0.16 | AM70: Organic table
A71: Whey dreid (Full fat) | C71: Dairy productcts | D71: 96.20 | E71: 13.30 | F71: 0.00 | G71: 18.80 | H71: 8.20 | I71: 0.99 | J71: 0.75 | K71: 0.20 | L71: 0.24 | M71: 0.44 | N71: 0.19 | O71: 52.40 | P71: 22.90 | Q71: 38.80 | R71: 72.00 | S71: 1.80 | T71: 8.10 | U71: 7.00 | X71: 20.60 | Y71: 6.32 | Z71: 12.76 | AA71: 12.76 | AB71: 10.00 | AC71: 10.00 | AD71: 10.00 | AG71: 0.93 | AH71: 0.66 | AI71: 0.20 | AJ71: 0.20 | AK71: 0.40 | AL71: 0.17 | AM71: INRA feed table 2002
A72: Whey dried (low fat) | C72: Dairy productcts | D72: 95.70 | E72: 14.40 | F72: 0.00 | G72: 9.90 | H72: 8.50 | I72: 1.07 | J72: 0.82 | K72: 0.22 | L72: 0.26 | M72: 0.48 | N72: 0.20 | O72: 27.70 | P72: 12.10 | Q72: 20.50 | R72: 3.80 | S72: 0.90 | T72: 8.80 | U72: 7.20 | X72: 20.70 | Y72: 6.42 | Z72: 10.59 | AA72: 10.59 | AB72: 10.00 | AC72: 10.00 | AD72: 10.00 | AG72: 1.01 | AH72: 0.72 | AI72: 0.22 | AJ72: 0.22 | AK72: 0.44 | AL72: 0.18 | AM72: INRA feed table 2002
A73: Whey, acid or sweet, dehydrated | C73: Dairy productcts | D73: 96.70 | E73: 11.80 | F73: 0.00 | G73: 2.50 | H73: 8.00 | I73: 0.88 | J73: 0.66 | K73: 0.18 | L73: 0.21 | M73: 0.39 | N73: 0.16 | O73: 29.30 | P73: 12.80 | Q73: 21.70 | R73: 4.00 | S73: 1.00 | T73: 7.70 | U73: 6.80 | V73: 0.00 | W73: 1.50 | X73: 20.70 | Y73: 6.31 | Z73: 8.66 | AA73: 8.66 | AG73: 0.83 | AH73: 0.58 | AI73: 0.17 | AJ73: 0.18 | AK73: 0.35 | AL73: 0.15 | AM73: Organic table
A74: White Lupine | C74: Legume seeds | D74: 87.50 | E74: 32.90 | F74: 11.80 | G74: 6.70 | H74: 3.40 | I74: 1.61 | J74: 1.23 | K74: 0.26 | L74: 0.55 | M74: 0.81 | N74: 0.23 | O74: 7.40 | P74: 2.00 | Q74: 49.10 | R74: 14.70 | S74: 8.30 | T74: 2.60 | U74: 3.60 | V74: 2.20 | W74: 1.40 | X74: 9.70 | Y74: 0.29 | Z74: 9.58 | AA74: 9.37 | AB74: 10.00 | AC74: 15.00 | AD74: 5.00 | AE74: * | AF74: 0.90 | AG74: 1.40 | AH74: 1.00 | AI74: 0.21 | AJ74: 0.44 | AK74: 0.66 | AL74: 0.19 | AM74: Organic table
A75: Yeast dried | C75: Other plant product | D75: 93.30 | E75: 46.50 | F75: 1.80 | G75: 3.60 | H75: 7.10 | I75: 0.69 | J75: 0.39 | K75: 0.15 | L75: 0.33 | M75: 0.48 | N75: 0.05 | T75: 0.30 | U75: 13.10 | W75: 2.40 | Y75: 1.80 | Z75: 9.30 | AA75: 0.00 | AB75: 10.00 | AC75: 10.00 | AM75: French table and Feedipedia

Sheet Poultry_Needs
A1: Obj_reference | B1: Scenarios_reference | C1: Production | D1: Scenarios | E1: Nb phasis | F1: Formula_Name | G1: Duration | H1: Country | I1: Type of animals to select ration limitation levels | J1: F1_ME Min | K1: F1_CP Min | L1: F1_FAT Min | M1: F1_CF Min | N1: F1_Ca Min | O1: F1_P Min | P1: F1_Na Min | Q1: F1 Lys tot min | R1: F1_Lys DIS min | S1: F1_Met tot Max | T1: F1_Met DIS Min | U1: F1_Met+Cys Tot Min | V1: F1_Met+Cys DIS Min | W1: F1_Thr tot Min | X1: F1_Thr DIS Min | Y1: F1_try tot Min | Z1: F1_try DIS Min | AA1: F1_ME Max | AB1: F1_CP Max | AC1: F1_FAT Max | AD1: F1_CF Max | AE1: F1_Ca Max | AF1: F1_P Max | AG1: F1_Na Max | AH1: F1_Lys Tot Max | AI1: F1_Lys DIS Max | AJ1: F1_Met Tot Max2 | AK1: F1_Met DIS Max | AL1: F1_Met+Cys Tot max | AM1: F1_Met+Cys DIS Max | AN1: F1_Thr tot Max | AO1: F1_Thr Max | AP1: F1_try tot Max | AQ1: F1_try DIS Max | AR1: Comments
A2: =Requirment[[#This Row],[Production]]&"_"&Requirment[[#This Row],[Scenarios ]]&"_"&Requirment[[#This Row],[Nb phasis]]&"_"&Requirment[[#This Row],[Formula_Name]] -> Broiler_2.4 Kg alive 63 days_3_Finishing | B2: =Requirment[[#This Row],[Production]]&"_"&Requirment[[#This Row],[Scenarios ]]&"_"&Requirment[[#This Row],[Nb phasis]] -> Broiler_2.4 Kg alive 63 days_3 | C2: Broiler | D2: 2.4 Kg alive 63 days | E2: 3 | F2: Finishing | G2: 29 - 63 days | H2: Germany | I2: broiler | J2: 11.9 | K2: 17 | L2: 4 | M2: 2 | N2: 0.7 | O2: 0.5 | P2: 0.1 | Q2: 0.70 | R2: 0.63 | S2: 0.30 | T2: 0.27 | U2: 0.53 | V2: 0.47 | W2: 0.49 | X2: 0.44 | Y2: 0.12 | Z2: 0.11 | AA2: 0.05 | AB2: 17 | AC2: 8 | AD2: 2 | AE2: 0.7 | AF2: 0.5 | AG2: 0.1 | AH2: 0.70 | AI2: 0.63 | AJ2: 0.30 | AK2: 0.27 | AL2: 0.53 | AM2: 0.47 | AN2: 0.49 | AO2: 0.44 | AP2: 0.12 | AQ2: 0.11
A3: =Requirment[[#This Row],[Production]]&"_"&Requirment[[#This Row],[Scenarios ]]&"_"&Requirment[[#This Row],[Nb phasis]]&"_"&Requirment[[#This Row],[Formula_Name]] -> Broiler_2.4 Kg alive 63 days_3_Growing | B3: =Requirment[[#This Row],[Production]]&"_"&Requirment[[#This Row],[Scenarios ]]&"_"&Requirment[[#This Row],[Nb phasis]] -> Broiler_2.4 Kg alive 63 days_3 | C3: Broiler | D3: 2.4 Kg alive 63 days | E3: 3 | F3: Growing | G3: 15-28 days | H3: Germany | I3: < 28 day broiler | J3: 11.9 | K3: 19 | L3: 4 | M3: 2 | N3: 0.9 | O3: 0.7 | P3: 0.2 | Q3: 0.90 | R3: 0.81 | S3: 0.30 | T3: 0.27 | U3: 0.68 | V3: 0.61 | W3: 0.61 | X3: 0.55 | Y3: 0.16 | Z3: 0.15 | AA3: 11.9 | AB3: 19 | AC3: 8 | AD3: 2 | AE3: 0.9 | AF3: 0.7 | AG3: 0.2 | AH3: 0.90 | AI3: 0.81 | AJ3: 0.30 | AK3: 0.27 | AL3: 0.68 | AM3: 0.61 | AN3: 0.61 | AO3: 0.55 | AP3: 0.16 | AQ3: 0.15
A4: =Requirment[[#This Row],[Production]]&"_"&Requirment[[#This Row],[Scenarios ]]&"_"&Requirment[[#This Row],[Nb phasis]]&"_"&Requirment[[#This Row],[Formula_Name]] -> Broiler_2.4 Kg alive 63 days_3_Starter | B4: =Requirment[[#This Row],[Production]]&"_"&Requirment[[#This Row],[Scenarios ]]&"_"&Requirment[[#This Row],[Nb phasis]] -> Broiler_2.4 Kg alive 63 days_3 | C4: Broiler | D4: 2.4 Kg alive 63 days | E4: 3 | F4: Starter | G4: 0-14 | H4: Germany | I4: < 28 day broiler | J4: 11.9 | K4: 21 | L4: 4 | M4: 2 | N4: 0.9 | O4: 0.7 | P4: 0.2 | Q4: 1.00 | R4: 0.90 | S4: 0.30 | T4: 0.27 | U4: 0.76 | V4: 0.68 | W4: 0.67 | X4: 0.60 | Y4: 0.17 | Z4: 0.15 | AA4: 11.9 | AB4: 21 | AC4: 4 | AD4: 2 | AE4: 0.9 | AF4: 0.7 | AG4: 0.2 | AH4: 1.00 | AI4: 0.90 | AJ4: 0.30 | AK4: 0.27 | AL4: 0.76 | AM4: 0.68 | AN4: 0.67 | AO4: 0.60 | AP4: 0.17 | AQ4: 0.15
A5: =Requirment[[#This Row],[Production]]&"_"&Requirment[[#This Row],[Scenarios ]]&"_"&Requirment[[#This Row],[Nb phasis]]&"_"&Requirment[[#This Row],[Formula_Name]] -> Broiler_2.6 kg alive at 112 days_2 feeds_3_Finishing | B5: =Requirment[[#This Row],[Production]]&"_"&Requirment[[#This Row],[Scenarios ]]&"_"&Requirment[[#This Row],[Nb phasis]] -> Broiler_2.6 kg alive at 112 days_2 feeds_3 | C5: Broiler | D5: 2.6 kg alive at 112 days_2 feeds | E5: 3 | F5: Finishing | G5: 63-112 days | H5: France | I5: broiler | J5: 11.3 | K5: 14 | L5: 2 | M5: 0 | N5: 0.7 | O5: 0.3 | P5: 0.15 | Q5: 0.72 | R5: 0.65 | S5: 0.28 | T5: 0.25 | U5: 0.54 | V5: 0.49 | W5: 0.54 | X5: 0.49 | Y5: 0.13 | Z5: 0.12 | AA5: 11.7 | AB5: 16 | AC5: 7 | AD5: 7 | AE5: 0.8 | AF5: 0.35 | AG5: 0.18 | AH5: 0.83 | AI5: 0.75 | AJ5: 0.39 | AK5: 0.35 | AL5: 0.65 | AM5: 0.59 | AN5: 0.77 | AO5: 0.69 | AP5: 0.36 | AQ5: 0.32
A6: =Requirment[[#This Row],[Production]]&"_"&Requirment[[#This Row],[Scenarios ]]&"_"&Requirment[[#This Row],[Nb phasis]]&"_"&Requirment[[#This Row],[Formula_Name]] -> Broiler_2.6 kg alive at 112 days_2 feeds_3_Growing | B6: =Requirment[[#This Row],[Production]]&"_"&Requirment[[#This Row],[Scenarios ]]&"_"&Requirment[[#This Row],[Nb phasis]] -> Broiler_2.6 kg alive at 112 days_2 feeds_3 | C6: Broiler | D6: 2.6 kg alive at 112 days_2 feeds | E6: 3 | F6: Growing | G6: 28-63 day | H6: France | I6: broiler | J6: 11.7 | K6: 17 | L6: 2 | M6: 0 | N6: 0.9 | O6: 0.4 | P6: 0.15 | Q6: 0.82 | R6: 0.74 | S6: 0.33 | T6: 0.3 | U6: 0.62 | V6: 0.56 | W6: 0.56 | X6: 0.5 | Y6: 0.18 | Z6: 0.16 | AA6: 12.1 | AB6: 19 | AC6: 7 | AD6: 7 | AE6: 1 | AF6: 0.45 | AG6: 0.18 | AH6: 0.93 | AI6: 0.84 | AJ6: 0.44 | AK6: 0.40 | AL6: 0.73 | AM6: 0.66 | AN6: 0.78 | AO6: 0.70 | AP6: 0.40 | AQ6: 0.36
A7: =Requirment[[#This Row],[Production]]&"_"&Requirment[[#This Row],[Scenarios ]]&"_"&Requirment[[#This Row],[Nb phasis]]&"_"&Requirment[[#This Row],[Formula_Name]] -> Broiler_2.6 kg alive at 112 days_2 feeds_3_Starter | B7: =Requirment[[#This Row],[Production]]&"_"&Requirment[[#This Row],[Scenarios ]]&"_"&Requirment[[#This Row],[Nb phasis]] -> Broiler_2.6 kg alive at 112 days_2 feeds_3 | C7: Broiler | D7: 2.6 kg alive at 112 days_2 feeds | E7: 3 | F7: Starter | G7: 0-28 day | H7: France | I7: < 28 day broiler | J7: 11.5 | K7: 19 | L7: 2.2 | M7: 0 | N7: 1.05 | O7: 0.4 | P7: 0.15 | Q7: 1.00 | R7: 0.9 | S7: 0.39 | T7: 0.35 | U7: 0.75 | V7: 0.68 | W7: 0.66 | X7: 0.6 | Y7: 0.17 | Z7: 0.15 | AA7: 12.1 | AB7: 21 | AC7: 5.5 | AD7: 5 | AE7: 1.15 | AF7: 0.45 | AG7: 0.18 | AH7: 1.11 | AI7: 1 | AJ7: 0.50 | AK7: 0.45 | AL7: 0.86 | AM7: 0.78 | AN7: 0.89 | AO7: 0.80 | AP7: 0.39 | AQ7: 0.35
A8: =Requirment[[#This Row],[Production]]&"_"&Requirment[[#This Row],[Scenarios ]]&"_"&Requirment[[#This Row],[Nb phasis]]&"_"&Requirment[[#This Row],[Formula_Name]] -> Broiler_2.6 kg alive at 126 days_3 feeds_3_Finishing | B8: =Requirment[[#This Row],[Production]]&"_"&Requirment[[#This Row],[Scenarios ]]&"_"&Requirment[[#This Row],[Nb phasis]] -> Broiler_2.6 kg alive at 126 days_3 feeds_3 | C8: Broiler | D8: 2.6 kg alive at 126 days_3 feeds | E8: 3 | F8: Finishing | G8: 63-126 days | H8: France | I8: broiler | J8: 10.9 | K8: 14 | L8: 2 | M8: 0 | N8: 0.7 | O8: 0.3 | P8: 0.15 | Q8: 0.69 | R8: 0.62 | S8: 0.26 | T8: 0.23 | U8: 0.52 | V8: 0.47 | W8: 0.49 | X8: 0.44 | Y8: 0.12 | Z8: 0.11 | AA8: 11.7 | AB8: 16 | AC8: 7 | AD8: 7 | AE8: 0.8 | AF8: 0.35 | AG8: 0.18 | AH8: 0.80 | AI8: 0.72 | AJ8: 0.37 | AK8: 0.33 | AL8: 0.63 | AM8: 0.57 | AN8: 0.71 | AO8: 0.64 | AP8: 0.34 | AQ8: 0.31
A9: =Requirment[[#This Row],[Production]]&"_"&Requirment[[#This Row],[Scenarios ]]&"_"&Requirment[[#This Row],[Nb phasis]]&"_"&Requirment[[#This Row],[Formula_Name]] -> Broiler_2.6 kg alive at 126 days_3 feeds_3_Growing | B9: =Requirment[[#This Row],[Production]]&"_"&Requirment[[#This Row],[Scenarios ]]&"_"&Requirment[[#This Row],[Nb phasis]] -> Broiler_2.6 kg alive at 126 days_3 feeds_3 | C9: Broiler | D9: 2.6 kg alive at 126 days_3 feeds | E9: 3 | F9: Growing | G9: 28-63 days | H9: France | I9: broiler | J9: 11.7 | K9: 17 | L9: 2 | M9: 0 | N9: 0.9 | O9: 0.4 | P9: 0.15 | Q9: 0.82 | R9: 0.74 | S9: 0.33 | T9: 0.3 | U9: 0.62 | V9: 0.56 | W9: 0.56 | X9: 0.5 | Y9: 0.18 | Z9: 0.16 | AA9: 12.1 | AB9: 19 | AC9: 7 | AD9: 7 | AE9: 1 | AF9: 0.45 | AG9: 0.18 | AH9: 0.93 | AI9: 0.84 | AJ9: 0.44 | AK9: 0.40 | AL9: 0.73 | AM9: 0.66 | AN9: 0.78 | AO9: 0.70 | AP9: 0.40 | AQ9: 0.36
A10: =Requirment[[#This Row],[Production]]&"_"&Requirment[[#This Row],[Scenarios ]]&"_"&Requirment[[#This Row],[Nb phasis]]&"_"&Requirment[[#This Row],[Formula_Name]] -> Broiler_2.6 kg alive at 126 days_3 feeds_3_Starter | B10: =Requirment[[#This Row],[Production]]&"_"&Requirment[[#This Row],[Scenarios ]]&"_"&Requirment[[#This Row],[Nb phasis]] -> Broiler_2.6 kg alive at 126 days_3 feeds_3 | C10: Broiler | D10: 2.6 kg alive at 126 days_3 feeds | E10: 3 | F10: Starter | G10: 0-28 days | H10: France | I10: < 28 day broiler | J10: 11.5 | K10: 19 | L10: 2.2 | M10: 0 | N10: 1.05 | O10: 0.4 | P10: 0.15 | Q10: 1.00 | R10: 0.9 | S10: 0.39 | T10: 0.35 | U10: 0.75 | V10: 0.68 | W10: 0.66 | X10: 0.6 | Y10: 0.17 | Z10: 0.15 | AA10: 12.1 | AB10: 21 | AC10: 5.5 | AD10: 5 | AE10: 1.15 | AF10: 0.45 | AG10: 0.18 | AH10: 1.11 | AI10: 1 | AJ10: 0.50 | AK10: 0.45 | AL10: 0.86 | AM10: 0.78 | AN10: 0.89 | AO10: 0.80 | AP10: 0.39 | AQ10: 0.35
A11: =Requirment[[#This Row],[Production]]&"_"&Requirment[[#This Row],[Scenarios ]]&"_"&Requirment[[#This Row],[Nb phasis]]&"_"&Requirment[[#This Row],[Formula_Name]] -> Broiler_2.6 kg alive at 126 days_4 feeds_4_Finishing 1 | B11: =Requirment[[#This Row],[Production]]&"_"&Requirment[[#This Row],[Scenarios ]]&"_"&Requirment[[#This Row],[Nb phasis]] -> Broiler_2.6 kg alive at 126 days_4 feeds_4 | C11: Broiler | D11: 2.6 kg alive at 126 days_4 feeds | E11: 4 | F11: Finishing 1 | G11: 63-98 days | H11: France | I11: broiler | J11: 11.3 | K11: 14 | L11: 2 | M11: 0 | N11: 0.7 | O11: 0.3 | P11: 0.15 | Q11: 0.72 | R11: 0.65 | S11: 0.28 | T11: 0.25 | U11: 0.54 | V11: 0.49 | W11: 0.54 | X11: 0.49 | Y11: 0.13 | Z11: 0.12 | AA11: 11.7 | AB11: 16 | AC11: 7 | AD11: 7 | AE11: 0.8 | AF11: 0.35 | AG11: 0.18 | AH11: 0.83 | AI11: 0.75 | AJ11: 0.39 | AK11: 0.35 | AL11: 0.65 | AM11: 0.59 | AN11: 0.77 | AO11: 0.69 | AP11: 0.36 | AQ11: 0.32
A12: =Requirment[[#This Row],[Production]]&"_"&Requirment[[#This Row],[Scenarios ]]&"_"&Requirment[[#This Row],[Nb phasis]]&"_"&Requirment[[#This Row],[Formula_Name]] -> Broiler_2.6 kg alive at 126 days_4 feeds_4_Finishing 2 | B12: =Requirment[[#This Row],[Production]]&"_"&Requirment[[#This Row],[Scenarios ]]&"_"&Requirment[[#This Row],[Nb phasis]] -> Broiler_2.6 kg alive at 126 days_4 feeds_4 | C12: Broiler | D12: 2.6 kg alive at 126 days_4 feeds | E12: 4 | F12: Finishing 2 | G12: 98 - 126 jours | H12: France | I12: broiler | J12: 10.5 | K12: 14 | L12: 2 | M12: 0 | N12: 0.7 | O12: 0.3 | P12: 0.15 | Q12: 0.67 | R12: 0.6 | S12: 0.24 | T12: 0.22 | U12: 0.50 | V12: 0.45 | W12: 0.43 | X12: 0.39 | Y12: 0.11 | Z12: 0.1 | AA12: 11.7 | AB12: 16 | AC12: 7 | AD12: 8 | AE12: 0.8 | AF12: 0.35 | AG12: 0.18 | AH12: 0.78 | AI12: 0.7 | AJ12: 0.36 | AK12: 0.32 | AL12: 0.61 | AM12: 0.55 | AN12: 0.65 | AO12: 0.59 | AP12: 0.22 | AQ12: 0.20
A13: =Requirment[[#This Row],[Production]]&"_"&Requirment[[#This Row],[Scenarios ]]&"_"&Requirment[[#This Row],[Nb phasis]]&"_"&Requirment[[#This Row],[Formula_Name]] -> Broiler_2.6 kg alive at 126 days_4 feeds_4_Growing | B13: =Requirment[[#This Row],[Production]]&"_"&Requirment[[#This Row],[Scenarios ]]&"_"&Requirment[[#This Row],[Nb phasis]] -> Broiler_2.6 kg alive at 126 days_4 feeds_4 | C13: Broiler | D13: 2.6 kg alive at 126 days_4 feeds | E13: 4 | F13: Growing | G13: 28-63 days | H13: France | I13: broiler | J13: 11.7 | K13: 17 | L13: 2 | M13: 0 | N13: 0.9 | O13: 0.4 | P13: 0.15 | Q13: 0.82 | R13: 0.74 | S13: 0.33 | T13: 0.3 | U13: 0.62 | V13: 0.56 | W13: 0.56 | X13: 0.5 | Y13: 0.18 | Z13: 0.16 | AA13: 12.1 | AB13: 19 | AC13: 7 | AD13: 7 | AE13: 1 | AF13: 0.45 | AG13: 0.18 | AH13: 0.93 | AI13: 0.84 | AJ13: 0.44 | AK13: 0.40 | AL13: 0.73 | AM13: 0.66 | AN13: 0.78 | AO13: 0.70 | AP13: 0.40 | AQ13: 0.36
A14: =Requirment[[#This Row],[Production]]&"_"&Requirment[[#This Row],[Scenarios ]]&"_"&Requirment[[#This Row],[Nb phasis]]&"_"&Requirment[[#This Row],[Formula_Name]] -> Broiler_2.6 kg alive at 126 days_4 feeds_4_Starter | B14: =Requirment[[#This Row],[Production]]&"_"&Requirment[[#This Row],[Scenarios ]]&"_"&Requirment[[#This Row],[Nb phasis]] -> Broiler_2.6 kg alive at 126 days_4 feeds_4 | C14: Broiler | D14: 2.6 kg alive at 126 days_4 feeds | E14: 4 | F14: Starter | G14: 0-28 days | H14: France | I14: < 28 day broiler | J14: 11.5 | K14: 19 | L14: 2.2 | M14: 0 | N14: 1.05 | O14: 0.4 | P14: 0.15 | Q14: 1.00 | R14: 0.9 | S14: 0.39 | T14: 0.35 | U14: 0.75 | V14: 0.68 | W14: 0.66 | X14: 0.6 | Y14: 0.17 | Z14: 0.15 | AA14: 12.1 | AB14: 21 | AC14: 5.5 | AD14: 5 | AE14: 1.15 | AF14: 0.45 | AG14: 0.18 | AH14: 1.11 | AI14: 1 | AJ14: 0.50 | AK14: 0.45 | AL14: 0.86 | AM14: 0.78 | AN14: 0.89 | AO14: 0.80 | AP14: 0.39 | AQ14: 0.35
A15: =Requirment[[#This Row],[Production]]&"_"&Requirment[[#This Row],[Scenarios ]]&"_"&Requirment[[#This Row],[Nb phasis]]&"_"&Requirment[[#This Row],[Formula_Name]] -> Broiler_2.6 kg alive at 98 days_2 feeds_2_Single feed | B15: =Requirment[[#This Row],[Production]]&"_"&Requirment[[#This Row],[Scenarios ]]&"_"&Requirment[[#This Row],[Nb phasis]] -> Broiler_2.6 kg alive at 98 days_2 feeds_2 | C15: Broiler | D15: 2.6 kg alive at 98 days_2 feeds | E15: 2 | F15: Single feed | G15: 28-98 day | H15: France | I15: broiler | J15: 11.7 | K15: 17 | L15: 2 | M15: 0 | N15: 0.9 | O15: 0.4 | P15: 0.15 | Q15: 0.82 | R15: 0.74 | S15: 0.33 | T15: 0.3 | U15: 0.62 | V15: 0.56 | W15: 0.56 | X15: 0.5 | Y15: 0.18 | Z15: 0.16 | AA15: 12.1 | AB15: 19 | AC15: 7 | AD15: 7 | AE15: 1 | AF15: 0.45 | AG15: 0.18 | AH15: 1.11 | AI15: 0.84 | AJ15: 0.53 | AK15: 0.40 | AL15: 0.87 | AM15: 0.66 | AN15: 0.92 | AO15: 0.70 | AP15: 0.47 | AQ15: 0.36
A16: =Requirment[[#This Row],[Production]]&"_"&Requirment[[#This Row],[Scenarios ]]&"_"&Requirment[[#This Row],[Nb phasis]]&"_"&Requirment[[#This Row],[Formula_Name]] -> Broiler_2.6 kg alive at 98 days_2 feeds_2_Starter | B16: =Requirment[[#This Row],[Production]]&"_"&Requirment[[#This Row],[Scenarios ]]&"_"&Requirment[[#This Row],[Nb phasis]] -> Broiler_2.6 kg alive at 98 days_2 feeds_2 | C16: Broiler | D16: 2.6 kg alive at 98 days_2 feeds | E16: 2 | F16: Starter | G16: 0-28 day | H16: France | I16: < 28 day broiler | J16: 11.5 | K16: 19 | L16: 2.2 | M16: 0 | N16: 1.05 | O16: 0.4 | P16: 0.15 | Q16: 1.00 | R16: 0.9 | S16: 0.39 | T16: 0.35 | U16: 0.75 | V16: 0.68 | W16: 0.66 | X16: 0.6 | Y16: 0.17 | Z16: 0.15 | AA16: 12.1 | AB16: 21 | AC16: 5.5 | AD16: 5 | AE16: 1.15 | AF16: 0.45 | AG16: 0.18 | AH16: 1.11 | AI16: 1 | AJ16: 0.50 | AK16: 0.45 | AL16: 0.86 | AM16: 0.78 | AN16: 0.89 | AO16: 0.80 | AP16: 0.39 | AQ16: 0.35
A17: =Requirment[[#This Row],[Production]]&"_"&Requirment[[#This Row],[Scenarios ]]&"_"&Requirment[[#This Row],[Nb phasis]]&"_"&Requirment[[#This Row],[Formula_Name]] -> Broiler_2.6 kg alive at 98 days_3 feeds_3_Finishing | B17: =Requirment[[#This Row],[Production]]&"_"&Requirment[[#This Row],[Scenarios ]]&"_"&Requirment[[#This Row],[Nb phasis]] -> Broiler_2.6 kg alive at 98 days_3 feeds_3 | C17: Broiler | D17: 2.6 kg alive at 98 days_3 feeds | E17: 3 | F17: Finishing | G17: 63-98 day | H17: France | I17: broiler | J17: 11.9 | K17: 15 | L17: 2 | M17: 0 | N17: 0.7 | O17: 0.3 | P17: 0.15 | Q17: 0.72 | R17: 0.65 | S17: 0.31 | T17: 0.28 | U17: 0.58 | V17: 0.52 | W17: 0.46 | X17: 0.41 | Y17: 0.16 | Z17: 0.14 | AA17: 12.3 | AB17: 17 | AC17: 7 | AD17: 7 | AE17: 0.9 | AF17: 0.35 | AG17: 0.18 | AH17: 0.83 | AI17: 0.75 | AJ17: 0.42 | AK17: 0.38 | AL17: 0.69 | AM17: 0.62 | AN17: 0.68 | AO17: 0.61 | AP17: 0.38 | AQ17: 0.34
A18: =Requirment[[#This Row],[Production]]&"_"&Requirment[[#This Row],[Scenarios ]]&"_"&Requirment[[#This Row],[Nb phasis]]&"_"&Requirment[[#This Row],[Formula_Name]] -> Broiler_2.6 kg alive at 98 days_3 feeds_3_Growing | B18: =Requirment[[#This Row],[Production]]&"_"&Requirment[[#This Row],[Scenarios ]]&"_"&Requirment[[#This Row],[Nb phasis]] -> Broiler_2.6 kg alive at 98 days_3 feeds_3 | C18: Broiler | D18: 2.6 kg alive at 98 days_3 feeds | E18: 3 | F18: Growing | G18: 28-63 day | H18: France | I18: broiler | J18: 11.7 | K18: 17 | L18: 2 | M18: 0 | N18: 0.9 | O18: 0.4 | P18: 0.15 | Q18: 0.91 | R18: 0.82 | S18: 0.36 | T18: 0.32 | U18: 0.67 | V18: 0.6 | W18: 0.60 | X18: 0.54 | Y18: 0.20 | Z18: 0.18 | AA18: 12.1 | AB18: 19 | AC18: 7 | AD18: 7 | AE18: 1 | AF18: 0.45 | AG18: 0.18 | AH18: 1.02 | AI18: 0.92 | AJ18: 0.47 | AK18: 0.42 | AL18: 0.78 | AM18: 0.70 | AN18: 0.83 | AO18: 0.75 | AP18: 0.42 | AQ18: 0.38
A19: =Requirment[[#This Row],[Production]]&"_"&Requirment[[#This Row],[Scenarios ]]&"_"&Requirment[[#This Row],[Nb phasis]]&"_"&Requirment[[#This Row],[Formula_Name]] -> Broiler_2.6 kg alive at 98 days_3 feeds_3_Starter | B19: =Requirment[[#This Row],[Production]]&"_"&Requirment[[#This Row],[Scenarios ]]&"_"&Requirment[[#This Row],[Nb phasis]] -> Broiler_2.6 kg alive at 98 days_3 feeds_3 | C19: Broiler | D19: 2.6 kg alive at 98 days_3 feeds | E19: 3 | F19: Starter | G19: 0-28 day | H19: France | I19: < 28 day broiler | J19: 11.5 | K19: 19 | L19: 2.2 | M19: 0 | N19: 1.05 | O19: 0.4 | P19: 0.15 | Q19: 1.00 | R19: 0.9 | S19: 0.39 | T19: 0.35 | U19: 0.75 | V19: 0.68 | W19: 0.66 | X19: 0.6 | Y19: 0.17 | Z19: 0.15 | AA19: 12.1 | AB19: 21 | AC19: 5.5 | AD19: 5 | AE19: 1.15 | AF19: 0.45 | AG19: 0.18 | AH19: 1.11 | AI19: 1 | AJ19: 0.50 | AK19: 0.45 | AL19: 0.86 | AM19: 0.78 | AN19: 0.89 | AO19: 0.80 | AP19: 0.39 | AQ19: 0.35
A20: =Requirment[[#This Row],[Production]]&"_"&Requirment[[#This Row],[Scenarios ]]&"_"&Requirment[[#This Row],[Nb phasis]]&"_"&Requirment[[#This Row],[Formula_Name]] -> Broiler_2.4 kg alive 84 days_2_Finishing | B20: =Requirment[[#This Row],[Production]]&"_"&Requirment[[#This Row],[Scenarios ]]&"_"&Requirment[[#This Row],[Nb phasis]] -> Broiler_2.4 kg alive 84 days_2 | C20: Broiler | D20: 2.4 kg alive 84 days | E20: 2 | F20: Finishing | G20: 28-63 days | H20: Germany | I20: broiler | J20: 11.2 | K20: 17 | L20: 4 | M20: 2.5 | N20: 0.7 | O20: 0.7 | P20: 0.2 | Q20: 0.70 | R20: 0.63 | S20: 0.30 | T20: 0.27 | U20: 0.53 | V20: 0.48 | W20: 0.47 | X20: 0.43 | Y20: 0.13 | Z20: 0.11 | AA20: 11.2 | AB20: 17 | AC20: 4 | AD20: 2.5 | AE20: 0.7 | AF20: 0.7 | AG20: 0.2 | AH20: 0.70 | AI20: 0.63 | AJ20: 0.30 | AK20: 0.27 | AL20: 0.53 | AM20: 0.48 | AN20: 0.47 | AO20: 0.43 | AP20: 0.13 | AQ20: 0.11
A21: =Requirment[[#This Row],[Production]]&"_"&Requirment[[#This Row],[Scenarios ]]&"_"&Requirment[[#This Row],[Nb phasis]]&"_"&Requirment[[#This Row],[Formula_Name]] -> Broiler_2.4 kg alive 84 days_2_Starter | B21: =Requirment[[#This Row],[Production]]&"_"&Requirment[[#This Row],[Scenarios ]]&"_"&Requirment[[#This Row],[Nb phasis]] -> Broiler_2.4 kg alive 84 days_2 | C21: Broiler | D21: 2.4 kg alive 84 days | E21: 2 | F21: Starter | G21: 0-21 days | H21: Germany | I21: < 28 day broiler | J21: 11.2 | K21: 21 | L21: 4 | M21: 2 | N21: 0.9 | O21: 0.7 | P21: 0.2 | Q21: 1.00 | R21: 0.90 | S21: 0.30 | T21: 0.27 | U21: 0.76 | V21: 0.68 | W21: 0.67 | X21: 0.60 | Y21: 0.17 | Z21: 0.15 | AA21: 11.2 | AB21: 21 | AC21: 8 | AD21: 2 | AE21: 0.9 | AF21: 0.7 | AG21: 0.2 | AH21: 1.00 | AI21: 0.90 | AJ21: 0.30 | AK21: 0.27 | AL21: 0.76 | AM21: 0.68 | AN21: 0.67 | AO21: 0.60 | AP21: 0.17 | AQ21: 0.15
A22: =Requirment[[#This Row],[Production]]&"_"&Requirment[[#This Row],[Scenarios ]]&"_"&Requirment[[#This Row],[Nb phasis]]&"_"&Requirment[[#This Row],[Formula_Name]] -> Pullets_Growers_2_Growing | B22: =Requirment[[#This Row],[Production]]&"_"&Requirment[[#This Row],[Scenarios ]]&"_"&Requirment[[#This Row],[Nb phasis]] -> Pullets_Growers_2 | C22: Pullets | D22: Growers | E22: 2 | F22: Growing | G22: 42-140/161 days | H22: France | I22: broiler | J22: 10.9 | K22: 16 | L22: 2 | M22: 0 | N22: 1 | O22: 0.35 | P22: 0.12 | Q22: 0.69 | R22: 0.62 | S22: 0.27 | T22: 0.24 | U22: 0.52 | V22: 0.47 | W22: 0.49 | X22: 0.44 | Y22: 0.12 | Z22: 0.11 | AA22: 11.7 | AB22: 18 | AC22: 7 | AD22: 7 | AE22: 1.1 | AF22: 0.45 | AG22: 0.22 | AH22: 0.80 | AI22: 0.72 | AJ22: 0.38 | AK22: 0.34 | AL22: 0.63 | AM22: 0.57 | AN22: 0.71 | AO22: 0.64 | AP22: 0.34 | AQ22: 0.31
A23: =Requirment[[#This Row],[Production]]&"_"&Requirment[[#This Row],[Scenarios ]]&"_"&Requirment[[#This Row],[Nb phasis]]&"_"&Requirment[[#This Row],[Formula_Name]] -> Pullets_Growers_2_Starter | B23: =Requirment[[#This Row],[Production]]&"_"&Requirment[[#This Row],[Scenarios ]]&"_"&Requirment[[#This Row],[Nb phasis]] -> Pullets_Growers_2 | C23: Pullets | D23: Growers | E23: 2 | F23: Starter | G23: 0-42 days | H23: France | I23: < 28 day broiler | J23: 11.5 | K23: 19 | L23: 2 | M23: 0 | N23: 1 | O23: 0.4 | P23: 0.15 | Q23: 0.94 | R23: 0.85 | S23: 0.35 | T23: 0.32 | U23: 0.71 | V23: 0.64 | W23: 0.66 | X23: 0.6 | Y23: 0.17 | Z23: 0.15 | AA23: 11.9 | AB23: 21 | AC23: 5 | AD23: 5 | AE23: 1.1 | AF23: 0.45 | AG23: 0.18 | AH23: 1.05 | AI23: 0.95 | AJ23: 0.46 | AK23: 0.42 | AL23: 0.82 | AM23: 0.74 | AN23: 0.89 | AO23: 0.80 | AP23: 0.39 | AQ23: 0.35
A24: =Requirment[[#This Row],[Production]]&"_"&Requirment[[#This Row],[Scenarios ]]&"_"&Requirment[[#This Row],[Nb phasis]]&"_"&Requirment[[#This Row],[Formula_Name]] -> Laying Hen_High level 250 to 300 eggs per year_ 2 Feeds_2_Laying | B24: =Requirment[[#This Row],[Production]]&"_"&Requirment[[#This Row],[Scenarios ]]&"_"&Requirment[[#This Row],[Nb phasis]] -> Laying Hen_High level 250 to 300 eggs per year_ 2 Feeds_2 | C24: Laying Hen | D24: High level 250 to 300 eggs per year_ 2 Feeds | E24: 2 | F24: Laying | G24: >42 weeks | H24: France | I24: Hen | J24: 11.1 | K24: 15 | L24: 4 | M24: 0 | N24: 3.5 | O24: 0.31 | P24: 0.13 | Q24: 0.69 | R24: 0.61 | S24: 0.33 | T24: 0.29 | U24: 0.64 | V24: 0.57 | W24: 0.47 | X24: 0.42 | Y24: 0.15 | Z24: 0.13 | AA24: 11.5 | AB24: 19 | AC24: 7 | AD24: 7 | AH24: 0.80 | AI24: 0.71 | AJ24: 0.00 | AL24: 0.00 | AN24: 0.00 | AP24: 0.00
A25: =Requirment[[#This Row],[Production]]&"_"&Requirment[[#This Row],[Scenarios ]]&"_"&Requirment[[#This Row],[Nb phasis]]&"_"&Requirment[[#This Row],[Formula_Name]] -> Laying Hen_High level 250 to 300 eggs per year_ 2 Feeds_2_Starter laying | B25: =Requirment[[#This Row],[Production]]&"_"&Requirment[[#This Row],[Scenarios ]]&"_"&Requirment[[#This Row],[Nb phasis]] -> Laying Hen_High level 250 to 300 eggs per year_ 2 Feeds_2 | C25: Laying Hen | D25: High level 250 to 300 eggs per year_ 2 Feeds | E25: 2 | F25: Starter laying | G25: <42 weeks | H25: France | I25: Hen | J25: 11.3 | K25: 15 | L25: 4 | M25: 0 | N25: 3.5 | O25: 0.31 | P25: 0.13 | Q25: 0.73 | R25: 0.65 | S25: 0.34 | T25: 0.3 | U25: 0.69 | V25: 0.61 | W25: 0.51 | X25: 0.45 | Y25: 0.16 | Z25: 0.14 | AA25: 12.1 | AB25: 20 | AC25: 7 | AD25: 7 | AH25: 0.85 | AI25: 0.75 | AJ25: 0.00 | AL25: 0.00 | AN25: 0.00 | AP25: 0.00
A26: 0 | B26: =Requirment[[#This Row],[Production]]&"_"&Requirment[[#This Row],[Scenarios ]]&"_"&Requirment[[#This Row],[Nb phasis]] -> Laying Hen_High level 250 to 300 eggs per year_ 3 Feeds_2 | C26: Laying Hen | D26: High level 250 to 300 eggs per year_ 3 Feeds | E26: 2 | F26: Laying | G26: 41-80 weeks | H26: Germany | I26: Hen | J26: 10.9 | K26: 17.95 | L26: 4 | M26: 0 | N26: 4.4 | O26: 0.58 | P26: 0.17 | Q26: 0.84 | R26: 0.80 | S26: 0.42 | T26: 0.40 | U26: 0.77 | V26: 0.7315 | W26: 0.59 | X26: 0.56 | Y26: 0.18 | Z26: 0.171 | AA26: 10.9 | AB26: 17.95 | AC26: 4 | AE26: 4.4 | AF26: 0.58 | AG26: 0.17 | AH26: 0.84 | AI26: 0.798 | AJ26: 0.42 | AK26: 0.40 | AL26: 0.77 | AM26: 0.73 | AN26: 0.59 | AO26: 0.56 | AP26: 0.18 | AQ26: 0.17
A27: =Requirment[[#This Row],[Production]]&"_"&Requirment[[#This Row],[Scenarios ]]&"_"&Requirment[[#This Row],[Nb phasis]]&"_"&Requirment[[#This Row],[Formula_Name]] -> Laying Hen_High level 250 to 300 eggs per year_ 3 Feeds_2_Laying | B27: =Requirment[[#This Row],[Production]]&"_"&Requirment[[#This Row],[Scenarios ]]&"_"&Requirment[[#This Row],[Nb phasis]] -> Laying Hen_High level 250 to 300 eggs per year_ 3 Feeds_2 | C27: Laying Hen | D27: High level 250 to 300 eggs per year_ 3 Feeds | E27: 2 | F27: Laying | H27: Germany | I27: Hen | J27: 11.40 | K27: 17.02 | L27: 4.00 | M27: 0 | N27: 4.50 | O27: 0.55 | P27: 0.16 | Q27: 0.80 | R27: 0.76 | S27: 0.40 | T27: 0.38 | U27: 0.73 | V27: 0.69 | W27: 0.55 | X27: 0.52 | Y27: 0.17 | Z27: 0.16 | AA27: 11.4 | AB27: 17.02 | AE27: 4.5 | AF27: 0.55 | AG27: 0.16 | AH27: 0.80 | AI27: 0.76 | AJ27: 0.40 | AK27: 0.38 | AL27: 0.73 | AM27: 0.69 | AN27: 0.55 | AO27: 0.52 | AP27: 0.17 | AQ27: 0.16
A28: =Requirment[[#This Row],[Production]]&"_"&Requirment[[#This Row],[Scenarios ]]&"_"&Requirment[[#This Row],[Nb phasis]]&"_"&Requirment[[#This Row],[Formula_Name]] -> Laying Hen_High level 250 to 300 eggs per year_ 3 Feeds_2_Starter laying | B28: =Requirment[[#This Row],[Production]]&"_"&Requirment[[#This Row],[Scenarios ]]&"_"&Requirment[[#This Row],[Nb phasis]] -> Laying Hen_High level 250 to 300 eggs per year_ 3 Feeds_2 | C28: Laying Hen | D28: High level 250 to 300 eggs per year_ 3 Feeds | E28: 2 | F28: Starter laying | G28: 19-40 weeks | H28: Germany | I28: Hen | J28: 10.9 | K28: 18.7 | L28: 4 | M28: 0 | N28: 4.1 | O28: 0.6 | P28: 0.18 | Q28: 0.88 | R28: 0.84 | S28: 0.44 | T28: 0.42 | U28: 0.80 | V28: 0.76 | W28: 0.61 | X28: 0.58 | Y28: 0.18 | Z28: 0.171 | AA28: 10.90 | AB28: 18.70 | AC28: 4.00 | AE28: 4.10 | AF28: 0.60 | AG28: 0.18 | AH28: 0.88 | AI28: 0.84 | AJ28: 0.44 | AK28: 0.42 | AL28: 0.80 | AM28: 0.76 | AN28: 0.61 | AO28: 0.58 | AP28: 0.18 | AQ28: 0.17
A29: =Requirment[[#This Row],[Production]]&"_"&Requirment[[#This Row],[Scenarios ]]&"_"&Requirment[[#This Row],[Nb phasis]]&"_"&Requirment[[#This Row],[Formula_Name]] -> Laying Hen_Low level 170 eggs per year_ 2 Feeds_2_Laying | B29: =Requirment[[#This Row],[Production]]&"_"&Requirment[[#This Row],[Scenarios ]]&"_"&Requirment[[#This Row],[Nb phasis]] -> Laying Hen_Low level 170 eggs per year_ 2 Feeds_2 | C29: Laying Hen | D29: Low level 170 eggs per year_ 2 Feeds | E29: 2 | F29: Laying | G29: >42 weeks | H29: France | I29: Hen | J29: 11.1 | K29: 15 | L29: 4 | M29: 0 | N29: 3.5 | O29: 0.31 | P29: 0.13 | Q29: 0.70 | R29: 0.62 | S29: 0.28 | T29: 0.25 | U29: 0.56 | V29: 0.5 | W29: 0.47 | X29: 0.42 | Y29: 0.15 | Z29: 0.13 | AA29: 11.5 | AB29: 18 | AC29: 7 | AD29: 7 | AH29: 0.81 | AI29: 0.72 | AJ29: 0.00 | AL29: 0.00 | AN29: 0.00 | AP29: 0.00
A30: =Requirment[[#This Row],[Production]]&"_"&Requirment[[#This Row],[Scenarios ]]&"_"&Requirment[[#This Row],[Nb phasis]]&"_"&Requirment[[#This Row],[Formula_Name]] -> Laying Hen_Low level 170 eggs per year_ 2 Feeds_2_Starter laying | B30: =Requirment[[#This Row],[Production]]&"_"&Requirment[[#This Row],[Scenarios ]]&"_"&Requirment[[#This Row],[Nb phasis]] -> Laying Hen_Low level 170 eggs per year_ 2 Feeds_2 | C30: Laying Hen | D30: Low level 170 eggs per year_ 2 Feeds | E30: 2 | F30: Starter laying | G30: <42 weeks | H30: France | I30: Hen | J30: 11.3 | K30: 15 | L30: 4 | M30: 0 | N30: 3.5 | O30: 0.31 | P30: 0.13 | Q30: 0.68 | R30: 0.6 | S30: 0.32 | T30: 0.28 | U30: 0.63 | V30: 0.56 | W30: 0.47 | X30: 0.42 | Y30: 0.16 | Z30: 0.14 | AA30: 12.1 | AB30: 18 | AC30: 7 | AD30: 7 | AH30: 0.79 | AI30: 0.7 | AJ30: 0.00 | AL30: 0.00 | AN30: 0.00 | AP30: 0.00
A31: =Requirment[[#This Row],[Production]]&"_"&Requirment[[#This Row],[Scenarios ]]&"_"&Requirment[[#This Row],[Nb phasis]]&"_"&Requirment[[#This Row],[Formula_Name]] -> Laying hens_One feed ans grains no Min Max_1_Single feed | B31: =Requirment[[#This Row],[Production]]&"_"&Requirment[[#This Row],[Scenarios ]]&"_"&Requirment[[#This Row],[Nb phasis]] -> Laying hens_One feed ans grains no Min Max_1 | C31: Laying hens | D31: One feed ans grains no Min Max | E31: 1 | F31: Single feed | G31: 42 weeks | H31: Switzerland | I31: Hen | J31: 0.0 | K31: 20 | L31: 2 | M31: 4 | N31: 5 | O31: 0.64 | P31: 0.17 | Q31: 1.13 | R31: 1 | S31: 0.45 | T31: 0.4 | U31: 0.95 | V31: 0.84 | W31: 0.00 | Y31: 0.00 | AA31: 0.0
A32: =Requirment[[#This Row],[Production]]&"_"&Requirment[[#This Row],[Scenarios ]]&"_"&Requirment[[#This Row],[Nb phasis]]&"_"&Requirment[[#This Row],[Formula_Name]] -> Broiler_Broiler_2.6 kg alive at 98 days_3 feeds_3_Finishing_Red clover silage_3_Finishing | B32: =Requirment[[#This Row],[Production]]&"_"&Requirment[[#This Row],[Scenarios ]]&"_"&Requirment[[#This Row],[Nb phasis]] -> Broiler_Broiler_2.6 kg alive at 98 days_3 feeds_3_Finishing_Red clover silage_3 | C32: Broiler | D32: Broiler_2.6 kg alive at 98 days_3 feeds_3_Finishing_Red clover silage | E32: 3 | F32: Finishing | G32: 63-98 day | H32: France | I32: broiler | J32: 12.95321246 | K32: 17.11249123 | L32: 4.560016221 | M32: 3.5 | N32: 0.8633341967 | O32: 0.407000407 | P32: 0.703000703 | Q32: 0.63 | R32: 0.296000296 | S32: 0.78 | T32: 0.3429444444 | U32: 0.62 | V32: 0.4862777778 | W32: 0.27 | X32: 0.8865555556 | Y32: 0.33 | Z32: 0.1833333333 | AA32: 0 | AB32: 0 | AC32: 0 | AD32: 0 | AE32: 0 | AF32: 0 | AG32: 0 | AH32: 0.00 | AI32: 0 | AJ32: 0.00 | AK32: 0.00 | AL32: 0.00 | AM32: 0.00 | AN32: 0.00 | AO32: 0.00 | AP32: 0.00 | AQ32: 0.00
A33: =Requirment[[#This Row],[Production]]&"_"&Requirment[[#This Row],[Scenarios ]]&"_"&Requirment[[#This Row],[Nb phasis]]&"_"&Requirment[[#This Row],[Formula_Name]] -> ___ | B33: =Requirment[[#This Row],[Production]]&"_"&Requirment[[#This Row],[Scenarios ]]&"_"&Requirment[[#This Row],[Nb phasis]] -> __
A34: =Requirment[[#This Row],[Production]]&"_"&Requirment[[#This Row],[Scenarios ]]&"_"&Requirment[[#This Row],[Nb phasis]]&"_"&Requirment[[#This Row],[Formula_Name]] -> ___ | B34: =Requirment[[#This Row],[Production]]&"_"&Requirment[[#This Row],[Scenarios ]]&"_"&Requirment[[#This Row],[Nb phasis]] -> __
A35: =Requirment[[#This Row],[Production]]&"_"&Requirment[[#This Row],[Scenarios ]]&"_"&Requirment[[#This Row],[Nb phasis]]&"_"&Requirment[[#This Row],[Formula_Name]] -> ___ | B35: =Requirment[[#This Row],[Production]]&"_"&Requirment[[#This Row],[Scenarios ]]&"_"&Requirment[[#This Row],[Nb phasis]] -> __
A36: =Requirment[[#This Row],[Production]]&"_"&Requirment[[#This Row],[Scenarios ]]&"_"&Requirment[[#This Row],[Nb phasis]]&"_"&Requirment[[#This Row],[Formula_Name]] -> ___ | B36: =Requirment[[#This Row],[Production]]&"_"&Requirment[[#This Row],[Scenarios ]]&"_"&Requirment[[#This Row],[Nb phasis]] -> __
A37: =Requirment[[#This Row],[Production]]&"_"&Requirment[[#This Row],[Scenarios ]]&"_"&Requirment[[#This Row],[Nb phasis]]&"_"&Requirment[[#This Row],[Formula_Name]] -> ___ | B37: =Requirment[[#This Row],[Production]]&"_"&Requirment[[#This Row],[Scenarios ]]&"_"&Requirment[[#This Row],[Nb phasis]] -> __
A38: =Requirment[[#This Row],[Production]]&"_"&Requirment[[#This Row],[Scenarios ]]&"_"&Requirment[[#This Row],[Nb phasis]]&"_"&Requirment[[#This Row],[Formula_Name]] -> ___ | B38: =Requirment[[#This Row],[Production]]&"_"&Requirment[[#This Row],[Scenarios ]]&"_"&Requirment[[#This Row],[Nb phasis]] -> __
A39: =Requirment[[#This Row],[Production]]&"_"&Requirment[[#This Row],[Scenarios ]]&"_"&Requirment[[#This Row],[Nb phasis]]&"_"&Requirment[[#This Row],[Formula_Name]] -> ___ | B39: =Requirment[[#This Row],[Production]]&"_"&Requirment[[#This Row],[Scenarios ]]&"_"&Requirment[[#This Row],[Nb phasis]] -> __
A40: =Requirment[[#This Row],[Production]]&"_"&Requirment[[#This Row],[Scenarios ]]&"_"&Requirment[[#This Row],[Nb phasis]]&"_"&Requirment[[#This Row],[Formula_Name]] -> ___ | B40: =Requirment[[#This Row],[Production]]&"_"&Requirment[[#This Row],[Scenarios ]]&"_"&Requirment[[#This Row],[Nb phasis]] -> __
A41: =Requirment[[#This Row],[Production]]&"_"&Requirment[[#This Row],[Scenarios ]]&"_"&Requirment[[#This Row],[Nb phasis]]&"_"&Requirment[[#This Row],[Formula_Name]] -> ___ | B41: =Requirment[[#This Row],[Production]]&"_"&Requirment[[#This Row],[Scenarios ]]&"_"&Requirment[[#This Row],[Nb phasis]] -> __
A42: =Requirment[[#This Row],[Production]]&"_"&Requirment[[#This Row],[Scenarios ]]&"_"&Requirment[[#This Row],[Nb phasis]]&"_"&Requirment[[#This Row],[Formula_Name]] -> ___ | B42: =Requirment[[#This Row],[Production]]&"_"&Requirment[[#This Row],[Scenarios ]]&"_"&Requirment[[#This Row],[Nb phasis]] -> __
A43: =Requirment[[#This Row],[Production]]&"_"&Requirment[[#This Row],[Scenarios ]]&"_"&Requirment[[#This Row],[Nb phasis]]&"_"&Requirment[[#This Row],[Formula_Name]] -> ___ | B43: =Requirment[[#This Row],[Production]]&"_"&Requirment[[#This Row],[Scenarios ]]&"_"&Requirment[[#This Row],[Nb phasis]] -> __
A44: =Requirment[[#This Row],[Production]]&"_"&Requirment[[#This Row],[Scenarios ]]&"_"&Requirment[[#This Row],[Nb phasis]]&"_"&Requirment[[#This Row],[Formula_Name]] -> ___ | B44: =Requirment[[#This Row],[Production]]&"_"&Requirment[[#This Row],[Scenarios ]]&"_"&Requirment[[#This Row],[Nb phasis]] -> __
A45: =Requirment[[#This Row],[Production]]&"_"&Requirment[[#This Row],[Scenarios ]]&"_"&Requirment[[#This Row],[Nb phasis]]&"_"&Requirment[[#This Row],[Formula_Name]] -> ___ | B45: =Requirment[[#This Row],[Production]]&"_"&Requirment[[#This Row],[Scenarios ]]&"_"&Requirment[[#This Row],[Nb phasis]] -> __
A46: =Requirment[[#This Row],[Production]]&"_"&Requirment[[#This Row],[Scenarios ]]&"_"&Requirment[[#This Row],[Nb phasis]]&"_"&Requirment[[#This Row],[Formula_Name]] -> ___ | B46: =Requirment[[#This Row],[Production]]&"_"&Requirment[[#This Row],[Scenarios ]]&"_"&Requirment[[#This Row],[Nb phasis]] -> __
A47: =Requirment[[#This Row],[Production]]&"_"&Requirment[[#This Row],[Scenarios ]]&"_"&Requirment[[#This Row],[Nb phasis]]&"_"&Requirment[[#This Row],[Formula_Name]] -> ___ | B47: =Requirment[[#This Row],[Production]]&"_"&Requirment[[#This Row],[Scenarios ]]&"_"&Requirment[[#This Row],[Nb phasis]] -> __
A48: =Requirment[[#This Row],[Production]]&"_"&Requirment[[#This Row],[Scenarios ]]&"_"&Requirment[[#This Row],[Nb phasis]]&"_"&Requirment[[#This Row],[Formula_Name]] -> ___ | B48: =Requirment[[#This Row],[Production]]&"_"&Requirment[[#This Row],[Scenarios ]]&"_"&Requirment[[#This Row],[Nb phasis]] -> __
A49: =Requirment[[#This Row],[Production]]&"_"&Requirment[[#This Row],[Scenarios ]]&"_"&Requirment[[#This Row],[Nb phasis]]&"_"&Requirment[[#This Row],[Formula_Name]] -> ___ | B49: =Requirment[[#This Row],[Production]]&"_"&Requirment[[#This Row],[Scenarios ]]&"_"&Requirment[[#This Row],[Nb phasis]] -> __
A50: =Requirment[[#This Row],[Production]]&"_"&Requirment[[#This Row],[Scenarios ]]&"_"&Requirment[[#This Row],[Nb phasis]]&"_"&Requirment[[#This Row],[Formula_Name]] -> ___ | B50: =Requirment[[#This Row],[Production]]&"_"&Requirment[[#This Row],[Scenarios ]]&"_"&Requirment[[#This Row],[Nb phasis]] -> __
A51: =Requirment[[#This Row],[Production]]&"_"&Requirment[[#This Row],[Scenarios ]]&"_"&Requirment[[#This Row],[Nb phasis]]&"_"&Requirment[[#This Row],[Formula_Name]] -> ___ | B51: =Requirment[[#This Row],[Production]]&"_"&Requirment[[#This Row],[Scenarios ]]&"_"&Requirment[[#This Row],[Nb phasis]] -> __
A52: =Requirment[[#This Row],[Production]]&"_"&Requirment[[#This Row],[Scenarios ]]&"_"&Requirment[[#This Row],[Nb phasis]]&"_"&Requirment[[#This Row],[Formula_Name]] -> ___ | B52: =Requirment[[#This Row],[Production]]&"_"&Requirment[[#This Row],[Scenarios ]]&"_"&Requirment[[#This Row],[Nb phasis]] -> __
A53: =Requirment[[#This Row],[Production]]&"_"&Requirment[[#This Row],[Scenarios ]]&"_"&Requirment[[#This Row],[Nb phasis]]&"_"&Requirment[[#This Row],[Formula_Name]] -> ___ | B53: =Requirment[[#This Row],[Production]]&"_"&Requirment[[#This Row],[Scenarios ]]&"_"&Requirment[[#This Row],[Nb phasis]] -> __
A54: =Requirment[[#This Row],[Production]]&"_"&Requirment[[#This Row],[Scenarios ]]&"_"&Requirment[[#This Row],[Nb phasis]]&"_"&Requirment[[#This Row],[Formula_Name]] -> ___ | B54: =Requirment[[#This Row],[Production]]&"_"&Requirment[[#This Row],[Scenarios ]]&"_"&Requirment[[#This Row],[Nb phasis]] -> __
A55: =Requirment[[#This Row],[Production]]&"_"&Requirment[[#This Row],[Scenarios ]]&"_"&Requirment[[#This Row],[Nb phasis]]&"_"&Requirment[[#This Row],[Formula_Name]] -> ___ | B55: =Requirment[[#This Row],[Production]]&"_"&Requirment[[#This Row],[Scenarios ]]&"_"&Requirment[[#This Row],[Nb phasis]] -> __
A56: =Requirment[[#This Row],[Production]]&"_"&Requirment[[#This Row],[Scenarios ]]&"_"&Requirment[[#This Row],[Nb phasis]]&"_"&Requirment[[#This Row],[Formula_Name]] -> ___ | B56: =Requirment[[#This Row],[Production]]&"_"&Requirment[[#This Row],[Scenarios ]]&"_"&Requirment[[#This Row],[Nb phasis]] -> __
A57: =Requirment[[#This Row],[Production]]&"_"&Requirment[[#This Row],[Scenarios ]]&"_"&Requirment[[#This Row],[Nb phasis]]&"_"&Requirment[[#This Row],[Formula_Name]] -> ___ | B57: =Requirment[[#This Row],[Production]]&"_"&Requirment[[#This Row],[Scenarios ]]&"_"&Requirment[[#This Row],[Nb phasis]] -> __
A58: =Requirment[[#This Row],[Production]]&"_"&Requirment[[#This Row],[Scenarios ]]&"_"&Requirment[[#This Row],[Nb phasis]]&"_"&Requirment[[#This Row],[Formula_Name]] -> ___ | B58: =Requirment[[#This Row],[Production]]&"_"&Requirment[[#This Row],[Scenarios ]]&"_"&Requirment[[#This Row],[Nb phasis]] -> __
A59: =Requirment[[#This Row],[Production]]&"_"&Requirment[[#This Row],[Scenarios ]]&"_"&Requirment[[#This Row],[Nb phasis]]&"_"&Requirment[[#This Row],[Formula_Name]] -> ___ | B59: =Requirment[[#This Row],[Production]]&"_"&Requirment[[#This Row],[Scenarios ]]&"_"&Requirment[[#This Row],[Nb phasis]] -> __
A60: =Requirment[[#This Row],[Production]]&"_"&Requirment[[#This Row],[Scenarios ]]&"_"&Requirment[[#This Row],[Nb phasis]]&"_"&Requirment[[#This Row],[Formula_Name]] -> ___ | B60: =Requirment[[#This Row],[Production]]&"_"&Requirment[[#This Row],[Scenarios ]]&"_"&Requirment[[#This Row],[Nb phasis]] -> __
A61: =Requirment[[#This Row],[Production]]&"_"&Requirment[[#This Row],[Scenarios ]]&"_"&Requirment[[#This Row],[Nb phasis]]&"_"&Requirment[[#This Row],[Formula_Name]] -> ___ | B61: =Requirment[[#This Row],[Production]]&"_"&Requirment[[#This Row],[Scenarios ]]&"_"&Requirment[[#This Row],[Nb phasis]] -> __
A62: =Requirment[[#This Row],[Production]]&"_"&Requirment[[#This Row],[Scenarios ]]&"_"&Requirment[[#This Row],[Nb phasis]]&"_"&Requirment[[#This Row],[Formula_Name]] -> ___ | B62: =Requirment[[#This Row],[Production]]&"_"&Requirment[[#This Row],[Scenarios ]]&"_"&Requirment[[#This Row],[Nb phasis]] -> __
A63: =Requirment[[#This Row],[Production]]&"_"&Requirment[[#This Row],[Scenarios ]]&"_"&Requirment[[#This Row],[Nb phasis]]&"_"&Requirment[[#This Row],[Formula_Name]] -> ___ | B63: =Requirment[[#This Row],[Production]]&"_"&Requirment[[#This Row],[Scenarios ]]&"_"&Requirment[[#This Row],[Nb phasis]] -> __
A64: =Requirment[[#This Row],[Production]]&"_"&Requirment[[#This Row],[Scenarios ]]&"_"&Requirment[[#This Row],[Nb phasis]]&"_"&Requirment[[#This Row],[Formula_Name]] -> ___ | B64: =Requirment[[#This Row],[Production]]&"_"&Requirment[[#This Row],[Scenarios ]]&"_"&Requirment[[#This Row],[Nb phasis]] -> __
A65: =Requirment[[#This Row],[Production]]&"_"&Requirment[[#This Row],[Scenarios ]]&"_"&Requirment[[#This Row],[Nb phasis]]&"_"&Requirment[[#This Row],[Formula_Name]] -> ___ | B65: =Requirment[[#This Row],[Production]]&"_"&Requirment[[#This Row],[Scenarios ]]&"_"&Requirment[[#This Row],[Nb phasis]] -> __
A66: =Requirment[[#This Row],[Production]]&"_"&Requirment[[#This Row],[Scenarios ]]&"_"&Requirment[[#This Row],[Nb phasis]]&"_"&Requirment[[#This Row],[Formula_Name]] -> ___ | B66: =Requirment[[#This Row],[Production]]&"_"&Requirment[[#This Row],[Scenarios ]]&"_"&Requirment[[#This Row],[Nb phasis]] -> __
A67: =Requirment[[#This Row],[Production]]&"_"&Requirment[[#This Row],[Scenarios ]]&"_"&Requirment[[#This Row],[Nb phasis]]&"_"&Requirment[[#This Row],[Formula_Name]] -> ___ | B67: =Requirment[[#This Row],[Production]]&"_"&Requirment[[#This Row],[Scenarios ]]&"_"&Requirment[[#This Row],[Nb phasis]] -> __
A68: =Requirment[[#This Row],[Production]]&"_"&Requirment[[#This Row],[Scenarios ]]&"_"&Requirment[[#This Row],[Nb phasis]]&"_"&Requirment[[#This Row],[Formula_Name]] -> ___ | B68: =Requirment[[#This Row],[Production]]&"_"&Requirment[[#This Row],[Scenarios ]]&"_"&Requirment[[#This Row],[Nb phasis]] -> __
A69: =Requirment[[#This Row],[Production]]&"_"&Requirment[[#This Row],[Scenarios ]]&"_"&Requirment[[#This Row],[Nb phasis]]&"_"&Requirment[[#This Row],[Formula_Name]] -> ___ | B69: =Requirment[[#This Row],[Production]]&"_"&Requirment[[#This Row],[Scenarios ]]&"_"&Requirment[[#This Row],[Nb phasis]] -> __
A70: =Requirment[[#This Row],[Production]]&"_"&Requirment[[#This Row],[Scenarios ]]&"_"&Requirment[[#This Row],[Nb phasis]]&"_"&Requirment[[#This Row],[Formula_Name]] -> ___ | B70: =Requirment[[#This Row],[Production]]&"_"&Requirment[[#This Row],[Scenarios ]]&"_"&Requirment[[#This Row],[Nb phasis]] -> __
A71: =Requirment[[#This Row],[Production]]&"_"&Requirment[[#This Row],[Scenarios ]]&"_"&Requirment[[#This Row],[Nb phasis]]&"_"&Requirment[[#This Row],[Formula_Name]] -> ___ | B71: =Requirment[[#This Row],[Production]]&"_"&Requirment[[#This Row],[Scenarios ]]&"_"&Requirment[[#This Row],[Nb phasis]] -> __
A72: =Requirment[[#This Row],[Production]]&"_"&Requirment[[#This Row],[Scenarios ]]&"_"&Requirment[[#This Row],[Nb phasis]]&"_"&Requirment[[#This Row],[Formula_Name]] -> ___ | B72: =Requirment[[#This Row],[Production]]&"_"&Requirment[[#This Row],[Scenarios ]]&"_"&Requirment[[#This Row],[Nb phasis]] -> __
A73: =Requirment[[#This Row],[Production]]&"_"&Requirment[[#This Row],[Scenarios ]]&"_"&Requirment[[#This Row],[Nb phasis]]&"_"&Requirment[[#This Row],[Formula_Name]] -> ___ | B73: =Requirment[[#This Row],[Production]]&"_"&Requirment[[#This Row],[Scenarios ]]&"_"&Requirment[[#This Row],[Nb phasis]] -> __
A74: =Requirment[[#This Row],[Production]]&"_"&Requirment[[#This Row],[Scenarios ]]&"_"&Requirment[[#This Row],[Nb phasis]]&"_"&Requirment[[#This Row],[Formula_Name]] -> ___ | B74: =Requirment[[#This Row],[Production]]&"_"&Requirment[[#This Row],[Scenarios ]]&"_"&Requirment[[#This Row],[Nb phasis]] -> __
A75: =Requirment[[#This Row],[Production]]&"_"&Requirment[[#This Row],[Scenarios ]]&"_"&Requirment[[#This Row],[Nb phasis]]&"_"&Requirment[[#This Row],[Formula_Name]] -> ___ | B75: =Requirment[[#This Row],[Production]]&"_"&Requirment[[#This Row],[Scenarios ]]&"_"&Requirment[[#This Row],[Nb phasis]] -> __
A76: =Requirment[[#This Row],[Production]]&"_"&Requirment[[#This Row],[Scenarios ]]&"_"&Requirment[[#This Row],[Nb phasis]]&"_"&Requirment[[#This Row],[Formula_Name]] -> ___ | B76: =Requirment[[#This Row],[Production]]&"_"&Requirment[[#This Row],[Scenarios ]]&"_"&Requirment[[#This Row],[Nb phasis]] -> __
A77: =Requirment[[#This Row],[Production]]&"_"&Requirment[[#This Row],[Scenarios ]]&"_"&Requirment[[#This Row],[Nb phasis]]&"_"&Requirment[[#This Row],[Formula_Name]] -> ___ | B77: =Requirment[[#This Row],[Production]]&"_"&Requirment[[#This Row],[Scenarios ]]&"_"&Requirment[[#This Row],[Nb phasis]] -> __
A78: =Requirment[[#This Row],[Production]]&"_"&Requirment[[#This Row],[Scenarios ]]&"_"&Requirment[[#This Row],[Nb phasis]]&"_"&Requirment[[#This Row],[Formula_Name]] -> ___ | B78: =Requirment[[#This Row],[Production]]&"_"&Requirment[[#This Row],[Scenarios ]]&"_"&Requirment[[#This Row],[Nb phasis]] -> __
A79: =Requirment[[#This Row],[Production]]&"_"&Requirment[[#This Row],[Scenarios ]]&"_"&Requirment[[#This Row],[Nb phasis]]&"_"&Requirment[[#This Row],[Formula_Name]] -> ___ | B79: =Requirment[[#This Row],[Production]]&"_"&Requirment[[#This Row],[Scenarios ]]&"_"&Requirment[[#This Row],[Nb phasis]] -> __
A80: =Requirment[[#This Row],[Production]]&"_"&Requirment[[#This Row],[Scenarios ]]&"_"&Requirment[[#This Row],[Nb phasis]]&"_"&Requirment[[#This Row],[Formula_Name]] -> ___ | B80: =Requirment[[#This Row],[Production]]&"_"&Requirment[[#This Row],[Scenarios ]]&"_"&Requirment[[#This Row],[Nb phasis]] -> __
A81: =Requirment[[#This Row],[Production]]&"_"&Requirment[[#This Row],[Scenarios ]]&"_"&Requirment[[#This Row],[Nb phasis]]&"_"&Requirment[[#This Row],[Formula_Name]] -> ___ | B81: =Requirment[[#This Row],[Production]]&"_"&Requirment[[#This Row],[Scenarios ]]&"_"&Requirment[[#This Row],[Nb phasis]] -> __
A82: =Requirment[[#This Row],[Production]]&"_"&Requirment[[#This Row],[Scenarios ]]&"_"&Requirment[[#This Row],[Nb phasis]]&"_"&Requirment[[#This Row],[Formula_Name]] -> ___ | B82: =Requirment[[#This Row],[Production]]&"_"&Requirment[[#This Row],[Scenarios ]]&"_"&Requirment[[#This Row],[Nb phasis]] -> __
A83: =Requirment[[#This Row],[Production]]&"_"&Requirment[[#This Row],[Scenarios ]]&"_"&Requirment[[#This Row],[Nb phasis]]&"_"&Requirment[[#This Row],[Formula_Name]] -> ___ | B83: =Requirment[[#This Row],[Production]]&"_"&Requirment[[#This Row],[Scenarios ]]&"_"&Requirment[[#This Row],[Nb phasis]] -> __
A84: =Requirment[[#This Row],[Production]]&"_"&Requirment[[#This Row],[Scenarios ]]&"_"&Requirment[[#This Row],[Nb phasis]]&"_"&Requirment[[#This Row],[Formula_Name]] -> ___ | B84: =Requirment[[#This Row],[Production]]&"_"&Requirment[[#This Row],[Scenarios ]]&"_"&Requirment[[#This Row],[Nb phasis]] -> __
A85: =Requirment[[#This Row],[Production]]&"_"&Requirment[[#This Row],[Scenarios ]]&"_"&Requirment[[#This Row],[Nb phasis]]&"_"&Requirment[[#This Row],[Formula_Name]] -> ___ | B85: =Requirment[[#This Row],[Production]]&"_"&Requirment[[#This Row],[Scenarios ]]&"_"&Requirment[[#This Row],[Nb phasis]] -> __
A86: =Requirment[[#This Row],[Production]]&"_"&Requirment[[#This Row],[Scenarios ]]&"_"&Requirment[[#This Row],[Nb phasis]]&"_"&Requirment[[#This Row],[Formula_Name]] -> ___ | B86: =Requirment[[#This Row],[Production]]&"_"&Requirment[[#This Row],[Scenarios ]]&"_"&Requirment[[#This Row],[Nb phasis]] -> __
A87: =Requirment[[#This Row],[Production]]&"_"&Requirment[[#This Row],[Scenarios ]]&"_"&Requirment[[#This Row],[Nb phasis]]&"_"&Requirment[[#This Row],[Formula_Name]] -> ___ | B87: =Requirment[[#This Row],[Production]]&"_"&Requirment[[#This Row],[Scenarios ]]&"_"&Requirment[[#This Row],[Nb phasis]] -> __
A88: =Requirment[[#This Row],[Production]]&"_"&Requirment[[#This Row],[Scenarios ]]&"_"&Requirment[[#This Row],[Nb phasis]]&"_"&Requirment[[#This Row],[Formula_Name]] -> ___ | B88: =Requirment[[#This Row],[Production]]&"_"&Requirment[[#This Row],[Scenarios ]]&"_"&Requirment[[#This Row],[Nb phasis]] -> __
A89: =Requirment[[#This Row],[Production]]&"_"&Requirment[[#This Row],[Scenarios ]]&"_"&Requirment[[#This Row],[Nb phasis]]&"_"&Requirment[[#This Row],[Formula_Name]] -> ___ | B89: =Requirment[[#This Row],[Production]]&"_"&Requirment[[#This Row],[Scenarios ]]&"_"&Requirment[[#This Row],[Nb phasis]] -> __
A90: =Requirment[[#This Row],[Production]]&"_"&Requirment[[#This Row],[Scenarios ]]&"_"&Requirment[[#This Row],[Nb phasis]]&"_"&Requirment[[#This Row],[Formula_Name]] -> ___ | B90: =Requirment[[#This Row],[Production]]&"_"&Requirment[[#This Row],[Scenarios ]]&"_"&Requirment[[#This Row],[Nb phasis]] -> __
A91: =Requirment[[#This Row],[Production]]&"_"&Requirment[[#This Row],[Scenarios ]]&"_"&Requirment[[#This Row],[Nb phasis]]&"_"&Requirment[[#This Row],[Formula_Name]] -> ___ | B91: =Requirment[[#This Row],[Production]]&"_"&Requirment[[#This Row],[Scenarios ]]&"_"&Requirment[[#This Row],[Nb phasis]] -> __
A92: =Requirment[[#This Row],[Production]]&"_"&Requirment[[#This Row],[Scenarios ]]&"_"&Requirment[[#This Row],[Nb phasis]]&"_"&Requirment[[#This Row],[Formula_Name]] -> ___ | B92: =Requirment[[#This Row],[Production]]&"_"&Requirment[[#This Row],[Scenarios ]]&"_"&Requirment[[#This Row],[Nb phasis]] -> __
A93: =Requirment[[#This Row],[Production]]&"_"&Requirment[[#This Row],[Scenarios ]]&"_"&Requirment[[#This Row],[Nb phasis]]&"_"&Requirment[[#This Row],[Formula_Name]] -> ___ | B93: =Requirment[[#This Row],[Production]]&"_"&Requirment[[#This Row],[Scenarios ]]&"_"&Requirment[[#This Row],[Nb phasis]] -> __
A94: =Requirment[[#This Row],[Production]]&"_"&Requirment[[#This Row],[Scenarios ]]&"_"&Requirment[[#This Row],[Nb phasis]]&"_"&Requirment[[#This Row],[Formula_Name]] -> ___ | B94: =Requirment[[#This Row],[Production]]&"_"&Requirment[[#This Row],[Scenarios ]]&"_"&Requirment[[#This Row],[Nb phasis]] -> __
A95: =Requirment[[#This Row],[Production]]&"_"&Requirment[[#This Row],[Scenarios ]]&"_"&Requirment[[#This Row],[Nb phasis]]&"_"&Requirment[[#This Row],[Formula_Name]] -> ___ | B95: =Requirment[[#This Row],[Production]]&"_"&Requirment[[#This Row],[Scenarios ]]&"_"&Requirment[[#This Row],[Nb phasis]] -> __
A96: =Requirment[[#This Row],[Production]]&"_"&Requirment[[#This Row],[Scenarios ]]&"_"&Requirment[[#This Row],[Nb phasis]]&"_"&Requirment[[#This Row],[Formula_Name]] -> ___ | B96: =Requirment[[#This Row],[Production]]&"_"&Requirment[[#This Row],[Scenarios ]]&"_"&Requirment[[#This Row],[Nb phasis]] -> __
A97: =Requirment[[#This Row],[Production]]&"_"&Requirment[[#This Row],[Scenarios ]]&"_"&Requirment[[#This Row],[Nb phasis]]&"_"&Requirment[[#This Row],[Formula_Name]] -> ___ | B97: =Requirment[[#This Row],[Production]]&"_"&Requirment[[#This Row],[Scenarios ]]&"_"&Requirment[[#This Row],[Nb phasis]] -> __
A98: =Requirment[[#This Row],[Production]]&"_"&Requirment[[#This Row],[Scenarios ]]&"_"&Requirment[[#This Row],[Nb phasis]]&"_"&Requirment[[#This Row],[Formula_Name]] -> ___ | B98: =Requirment[[#This Row],[Production]]&"_"&Requirment[[#This Row],[Scenarios ]]&"_"&Requirment[[#This Row],[Nb phasis]] -> __
A99: =Requirment[[#This Row],[Production]]&"_"&Requirment[[#This Row],[Scenarios ]]&"_"&Requirment[[#This Row],[Nb phasis]]&"_"&Requirment[[#This Row],[Formula_Name]] -> ___ | B99: =Requirment[[#This Row],[Production]]&"_"&Requirment[[#This Row],[Scenarios ]]&"_"&Requirment[[#This Row],[Nb phasis]] -> __
A100: =Requirment[[#This Row],[Production]]&"_"&Requirment[[#This Row],[Scenarios ]]&"_"&Requirment[[#This Row],[Nb phasis]]&"_"&Requirment[[#This Row],[Formula_Name]] -> ___ | B100: =Requirment[[#This Row],[Production]]&"_"&Requirment[[#This Row],[Scenarios ]]&"_"&Requirment[[#This Row],[Nb phasis]] -> __
A101: =Requirment[[#This Row],[Production]]&"_"&Requirment[[#This Row],[Scenarios ]]&"_"&Requirment[[#This Row],[Nb phasis]]&"_"&Requirment[[#This Row],[Formula_Name]] -> ___ | B101: =Requirment[[#This Row],[Production]]&"_"&Requirment[[#This Row],[Scenarios ]]&"_"&Requirment[[#This Row],[Nb phasis]] -> __
A102: =Requirment[[#This Row],[Production]]&"_"&Requirment[[#This Row],[Scenarios ]]&"_"&Requirment[[#This Row],[Nb phasis]]&"_"&Requirment[[#This Row],[Formula_Name]] -> ___ | B102: =Requirment[[#This Row],[Production]]&"_"&Requirment[[#This Row],[Scenarios ]]&"_"&Requirment[[#This Row],[Nb phasis]] -> __
A103: =Requirment[[#This Row],[Production]]&"_"&Requirment[[#This Row],[Scenarios ]]&"_"&Requirment[[#This Row],[Nb phasis]]&"_"&Requirment[[#This Row],[Formula_Name]] -> ___ | B103: =Requirment[[#This Row],[Production]]&"_"&Requirment[[#This Row],[Scenarios ]]&"_"&Requirment[[#This Row],[Nb phasis]] -> __
A104: =Requirment[[#This Row],[Production]]&"_"&Requirment[[#This Row],[Scenarios ]]&"_"&Requirment[[#This Row],[Nb phasis]]&"_"&Requirment[[#This Row],[Formula_Name]] -> ___ | B104: =Requirment[[#This Row],[Production]]&"_"&Requirment[[#This Row],[Scenarios ]]&"_"&Requirment[[#This Row],[Nb phasis]] -> __
A105: =Requirment[[#This Row],[Production]]&"_"&Requirment[[#This Row],[Scenarios ]]&"_"&Requirment[[#This Row],[Nb phasis]]&"_"&Requirment[[#This Row],[Formula_Name]] -> ___ | B105: =Requirment[[#This Row],[Production]]&"_"&Requirment[[#This Row],[Scenarios ]]&"_"&Requirment[[#This Row],[Nb phasis]] -> __
A106: =Requirment[[#This Row],[Production]]&"_"&Requirment[[#This Row],[Scenarios ]]&"_"&Requirment[[#This Row],[Nb phasis]]&"_"&Requirment[[#This Row],[Formula_Name]] -> ___ | B106: =Requirment[[#This Row],[Production]]&"_"&Requirment[[#This Row],[Scenarios ]]&"_"&Requirment[[#This Row],[Nb phasis]] -> __
A107: =Requirment[[#This Row],[Production]]&"_"&Requirment[[#This Row],[Scenarios ]]&"_"&Requirment[[#This Row],[Nb phasis]]&"_"&Requirment[[#This Row],[Formula_Name]] -> ___ | B107: =Requirment[[#This Row],[Production]]&"_"&Requirment[[#This Row],[Scenarios ]]&"_"&Requirment[[#This Row],[Nb phasis]] -> __
A108: =Requirment[[#This Row],[Production]]&"_"&Requirment[[#This Row],[Scenarios ]]&"_"&Requirment[[#This Row],[Nb phasis]]&"_"&Requirment[[#This Row],[Formula_Name]] -> ___ | B108: =Requirment[[#This Row],[Production]]&"_"&Requirment[[#This Row],[Scenarios ]]&"_"&Requirment[[#This Row],[Nb phasis]] -> __
A109: =Requirment[[#This Row],[Production]]&"_"&Requirment[[#This Row],[Scenarios ]]&"_"&Requirment[[#This Row],[Nb phasis]]&"_"&Requirment[[#This Row],[Formula_Name]] -> ___ | B109: =Requirment[[#This Row],[Production]]&"_"&Requirment[[#This Row],[Scenarios ]]&"_"&Requirment[[#This Row],[Nb phasis]] -> __
A110: =Requirment[[#This Row],[Production]]&"_"&Requirment[[#This Row],[Scenarios ]]&"_"&Requirment[[#This Row],[Nb phasis]]&"_"&Requirment[[#This Row],[Formula_Name]] -> ___ | B110: =Requirment[[#This Row],[Production]]&"_"&Requirment[[#This Row],[Scenarios ]]&"_"&Requirment[[#This Row],[Nb phasis]] -> __
A111: =Requirment[[#This Row],[Production]]&"_"&Requirment[[#This Row],[Scenarios ]]&"_"&Requirment[[#This Row],[Nb phasis]]&"_"&Requirment[[#This Row],[Formula_Name]] -> ___ | B111: =Requirment[[#This Row],[Production]]&"_"&Requirment[[#This Row],[Scenarios ]]&"_"&Requirment[[#This Row],[Nb phasis]] -> __
A112: =Requirment[[#This Row],[Production]]&"_"&Requirment[[#This Row],[Scenarios ]]&"_"&Requirment[[#This Row],[Nb phasis]]&"_"&Requirment[[#This Row],[Formula_Name]] -> ___ | B112: =Requirment[[#This Row],[Production]]&"_"&Requirment[[#This Row],[Scenarios ]]&"_"&Requirment[[#This Row],[Nb phasis]] -> __
A113: =Requirment[[#This Row],[Production]]&"_"&Requirment[[#This Row],[Scenarios ]]&"_"&Requirment[[#This Row],[Nb phasis]]&"_"&Requirment[[#This Row],[Formula_Name]] -> ___ | B113: =Requirment[[#This Row],[Production]]&"_"&Requirment[[#This Row],[Scenarios ]]&"_"&Requirment[[#This Row],[Nb phasis]] -> __
A114: =Requirment[[#This Row],[Production]]&"_"&Requirment[[#This Row],[Scenarios ]]&"_"&Requirment[[#This Row],[Nb phasis]]&"_"&Requirment[[#This Row],[Formula_Name]] -> ___ | B114: =Requirment[[#This Row],[Production]]&"_"&Requirment[[#This Row],[Scenarios ]]&"_"&Requirment[[#This Row],[Nb phasis]] -> __
A115: =Requirment[[#This Row],[Production]]&"_"&Requirment[[#This Row],[Scenarios ]]&"_"&Requirment[[#This Row],[Nb phasis]]&"_"&Requirment[[#This Row],[Formula_Name]] -> ___ | B115: =Requirment[[#This Row],[Production]]&"_"&Requirment[[#This Row],[Scenarios ]]&"_"&Requirment[[#This Row],[Nb phasis]] -> __
A116: =Requirment[[#This Row],[Production]]&"_"&Requirment[[#This Row],[Scenarios ]]&"_"&Requirment[[#This Row],[Nb phasis]]&"_"&Requirment[[#This Row],[Formula_Name]] -> ___ | B116: =Requirment[[#This Row],[Production]]&"_"&Requirment[[#This Row],[Scenarios ]]&"_"&Requirment[[#This Row],[Nb phasis]] -> __
A117: =Requirment[[#This Row],[Production]]&"_"&Requirment[[#This Row],[Scenarios ]]&"_"&Requirment[[#This Row],[Nb phasis]]&"_"&Requirment[[#This Row],[Formula_Name]] -> ___ | B117: =Requirment[[#This Row],[Production]]&"_"&Requirment[[#This Row],[Scenarios ]]&"_"&Requirment[[#This Row],[Nb phasis]] -> __
A118: =Requirment[[#This Row],[Production]]&"_"&Requirment[[#This Row],[Scenarios ]]&"_"&Requirment[[#This Row],[Nb phasis]]&"_"&Requirment[[#This Row],[Formula_Name]] -> ___ | B118: =Requirment[[#This Row],[Production]]&"_"&Requirment[[#This Row],[Scenarios ]]&"_"&Requirment[[#This Row],[Nb phasis]] -> __
A119: =Requirment[[#This Row],[Production]]&"_"&Requirment[[#This Row],[Scenarios ]]&"_"&Requirment[[#This Row],[Nb phasis]]&"_"&Requirment[[#This Row],[Formula_Name]] -> ___ | B119: =Requirment[[#This Row],[Production]]&"_"&Requirment[[#This Row],[Scenarios ]]&"_"&Requirment[[#This Row],[Nb phasis]] -> __
A120: =Requirment[[#This Row],[Production]]&"_"&Requirment[[#This Row],[Scenarios ]]&"_"&Requirment[[#This Row],[Nb phasis]]&"_"&Requirment[[#This Row],[Formula_Name]] -> ___ | B120: =Requirment[[#This Row],[Production]]&"_"&Requirment[[#This Row],[Scenarios ]]&"_"&Requirment[[#This Row],[Nb phasis]] -> __
A121: =Requirment[[#This Row],[Production]]&"_"&Requirment[[#This Row],[Scenarios ]]&"_"&Requirment[[#This Row],[Nb phasis]]&"_"&Requirment[[#This Row],[Formula_Name]] -> ___ | B121: =Requirment[[#This Row],[Production]]&"_"&Requirment[[#This Row],[Scenarios ]]&"_"&Requirment[[#This Row],[Nb phasis]] -> __
A122: =Requirment[[#This Row],[Production]]&"_"&Requirment[[#This Row],[Scenarios ]]&"_"&Requirment[[#This Row],[Nb phasis]]&"_"&Requirment[[#This Row],[Formula_Name]] -> ___ | B122: =Requirment[[#This Row],[Production]]&"_"&Requirment[[#This Row],[Scenarios ]]&"_"&Requirment[[#This Row],[Nb phasis]] -> __
A123: =Requirment[[#This Row],[Production]]&"_"&Requirment[[#This Row],[Scenarios ]]&"_"&Requirment[[#This Row],[Nb phasis]]&"_"&Requirment[[#This Row],[Formula_Name]] -> ___ | B123: =Requirment[[#This Row],[Production]]&"_"&Requirment[[#This Row],[Scenarios ]]&"_"&Requirment[[#This Row],[Nb phasis]] -> __
A124: =Requirment[[#This Row],[Production]]&"_"&Requirment[[#This Row],[Scenarios ]]&"_"&Requirment[[#This Row],[Nb phasis]]&"_"&Requirment[[#This Row],[Formula_Name]] -> ___ | B124: =Requirment[[#This Row],[Production]]&"_"&Requirment[[#This Row],[Scenarios ]]&"_"&Requirment[[#This Row],[Nb phasis]] -> __
A125: =Requirment[[#This Row],[Production]]&"_"&Requirment[[#This Row],[Scenarios ]]&"_"&Requirment[[#This Row],[Nb phasis]]&"_"&Requirment[[#This Row],[Formula_Name]] -> ___ | B125: =Requirment[[#This Row],[Production]]&"_"&Requirment[[#This Row],[Scenarios ]]&"_"&Requirment[[#This Row],[Nb phasis]] -> __
A126: =Requirment[[#This Row],[Production]]&"_"&Requirment[[#This Row],[Scenarios ]]&"_"&Requirment[[#This Row],[Nb phasis]]&"_"&Requirment[[#This Row],[Formula_Name]] -> ___ | B126: =Requirment[[#This Row],[Production]]&"_"&Requirment[[#This Row],[Scenarios ]]&"_"&Requirment[[#This Row],[Nb phasis]] -> __
A127: =Requirment[[#This Row],[Production]]&"_"&Requirment[[#This Row],[Scenarios ]]&"_"&Requirment[[#This Row],[Nb phasis]]&"_"&Requirment[[#This Row],[Formula_Name]] -> ___ | B127: =Requirment[[#This Row],[Production]]&"_"&Requirment[[#This Row],[Scenarios ]]&"_"&Requirment[[#This Row],[Nb phasis]] -> __
A128: =Requirment[[#This Row],[Production]]&"_"&Requirment[[#This Row],[Scenarios ]]&"_"&Requirment[[#This Row],[Nb phasis]]&"_"&Requirment[[#This Row],[Formula_Name]] -> ___ | B128: =Requirment[[#This Row],[Production]]&"_"&Requirment[[#This Row],[Scenarios ]]&"_"&Requirment[[#This Row],[Nb phasis]] -> __
A129: =Requirment[[#This Row],[Production]]&"_"&Requirment[[#This Row],[Scenarios ]]&"_"&Requirment[[#This Row],[Nb phasis]]&"_"&Requirment[[#This Row],[Formula_Name]] -> ___ | B129: =Requirment[[#This Row],[Production]]&"_"&Requirment[[#This Row],[Scenarios ]]&"_"&Requirment[[#This Row],[Nb phasis]] -> __
A130: =Requirment[[#This Row],[Production]]&"_"&Requirment[[#This Row],[Scenarios ]]&"_"&Requirment[[#This Row],[Nb phasis]]&"_"&Requirment[[#This Row],[Formula_Name]] -> ___ | B130: =Requirment[[#This Row],[Production]]&"_"&Requirment[[#This Row],[Scenarios ]]&"_"&Requirment[[#This Row],[Nb phasis]] -> __
A131: =Requirment[[#This Row],[Production]]&"_"&Requirment[[#This Row],[Scenarios ]]&"_"&Requirment[[#This Row],[Nb phasis]]&"_"&Requirment[[#This Row],[Formula_Name]] -> ___ | B131: =Requirment[[#This Row],[Production]]&"_"&Requirment[[#This Row],[Scenarios ]]&"_"&Requirment[[#This Row],[Nb phasis]] -> __
A132: =Requirment[[#This Row],[Production]]&"_"&Requirment[[#This Row],[Scenarios ]]&"_"&Requirment[[#This Row],[Nb phasis]]&"_"&Requirment[[#This Row],[Formula_Name]] -> ___ | B132: =Requirment[[#This Row],[Production]]&"_"&Requirment[[#This Row],[Scenarios ]]&"_"&Requirment[[#This Row],[Nb phasis]] -> __
A133: =Requirment[[#This Row],[Production]]&"_"&Requirment[[#This Row],[Scenarios ]]&"_"&Requirment[[#This Row],[Nb phasis]]&"_"&Requirment[[#This Row],[Formula_Name]] -> ___ | B133: =Requirment[[#This Row],[Production]]&"_"&Requirment[[#This Row],[Scenarios ]]&"_"&Requirment[[#This Row],[Nb phasis]] -> __
A134: =Requirment[[#This Row],[Production]]&"_"&Requirment[[#This Row],[Scenarios ]]&"_"&Requirment[[#This Row],[Nb phasis]]&"_"&Requirment[[#This Row],[Formula_Name]] -> ___ | B134: =Requirment[[#This Row],[Production]]&"_"&Requirment[[#This Row],[Scenarios ]]&"_"&Requirment[[#This Row],[Nb phasis]] -> __
A135: =Requirment[[#This Row],[Production]]&"_"&Requirment[[#This Row],[Scenarios ]]&"_"&Requirment[[#This Row],[Nb phasis]]&"_"&Requirment[[#This Row],[Formula_Name]] -> ___ | B135: =Requirment[[#This Row],[Production]]&"_"&Requirment[[#This Row],[Scenarios ]]&"_"&Requirment[[#This Row],[Nb phasis]] -> __
A136: =Requirment[[#This Row],[Production]]&"_"&Requirment[[#This Row],[Scenarios ]]&"_"&Requirment[[#This Row],[Nb phasis]]&"_"&Requirment[[#This Row],[Formula_Name]] -> ___ | B136: =Requirment[[#This Row],[Production]]&"_"&Requirment[[#This Row],[Scenarios ]]&"_"&Requirment[[#This Row],[Nb phasis]] -> __
A137: =Requirment[[#This Row],[Production]]&"_"&Requirment[[#This Row],[Scenarios ]]&"_"&Requirment[[#This Row],[Nb phasis]]&"_"&Requirment[[#This Row],[Formula_Name]] -> ___ | B137: =Requirment[[#This Row],[Production]]&"_"&Requirment[[#This Row],[Scenarios ]]&"_"&Requirment[[#This Row],[Nb phasis]] -> __
A138: =Requirment[[#This Row],[Production]]&"_"&Requirment[[#This Row],[Scenarios ]]&"_"&Requirment[[#This Row],[Nb phasis]]&"_"&Requirment[[#This Row],[Formula_Name]] -> ___ | B138: =Requirment[[#This Row],[Production]]&"_"&Requirment[[#This Row],[Scenarios ]]&"_"&Requirment[[#This Row],[Nb phasis]] -> __
A139: =Requirment[[#This Row],[Production]]&"_"&Requirment[[#This Row],[Scenarios ]]&"_"&Requirment[[#This Row],[Nb phasis]]&"_"&Requirment[[#This Row],[Formula_Name]] -> ___ | B139: =Requirment[[#This Row],[Production]]&"_"&Requirment[[#This Row],[Scenarios ]]&"_"&Requirment[[#This Row],[Nb phasis]] -> __
A140: =Requirment[[#This Row],[Production]]&"_"&Requirment[[#This Row],[Scenarios ]]&"_"&Requirment[[#This Row],[Nb phasis]]&"_"&Requirment[[#This Row],[Formula_Name]] -> ___ | B140: =Requirment[[#This Row],[Production]]&"_"&Requirment[[#This Row],[Scenarios ]]&"_"&Requirment[[#This Row],[Nb phasis]] -> __
A141: =Requirment[[#This Row],[Production]]&"_"&Requirment[[#This Row],[Scenarios ]]&"_"&Requirment[[#This Row],[Nb phasis]]&"_"&Requirment[[#This Row],[Formula_Name]] -> ___ | B141: =Requirment[[#This Row],[Production]]&"_"&Requirment[[#This Row],[Scenarios ]]&"_"&Requirment[[#This Row],[Nb phasis]] -> __
A142: =Requirment[[#This Row],[Production]]&"_"&Requirment[[#This Row],[Scenarios ]]&"_"&Requirment[[#This Row],[Nb phasis]]&"_"&Requirment[[#This Row],[Formula_Name]] -> ___ | B142: =Requirment[[#This Row],[Production]]&"_"&Requirment[[#This Row],[Scenarios ]]&"_"&Requirment[[#This Row],[Nb phasis]] -> __
A143: =Requirment[[#This Row],[Production]]&"_"&Requirment[[#This Row],[Scenarios ]]&"_"&Requirment[[#This Row],[Nb phasis]]&"_"&Requirment[[#This Row],[Formula_Name]] -> ___ | B143: =Requirment[[#This Row],[Production]]&"_"&Requirment[[#This Row],[Scenarios ]]&"_"&Requirment[[#This Row],[Nb phasis]] -> __
A144: =Requirment[[#This Row],[Production]]&"_"&Requirment[[#This Row],[Scenarios ]]&"_"&Requirment[[#This Row],[Nb phasis]]&"_"&Requirment[[#This Row],[Formula_Name]] -> ___ | B144: =Requirment[[#This Row],[Production]]&"_"&Requirment[[#This Row],[Scenarios ]]&"_"&Requirment[[#This Row],[Nb phasis]] -> __
A145: =Requirment[[#This Row],[Production]]&"_"&Requirment[[#This Row],[Scenarios ]]&"_"&Requirment[[#This Row],[Nb phasis]]&"_"&Requirment[[#This Row],[Formula_Name]] -> ___ | B145: =Requirment[[#This Row],[Production]]&"_"&Requirment[[#This Row],[Scenarios ]]&"_"&Requirment[[#This Row],[Nb phasis]] -> __
A146: =Requirment[[#This Row],[Production]]&"_"&Requirment[[#This Row],[Scenarios ]]&"_"&Requirment[[#This Row],[Nb phasis]]&"_"&Requirment[[#This Row],[Formula_Name]] -> ___ | B146: =Requirment[[#This Row],[Production]]&"_"&Requirment[[#This Row],[Scenarios ]]&"_"&Requirment[[#This Row],[Nb phasis]] -> __
A147: =Requirment[[#This Row],[Production]]&"_"&Requirment[[#This Row],[Scenarios ]]&"_"&Requirment[[#This Row],[Nb phasis]]&"_"&Requirment[[#This Row],[Formula_Name]] -> ___ | B147: =Requirment[[#This Row],[Production]]&"_"&Requirment[[#This Row],[Scenarios ]]&"_"&Requirment[[#This Row],[Nb phasis]] -> __
A148: =Requirment[[#This Row],[Production]]&"_"&Requirment[[#This Row],[Scenarios ]]&"_"&Requirment[[#This Row],[Nb phasis]]&"_"&Requirment[[#This Row],[Formula_Name]] -> ___ | B148: =Requirment[[#This Row],[Production]]&"_"&Requirment[[#This Row],[Scenarios ]]&"_"&Requirment[[#This Row],[Nb phasis]] -> __
A149: =Requirment[[#This Row],[Production]]&"_"&Requirment[[#This Row],[Scenarios ]]&"_"&Requirment[[#This Row],[Nb phasis]]&"_"&Requirment[[#This Row],[Formula_Name]] -> ___ | B149: =Requirment[[#This Row],[Production]]&"_"&Requirment[[#This Row],[Scenarios ]]&"_"&Requirment[[#This Row],[Nb phasis]] -> __
A150: =Requirment[[#This Row],[Production]]&"_"&Requirment[[#This Row],[Scenarios ]]&"_"&Requirment[[#This Row],[Nb phasis]]&"_"&Requirment[[#This Row],[Formula_Name]] -> ___ | B150: =Requirment[[#This Row],[Production]]&"_"&Requirment[[#This Row],[Scenarios ]]&"_"&Requirment[[#This Row],[Nb phasis]] -> __

Sheet Roughage_Forage
A2: STEP 1 : Feeding scenario | B2: Identity of the farm: | C2: Example | L2: Select the good scenario | O2: Broiler_2.6 kg alive at 98 days_3 feeds_3
B3: Farmer's name: | C3: Example | L3: Feeding phase | O3: Finishing
B4: Date: | C4: 2021-02-01 | G4: =TEXT(C4,"aaaammjj") -> 20210201 | L4: Duration | O4: =_xlfn.IFNA(VLOOKUP($O$9,Requirment[],7,FALSE),) -> 63-98 day
B5: Production: | C5: Broiler | L5: This type of feed is used in | O5: =_xlfn.IFNA(VLOOKUP($O$9,Requirment[],8,FALSE),) -> France
B6: Poultry Flocks | C6: 15 | L6: Category of animals | O6: =_xlfn.IFNA(VLOOKUP($O$9,Requirment[],9,FALSE),) -> broiler
B7: Objectives (kg, days) | C7: 2.5 Kg in 100 days
B8: Number of feed phases | C8: 3
B9: Type of animals | C9: Broiler | O9: =O2&"_"&O3 -> Broiler_2.6 kg alive at 98 days_3 feeds_3_Finishing
A11: STEP 2 : Roughage/forage intake and nutritionnal value | B11: Forage | C11: Intake (Kg Fresh) | D11: DM (%) | E11: ME roaster MJ/Kg | F11: CP % | G11: Fat % | H11: Fiber % | I11: LYS % | J11: MET % | K11: MET+CYS % | L11: THR % | M11: TRY % | N11: DIS LYS poultry % | O11: DIS MET poultry % | P11: DIS MET+CYS poultry % | Q11: DIS THR poultry % raw | R11: DIS TRY poultry % raw | S11: Ca g/kg Raw | T11: P g/kg Raw | U11: Na g/kg Raw
B12: Red clover silage | C12: 0.01 | D12: 0.35 | E12: 13.60 | F12: =F18/E18*E12 -> 17.11 | G12: =3.1/0.274 -> 11.31 | H12: 10.00 | I12: 0.00 | J12: 0.00 | K12: 0.00 | L12: 0.00 | M12: 0.00 | N12: 0.00 | O12: 0.61 | P12: 0.27 | Q12: 0.21 | R12: 0.00 | S12: 0.06 | T12: 0.00 | U12: 0.00
B13: Ex: List | C13: 0.00 | D13: 0.00 | E13: 0.00 | F13: 0.00 | G13: 0.00 | H13: 0.00 | I13: 0.00 | J13: 0.00 | K13: 0.00 | L13: 0.00 | M13: 0.00 | N13: 0.00 | O13: 0.00 | P13: 0.00 | Q13: 0.00 | R13: 0.00 | S13: 0.00 | T13: 0.00 | U13: 0.00
B15: TOTAL FORAGE | C15: =SUM(C12:C13) -> 0.01 | E15: =SUMPRODUCT($C$12:$C$13*$D$12:$D$13*E12:E13) -> 0.05 | F15: =SUMPRODUCT($C$12:$C$13*$D$12:$D$13*F12:F13) -> 0.06 | G15: =SUMPRODUCT($C$12:$C$13*$D$12:$D$13*G12:G13) -> 0.04 | H15: =SUMPRODUCT($C$12:$C$13*$D$12:$D$13*H12:H13) -> 0.04 | I15: =SUMPRODUCT($C$12:$C$13*$D$12:$D$13*I12:I13) -> 0.00 | J15: =SUMPRODUCT($C$12:$C$13*$D$12:$D$13*J12:J13) -> 0.00 | K15: =SUMPRODUCT($C$12:$C$13*$D$12:$D$13*K12:K13) -> 0.00 | L15: =SUMPRODUCT($C$12:$C$13*$D$12:$D$13*L12:L13) -> 0.00 | M15: =SUMPRODUCT($C$12:$C$13*$D$12:$D$13*M12:M13) -> 0.00 | N15: =SUMPRODUCT($C$12:$C$13*$D$12:$D$13*N12:N13) -> 0.00 | O15: =SUMPRODUCT($C$12:$C$13*$D$12:$D$13*O12:O13) -> 0.00 | P15: =SUMPRODUCT($C$12:$C$13*$D$12:$D$13*P12:P13) -> 0.00 | Q15: =SUMPRODUCT($C$12:$C$13*$D$12:$D$13*Q12:Q13) -> 0.00 | R15: =SUMPRODUCT($C$12:$C$13*$D$12:$D$13*R12:R13) -> 0.00 | S15: =SUMPRODUCT($C$12:$C$13*$D$12:$D$13*S12:S13) -> 0.00 | T15: =SUMPRODUCT($C$12:$C$13*$D$12:$D$13*T12:T13) -> 0.00 | U15: =SUMPRODUCT($C$12:$C$13*$D$12:$D$13*U12:U13) -> 0.00
A17: STEP 3 : Animal needs and classical ration planning | E17: ME roaster MJ/Kg | F17: CP % | G17: Fat % | H17: Fiber % | I17: LYS % | J17: MET % | K17: MET+CYS % | L17: THR % | M17: TRY % | N17: DIS LYS poultry % | O17: DIS MET poultry % | P17: DIS MET+CYS poultry % | Q17: DIS THR poultry % raw | R17: DIS TRY poultry % raw | S17: Ca g/kg Raw | T17: P g/kg Raw | U17: Na g/kg Raw
D18: Min | E18: =_xlfn.IFNA(VLOOKUP($O$9,Requirment[],10,FALSE)," ") -> 11.92 | F18: =_xlfn.IFNA(VLOOKUP($O$9,Requirment[],11,FALSE)," ") -> 15.00 | G18: =_xlfn.IFNA(VLOOKUP($O$9,Requirment[],12,FALSE)," ") -> 2.00 | H18: =_xlfn.IFNA(VLOOKUP($O$9,Requirment[],13,FALSE)," ") -> 0.00 | I18: =_xlfn.IFNA(VLOOKUP($O$9,Requirment[],17,FALSE)," ") -> 0.72 | J18: =_xlfn.IFNA(VLOOKUP($O$9,Requirment[],19,FALSE)," ") -> 0.31 | K18: =_xlfn.IFNA(VLOOKUP($O$9,Requirment[],21,FALSE)," ") -> 0.58 | L18: =_xlfn.IFNA(VLOOKUP($O$9,Requirment[],23,FALSE)," ") -> 0.46 | M18: =_xlfn.IFNA(VLOOKUP($O$9,Requirment[],25,FALSE)," ") -> 0.16 | N18: =_xlfn.IFNA(VLOOKUP($O$9,Requirment[],18,FALSE)," ") -> 0.65 | O18: =_xlfn.IFNA(VLOOKUP($O$9,Requirment[],20,FALSE)," ") -> 0.28 | P18: =_xlfn.IFNA(VLOOKUP($O$9,Requirment[],22,FALSE)," ") -> 0.52 | Q18: =_xlfn.IFNA(VLOOKUP($O$9,Requirment[],20,FALSE)," ") -> 0.28 | R18: =_xlfn.IFNA(VLOOKUP($O$9,Requirment[],26,FALSE)," ") -> 0.14 | S18: =_xlfn.IFNA(VLOOKUP($O$9,Requirment[],14,FALSE)," ") -> 0.70 | T18: =_xlfn.IFNA(VLOOKUP($O$9,Requirment[],15,FALSE)," ") -> 0.30 | U18: =_xlfn.IFNA(VLOOKUP($O$9,Requirment[],16,FALSE)," ") -> 0.15
D19: Max | E19: =_xlfn.IFNA(VLOOKUP($O$9,Requirment[],27,FALSE)," ") -> 12.34 | F19: =_xlfn.IFNA(VLOOKUP($O$9,Requirment[],28,FALSE)," ") -> 17.00 | G19: =_xlfn.IFNA(VLOOKUP($O$9,Requirment[],29,FALSE)," ") -> 7.00 | H19: =_xlfn.IFNA(VLOOKUP($O$9,Requirment[],30,FALSE)," ") -> 7.00 | I19: =_xlfn.IFNA(VLOOKUP($O$9,Requirment[],34,FALSE)," ") -> 0.83 | J19: =_xlfn.IFNA(VLOOKUP($O$9,Requirment[],36,FALSE)," ") -> 0.42 | K19: =_xlfn.IFNA(VLOOKUP($O$9,Requirment[],38,FALSE)," ") -> 0.69 | L19: =_xlfn.IFNA(VLOOKUP($O$9,Requirment[],40,FALSE)," ") -> 0.68 | M19: =_xlfn.IFNA(VLOOKUP($O$9,Requirment[],42,FALSE)," ") -> 0.38 | N19: =_xlfn.IFNA(VLOOKUP($O$9,Requirment[],35,FALSE)," ") -> 0.75 | O19: =_xlfn.IFNA(VLOOKUP($O$9,Requirment[],37,FALSE)," ") -> 0.38 | P19: =_xlfn.IFNA(VLOOKUP($O$9,Requirment[],39,FALSE)," ") -> 0.62 | Q19: =_xlfn.IFNA(VLOOKUP($O$9,Requirment[],41,FALSE)," ") -> 0.61 | R19: =_xlfn.IFNA(VLOOKUP($O$9,Requirment[],43,FALSE)," ") -> 0.34 | S19: =_xlfn.IFNA(VLOOKUP($O$9,Requirment[],31,FALSE)," ") -> 0.90 | T19: =_xlfn.IFNA(VLOOKUP($O$9,Requirment[],15,FALSE)," ") -> 0.30 | U19: =_xlfn.IFNA(VLOOKUP($O$9,Requirment[],33,FALSE)," ") -> 0.18
B21: Kg concentrate/day | C21: Needs | E21: ME roaster MJ/Kg | F21: CP % | G21: Fat % | H21: Fiber % | I21: LYS % | J21: MET % | K21: MET+CYS % | L21: THR % | M21: TRY % | N21: DIS LYS poultry % | O21: DIS MET poultry % | P21: DIS MET+CYS poultry % | Q21: DIS THR poultry % raw | R21: DIS TRY poultry % raw | S21: Ca g/kg Raw | T21: P g/kg Raw | U21: Na g/kg Raw
B22: 0.10 | C22: Objective | E22: =AVERAGE(E18:E19) -> 12.13 | F22: 16.00 | G22: 4.50 | H22: 3.50 | I22: 0.78 | J22: 0.37 | K22: 0.63 | L22: 0.57 | M22: 0.27 | N22: 0.70 | O22: 0.33 | P22: 0.57 | Q22: 0.45 | R22: 0.24 | S22: 0.80 | T22: 0.30 | U22: 0.17
B23: =B22*1000 -> 100
B24: Grams | C24: TOTAL NEEDS | E24: =E22*$B$22 -> 1.21 | F24: 1.60 | G24: 0.45 | H24: 0.35 | I24: 0.08 | J24: 0.04 | K24: 0.06 | L24: 0.06 | M24: 0.03 | N24: 0.07 | O24: 0.03 | P24: 0.06 | Q24: 0.04 | R24: 0.02 | S24: 0.08 | T24: 0.03 | U24: 0.02
A26: STEP 4 : Animal needs cover by concentrate | E26: ME roaster MJ/Kg | F26: CP % | G26: Fat % | H26: Fiber % | I26: LYS % | J26: MET % | K26: MET+CYS % | L26: THR % | M26: TRY % | N26: DIS LYS poultry % | O26: DIS MET poultry % | P26: DIS MET+CYS poultry % | Q26: DIS THR poultry % raw | R26: DIS TRY poultry % raw | S26: Ca g/kg Raw | T26: P g/kg Raw | U26: Na g/kg Raw
B27: TOTAL needs cover by concentrate (TOTAL NEEDS - FORAGE INTAKE) | C27: Kg | E27: =E24-E15 -> 1.17 | F27: 1.54 | G27: 0.41 | H27: 0.32 | I27: 0.08 | J27: 0.04 | K27: 0.06 | L27: 0.06 | M27: 0.03 | N27: 0.07 | O27: 0.03 | P27: 0.06 | Q27: 0.04 | R27: 0.02 | S27: 0.08 | T27: 0.03 | U27: 0.02
B28: Objective TOTAL needs/Kg of concentrate | C28: 0.09 | E28: =E27/$C$28 -> 12.95 | F28: =F27/$C$28 -> 17.11 | G28: 4.56 | H28: 3.50 | I28: 0.86 | J28: =J27/$C$28 -> 0.41 | K28: 0.70 | L28: 0.63 | M28: 0.30 | N28: 0.78 | O28: 0.34 | P28: 0.62 | Q28: 0.49 | R28: 0.27 | S28: 0.89 | T28: 0.33 | U28: 0.18
A30: STEP 5 : Nutritional recommandation for concentrate | B30: Production | C30: Scenarios | D30: Nb phasis | E30: Formula_Name | F30: Duration | G30: Country | H30: Type of animals to select ration limitation levels | I30: F1_ME Min | J30: F1_CP Min | K30: F1_FAT Min | L30: F1_CF Min | M30: F1_Ca Min | N30: F1_P Min | O30: F1_Na Min | P30: F1 Lys tot min | Q30: F1_Lys DIS min | R30: F1_Met tot Max | S30: F1_Met DIS Min | T30: F1_Met+Cys Tot Min | U30: F1_Met+Cys DIS Min | V30: F1_Thr tot Min | W30: F1_Thr DIS Min | X30: F1_try tot Min | Y30: F1_try DIS Min | Z30: F1_ME Max | AA30: F1_CP Max | AB30: F1_FAT Max | AC30: F1_CF Max | AD30: F1_Ca Max | AE30: F1_P Max | AF30: F1_Na Max | AG30: F1_Lys Tot Max | AH30: F1_Lys DIS Max | AI30: F1_Met Tot Max2 | AJ30: F1_Met DIS Max | AK30: F1_Met+Cys Tot max | AL30: F1_Met+Cys DIS Max | AM30: F1_Thr tot Max | AN30: F1_Thr Max | AO30: F1_try tot Max | AP30: F1_try DIS Max
A31: Copy | B31: =C5 -> Broiler | C31: =CONCATENATE(O2,"_",O3,"_",B12) -> Broiler_2.6 kg alive at 98 days_3 feeds_3_Finishing_Red clover silage | D31: =C8 -> 3 | E31: =O3 -> Finishing | F31: =O4 -> 63-98 day | G31: =O5 -> France | H31: =O6 -> broiler | I31: =E28 -> 12.95 | J31: =F28 -> 17.11 | K31: =G28 -> 4.56 | L31: 3.50 | M31: 0.86 | N31: 0.41 | O31: 0.70 | P31: 0.63 | Q31: 0.30 | R31: 0.78 | S31: 0.34 | T31: 0.62 | U31: 0.49 | V31: 0.27 | W31: 0.89 | X31: 0.33 | Y31: 0.18 | Z31: 0.00 | AA31: 0.00 | AB31: 0.00 | AC31: 0.00 | AD31: 0.00 | AE31: 0.00 | AF31: 0.00 | AG31: 0.00 | AH31: 0.00 | AI31: 0.00 | AJ31: 0.00 | AK31: 0.00 | AL31: 0.00 | AM31: 0.00 | AN31: 0.00 | AO31: 0.00 | AP31: 0.00

Sheet PDF_Export
A1: =CONCATENATE("RATION REALIZED ON: "&TEXT(Tool!E5,"jj/mm/aaaa")) -> RATION REALIZED ON: 00/01/1900
A3: Context:
A4: =Tool!D3 -> Identity of the farm: | B4: =IF(Tool!E3<>"",Tool!E3,"") -> 
A5: =Tool!D4 -> Farmer's name: | B5: =IF(Tool!E4<>"",Tool!E4,"") -> 
A6: =Tool!D6 -> Production: | B6: =IF(Tool!E6<>"",Tool!E6,"") -> 
A7: =Tool!D7 -> Poultry Flocks | B7: =IF(Tool!E7<>"",Tool!E7,"") -> 
A8: =Tool!D8 -> Objectives (kg, days) | B8: =IF(Tool!E8<>"",Tool!E8,"") -> 
A9: =Tool!D9 -> Number of feed phases | B9: =IF(Tool!E9<>"",Tool!E9,"") -> 
A10: =Tool!D10 -> Type of animals | B10: =IF(Tool!E10<>"",Tool!E10,"") -> 
A12: Scenario selected:
A13: Tool scenario: | B13: =Tool!L3&"_"&Tool!L4 -> Broiler_Broiler_2.6 kg alive at 98 days_3 feeds_3_Finishing_Red clover silage_3_Finishing
A15: Feedstuff composition: | B15: =Tool!E11 -> 0 | C15: Kg
B17: % | C17: Kg | D17: % cost | E17: Cost (€/T)
A18: =IF(Tool!D14<>"",IF(Tool!F14<>0,Tool!D14,""),"") ->  | B18: =IF(Tool!F14<>"",IF(Tool!F14<>0,Tool!F14,"")) ->  | C18: =IF(Tool!E14<>"",IF(Tool!E14<>0,Tool!E14,"")) ->  | D18: =IF(A18<>"",Tool!AE14,"") ->  | E18: =IF(A18<>"",Tool!AC14,"") ->  | F18: =IF(E18<>"","/Tonne","") -> 
A19: =IF(Tool!D15<>"",IF(Tool!F15<>0,Tool!D15,""),"") ->  | B19: =IF(Tool!F15<>"",IF(Tool!F15<>0,Tool!F15,"")) ->  | C19: =IF(Tool!E15<>"",IF(Tool!E15<>0,Tool!E15,"")) ->  | D19: =IF(A19<>"",Tool!AE15,"") ->  | E19: =IF(A19<>"",Tool!AC15,"") ->  | F19: =IF(E19<>"","/Tonne","") -> 
A20: =IF(Tool!D16<>"",IF(Tool!F16<>0,Tool!D16,""),"") ->  | B20: =IF(Tool!F16<>"",IF(Tool!F16<>0,Tool!F16,"")) ->  | C20: =IF(Tool!E16<>"",IF(Tool!E16<>0,Tool!E16,"")) ->  | D20: =IF(A20<>"",Tool!AE16,"") ->  | E20: =IF(A20<>"",Tool!AC16,"") ->  | F20: =IF(E20<>"","/Tonne","") -> 
A21: =IF(Tool!D17<>"",IF(Tool!F17<>0,Tool!D17,""),"") ->  | B21: =IF(Tool!F17<>"",IF(Tool!F17<>0,Tool!F17,"")) ->  | C21: =IF(Tool!E17<>"",IF(Tool!E17<>0,Tool!E17,"")) ->  | D21: =IF(A21<>"",Tool!AE17,"") ->  | E21: =IF(A21<>"",Tool!AC17,"") -> 
A22: =IF(Tool!D18<>"",IF(Tool!F18<>0,Tool!D18,""),"") ->  | B22: =IF(Tool!F18<>"",IF(Tool!F18<>0,Tool!F18,"")) ->  | C22: =IF(Tool!E18<>"",IF(Tool!E18<>0,Tool!E18,"")) ->  | D22: =IF(A22<>"",Tool!AE18,"") ->  | E22: =IF(A22<>"",Tool!AC18,"") -> 
A23: =IF(Tool!D19<>"",IF(Tool!F19<>0,Tool!D19,""),"") ->  | B23: =IF(Tool!F19<>"",IF(Tool!F19<>0,Tool!F19,"")) ->  | C23: =IF(Tool!E19<>"",IF(Tool!E19<>0,Tool!E19,"")) ->  | D23: =IF(A23<>"",Tool!AE19,"") ->  | E23: =IF(A23<>"",Tool!AC19,"") -> 
A24: =IF(Tool!D20<>"",IF(Tool!F20<>0,Tool!D20,""),"") ->  | B24: =IF(Tool!F20<>"",IF(Tool!F20<>0,Tool!F20,"")) ->  | C24: =IF(Tool!E20<>"",IF(Tool!E20<>0,Tool!E20,"")) ->  | D24: =IF(A24<>"",Tool!AE20,"") ->  | E24: =IF(A24<>"",Tool!AC20,"") -> 
A25: =IF(Tool!D21<>"",IF(Tool!F21<>0,Tool!D21,""),"") ->  | B25: =IF(Tool!F21<>"",IF(Tool!F21<>0,Tool!F21,"")) ->  | C25: =IF(Tool!E21<>"",IF(Tool!E21<>0,Tool!E21,"")) ->  | D25: =IF(A25<>"",Tool!AE21,"") ->  | E25: =IF(A25<>"",Tool!AC21,"") -> 
A26: =IF(Tool!D22<>"",IF(Tool!F22<>0,Tool!D22,""),"") ->  | B26: =IF(Tool!F22<>"",IF(Tool!F22<>0,Tool!F22,"")) ->  | C26: =IF(Tool!E22<>"",IF(Tool!E22<>0,Tool!E22,"")) ->  | D26: =IF(A26<>"",Tool!AE22,"") ->  | E26: =IF(A26<>"",Tool!AC22,"") -> 
A27: =IF(Tool!D23<>"",IF(Tool!F23<>0,Tool!D23,""),"") ->  | B27: =IF(Tool!F23<>"",IF(Tool!F23<>0,Tool!F23,"")) ->  | C27: =IF(Tool!E23<>"",IF(Tool!E23<>0,Tool!E23,"")) ->  | D27: =IF(A27<>"",Tool!AE23,"") ->  | E27: =IF(A27<>"",Tool!AC23,"") -> 
A28: =IF(Tool!D24<>"",IF(Tool!F24<>0,Tool!D24,""),"") ->  | B28: =IF(Tool!F24<>"",IF(Tool!F24<>0,Tool!F24,"")) ->  | C28: =IF(Tool!E24<>"",IF(Tool!E24<>0,Tool!E24,"")) ->  | D28: =IF(A28<>"",Tool!AE24,"") ->  | E28: =IF(A28<>"",Tool!AC24,"") -> 
A29: =IF(Tool!D25<>"",IF(Tool!F25<>0,Tool!D25,""),"") ->  | B29: =IF(Tool!F25<>"",IF(Tool!F25<>0,Tool!F25,"")) ->  | C29: =IF(Tool!E25<>"",IF(Tool!E25<>0,Tool!E25,"")) ->  | D29: =IF(A29<>"",Tool!AE25,"") ->  | E29: =IF(A29<>"",Tool!AC25,"") -> 
A31: Number of feedstuffs: | B31: =12-COUNTBLANK(A18:A29) -> 0
A32: Ration cost: | B32: =Tool!AD29 -> 0 | C32: =IF(B32<>"","/Tonne","") -> /Tonne
A34: Ration results:
B36: TOTAL | E36: Min | F36: Max
A37: Metabolisable Energy | B37: =Tool!G27 -> 0.00 | C37: MJ/Kg | E37: =Tool!G30 -> 12.95 | F37: =Tool!G31 -> 0.00
A38: Crude Protein | B38: =Tool!H27 -> 0.00 | C38: % | E38: =Tool!H30 -> 17.11 | F38: =Tool!H31 -> 0.00
A39: FAT | B39: =Tool!I27 -> 0.00 | C39: % | E39: =Tool!I30 -> 4.56 | F39: =Tool!I31 -> 0.00
A40: Fiber | B40: =Tool!J27 -> 0.00 | C40: % | E40: =Tool!J30 -> 3.50 | F40: =Tool!J31 -> 0.00
A41: Lysin | B41: =Tool!K27 -> 0.00 | C41: % | E41: =Tool!K30 -> 0.63 | F41: =Tool!K31 -> 0.00
A42: Methionine | B42: =Tool!L27 -> 0.00 | C42: % | E42: =Tool!L30 -> 0.78 | F42: =Tool!L31 -> 0.00
A43: Methionine+Cystine | B43: =Tool!M27 -> 0.00 | C43: % | E43: =Tool!M30 -> 0.62 | F43: =Tool!M31 -> 0.00
A44: Threonine | B44: =Tool!N27 -> 0.00 | C44: % | E44: =Tool!N30 -> 0.27 | F44: =Tool!N31 -> 0.00
A45: Thyptophan | B45: =Tool!O27 -> 0.00 | C45: % | E45: =Tool!O30 -> 0.33 | F45: =Tool!O31 -> 0.00
A46: Lysin Digestible | B46: =Tool!P27 -> 0.00 | C46: % | E46: =Tool!P30 -> 0.30 | F46: =Tool!P31 -> 0.00
A47: Methionine Digestible | B47: =Tool!Q27 -> 0.00 | C47: % | E47: =Tool!Q30 -> 0.34 | F47: =Tool!Q31 -> 0.00
A48: Methionine+Cystine Digestible | B48: =Tool!R27 -> 0.00 | C48: % | E48: =Tool!R30 -> 0.49 | F48: =Tool!R31 -> 0.00
A49: Threonine Digestible | B49: =Tool!S27 -> 0.00 | C49: % | E49: =Tool!S30 -> 0.34 | F49: =Tool!S31 -> 0.00
A50: Tryptophan Digestible | B50: =Tool!T27 -> 0.00 | C50: % | E50: =Tool!T30 -> 0.18 | F50: =Tool!T31 -> 0.00
A51: Calcium | B51: =Tool!U27 -> 0.00 | C51: g/Kg | E51: =Tool!U30 -> 0.86 | F51: =Tool!U31 -> 0.00
A52: Phosphorus | B52: =Tool!V27 -> 0.00 | C52: g/Kg | E52: =Tool!V30 -> 0.41 | F52: =Tool!V31 -> 0.41
A53: Sodium | B53: =Tool!W27 -> 0.00 | C53: g/Kg | E53: =Tool!W30 -> 0.70 | F53: =Tool!W31 -> 0.00

Sheet Contribution (hidden)
A1: Feedstuffs - ME | B1: % of contribution off each feedstuff for Energy | C1: Feedstuffs CP | D1: % of contribution off each feedstuff for Proteins | E1: Feedstuffs LYS | F1: % of contribution off each feedstuff for Lysine | G1: Feedstuffs MET | H1: % of contribution off each feedstuff for Methionine
A2: =IF(B2<>0,Tool!D14,"") ->  | B2: =Tool!G14*Tool!F14/Tool!$G$27 ->  | C2: =IF(D2<>0,Tool!D14,"") ->  | D2: =Tool!H14*Tool!F14/Tool!$H$27 ->  | E2: =IF(F2<>0,Tool!D14,"") ->  | F2: =Tool!K14*Tool!F14/Tool!$K$27 ->  | G2: =IF(H2<>0,Tool!D14,"") ->  | H2: =Tool!L14*Tool!F14/Tool!$L$27 -> 
A3: =IF(B3<>0,Tool!D15,"") ->  | B3: =Tool!G15*Tool!F15/Tool!$G$27 ->  | C3: =IF(D3<>0,Tool!D15,"") ->  | D3: =Tool!H15*Tool!F15/Tool!$H$27 ->  | E3: =IF(F3<>0,Tool!D15,"") ->  | F3: =Tool!K15*Tool!F15/Tool!$K$27 ->  | G3: =IF(H3<>0,Tool!D15,"") ->  | H3: =Tool!L15*Tool!F15/Tool!$L$27 -> 
A4: =IF(B4<>0,Tool!D16,"") ->  | B4: =Tool!G16*Tool!F16/Tool!$G$27 ->  | C4: =IF(D4<>0,Tool!D16,"") ->  | D4: =Tool!H16*Tool!F16/Tool!$H$27 ->  | E4: =IF(F4<>0,Tool!D16,"") ->  | F4: =Tool!K16*Tool!F16/Tool!$K$27 ->  | G4: =IF(H4<>0,Tool!D16,"") ->  | H4: =Tool!L16*Tool!F16/Tool!$L$27 -> 
A5: =IF(B5<>0,Tool!D17,"") ->  | B5: =Tool!G17*Tool!F17/Tool!$G$27 ->  | C5: =IF(D5<>0,Tool!D17,"") ->  | D5: =Tool!H17*Tool!F17/Tool!$H$27 ->  | E5: =IF(F5<>0,Tool!D17,"") ->  | F5: =Tool!K17*Tool!F17/Tool!$K$27 ->  | G5: =IF(H5<>0,Tool!D17,"") ->  | H5: =Tool!L17*Tool!F17/Tool!$L$27 -> 
A6: =IF(B6<>0,Tool!D18,"") ->  | B6: =Tool!G18*Tool!F18/Tool!$G$27 ->  | C6: =IF(D6<>0,Tool!D18,"") ->  | D6: =Tool!H18*Tool!F18/Tool!$H$27 ->  | E6: =IF(F6<>0,Tool!D18,"") ->  | F6: =Tool!K18*Tool!F18/Tool!$K$27 ->  | G6: =IF(H6<>0,Tool!D18,"") ->  | H6: =Tool!L18*Tool!F18/Tool!$L$27 -> 
A7: =IF(B7<>0,Tool!D19,"") ->  | B7: =Tool!G19*Tool!F19/Tool!$G$27 ->  | C7: =IF(D7<>0,Tool!D19,"") ->  | D7: =Tool!H19*Tool!F19/Tool!$H$27 ->  | E7: =IF(F7<>0,Tool!D19,"") ->  | F7: =Tool!K19*Tool!F19/Tool!$K$27 ->  | G7: =IF(H7<>0,Tool!D19,"") ->  | H7: =Tool!L19*Tool!F19/Tool!$L$27 -> 
A8: =IF(B8<>0,Tool!D20,"") ->  | B8: =Tool!G20*Tool!F20/Tool!$G$27 ->  | C8: =IF(D8<>0,Tool!D20,"") ->  | D8: =Tool!H20*Tool!F20/Tool!$H$27 ->  | E8: =IF(F8<>0,Tool!D20,"") ->  | F8: =Tool!K20*Tool!F20/Tool!$K$27 ->  | G8: =IF(H8<>0,Tool!D20,"") ->  | H8: =Tool!L20*Tool!F20/Tool!$L$27 -> 
A9: =IF(B9<>0,Tool!D21,"") ->  | B9: =Tool!G21*Tool!F21/Tool!$G$27 ->  | C9: =IF(D9<>0,Tool!D21,"") ->  | D9: =Tool!H21*Tool!F21/Tool!$H$27 ->  | E9: =IF(F9<>0,Tool!D21,"") ->  | F9: =Tool!K21*Tool!F21/Tool!$K$27 ->  | G9: =IF(H9<>0,Tool!D21,"") ->  | H9: =Tool!L21*Tool!F21/Tool!$L$27 -> 
A10: =IF(B10<>0,Tool!D22,"") ->  | B10: =Tool!G22*Tool!F22/Tool!$G$27 ->  | C10: =IF(D10<>0,Tool!D22,"") ->  | D10: =Tool!H22*Tool!F22/Tool!$H$27 ->  | E10: =IF(F10<>0,Tool!D22,"") ->  | F10: =Tool!K22*Tool!F22/Tool!$K$27 ->  | G10: =IF(H10<>0,Tool!D22,"") ->  | H10: =Tool!L22*Tool!F22/Tool!$L$27 -> 
A11: =IF(B11<>0,Tool!D23,"") ->  | B11: =Tool!G23*Tool!F23/Tool!$G$27 ->  | C11: =IF(D11<>0,Tool!D23,"") ->  | D11: =Tool!H23*Tool!F23/Tool!$H$27 ->  | E11: =IF(F11<>0,Tool!D23,"") ->  | F11: =Tool!K23*Tool!F23/Tool!$K$27 ->  | G11: =IF(H11<>0,Tool!D23,"") ->  | H11: =Tool!L23*Tool!F23/Tool!$L$27 -> 
A12: =IF(B12<>0,Tool!D24,"") ->  | B12: =Tool!G24*Tool!F24/Tool!$G$27 ->  | C12: =IF(D12<>0,Tool!D24,"") ->  | D12: =Tool!H24*Tool!F24/Tool!$H$27 ->  | E12: =IF(F12<>0,Tool!D24,"") ->  | F12: =Tool!K24*Tool!F24/Tool!$K$27 ->  | G12: =IF(H12<>0,Tool!D24,"") ->  | H12: =Tool!L24*Tool!F24/Tool!$L$27 -> 
A13: =IF(B13<>0,Tool!D25,"") ->  | B13: =Tool!G25*Tool!F25/Tool!$G$27 ->  | C13: =IF(D13<>0,Tool!D25,"") ->  | D13: =Tool!H25*Tool!F25/Tool!$H$27 ->  | E13: =IF(F13<>0,Tool!D25,"") ->  | F13: =Tool!K25*Tool!F25/Tool!$K$27 ->  | G13: =IF(H13<>0,Tool!D25,"") ->  | H13: =Tool!L25*Tool!F25/Tool!$L$27 -> 
A14: Total | B14: =SUM(B2:B13) ->  | D14: =SUM(D2:D13) ->  | F14: =SUM(F2:F13) ->  | H14: =SUM(H2:H13) -> 

Sheet List_sheet (hidden)
A1: Value scenarios | B1: Ligne | C1: Ligne filtrée | D1: Ligne triee | E1: Liste unique scenarios | F1: Valeur formula | G1: Ligne | H1: Ligne filtrée | I1: Ligne triee | J1: Liste unique Formula
A2: =IFERROR(Requirment[[#This Row],[Scenarios_reference]],"") -> Broiler_2.4 Kg alive 63 days_3 | B2: =ROW()-1 -> 1 | C2: =IF(COUNTIF($A$2:A2,A2)=1,ROW()-1,"") -> 1 | D2: =IFERROR(SMALL(C:C,B2),"") -> 1 | E2: =IFERROR(INDEX($A$2:$A$99,D2),"") -> Broiler_2.4 Kg alive 63 days_3 | F2: =IFERROR(Requirment[[#This Row],[Formula_Name]],"") -> Finishing | G2: =ROW()-1 -> 1 | H2: =IF(COUNTIF($F$2:F2,F2)=1,ROW()-1,"") -> 1 | I2: =IFERROR(SMALL(H:H,G2),"") -> 1 | J2: =IFERROR(INDEX($F$2:$F$99,I2),"") -> Finishing
A3: =IFERROR(Requirment[[#This Row],[Scenarios_reference]],"") -> Broiler_2.4 Kg alive 63 days_3 | B3: =ROW()-1 -> 2 | C3: =IF(COUNTIF($A$2:A3,A3)=1,ROW()-1,"") ->  | D3: =IFERROR(SMALL(C:C,B3),"") -> 4 | E3: =IFERROR(INDEX($A$2:$A$99,D3),"") -> Broiler_2.6 kg alive at 112 days_2 feeds_3 | F3: =IFERROR(Requirment[[#This Row],[Formula_Name]],"") -> Growing | G3: =ROW()-1 -> 2 | H3: =IF(COUNTIF($F$2:F3,F3)=1,ROW()-1,"") -> 2 | I3: =IFERROR(SMALL(H:H,G3),"") -> 2 | J3: =IFERROR(INDEX($F$2:$F$99,I3),"") -> Growing
A4: =IFERROR(Requirment[[#This Row],[Scenarios_reference]],"") -> Broiler_2.4 Kg alive 63 days_3 | B4: 3 | C4: =IF(COUNTIF($A$2:A4,A4)=1,ROW()-1,"") ->  | D4: 7 | E4: Broiler_2.6 kg alive at 126 days_3 feeds_3 | F4: =IFERROR(Requirment[[#This Row],[Formula_Name]],"") -> Starter | G4: 3 | H4: =IF(COUNTIF($F$2:F4,F4)=1,ROW()-1,"") -> 3 | I4: 3 | J4: Starter | L4: Protection feuille:
A5: =IFERROR(Requirment[[#This Row],[Scenarios_reference]],"") -> Broiler_2.6 kg alive at 112 days_2 feeds_3 | B5: 4 | C5: =IF(COUNTIF($A$2:A5,A5)=1,ROW()-1,"") -> 4 | D5: 10 | E5: Broiler_2.6 kg alive at 126 days_4 feeds_4 | F5: =IFERROR(Requirment[[#This Row],[Formula_Name]],"") -> Finishing | G5: 4 | H5: =IF(COUNTIF($F$2:F5,F5)=1,ROW()-1,"") ->  | I5: 10 | J5: Finishing 1 | L5: ITAB
A6: =IFERROR(Requirment[[#This Row],[Scenarios_reference]],"") -> Broiler_2.6 kg alive at 112 days_2 feeds_3 | B6: 5 | C6: =IF(COUNTIF($A$2:A6,A6)=1,ROW()-1,"") ->  | D6: 14 | E6: Broiler_2.6 kg alive at 98 days_2 feeds_2 | F6: =IFERROR(Requirment[[#This Row],[Formula_Name]],"") -> Growing | G6: 5 | H6: =IF(COUNTIF($F$2:F6,F6)=1,ROW()-1,"") ->  | I6: 11 | J6: Finishing 2
A7: =IFERROR(Requirment[[#This Row],[Scenarios_reference]],"") -> Broiler_2.6 kg alive at 112 days_2 feeds_3 | B7: 6 | C7: =IF(COUNTIF($A$2:A7,A7)=1,ROW()-1,"") ->  | D7: 16 | E7: Broiler_2.6 kg alive at 98 days_3 feeds_3 | F7: =IFERROR(Requirment[[#This Row],[Formula_Name]],"") -> Starter | G7: 6 | H7: =IF(COUNTIF($F$2:F7,F7)=1,ROW()-1,"") ->  | I7: 14 | J7: Single feed
A8: =IFERROR(Requirment[[#This Row],[Scenarios_reference]],"") -> Broiler_2.6 kg alive at 126 days_3 feeds_3 | B8: 7 | C8: =IF(COUNTIF($A$2:A8,A8)=1,ROW()-1,"") -> 7 | D8: 19 | E8: Broiler_2.4 kg alive 84 days_2 | F8: =IFERROR(Requirment[[#This Row],[Formula_Name]],"") -> Finishing | G8: 7 | H8: =IF(COUNTIF($F$2:F8,F8)=1,ROW()-1,"") ->  | I8: 23 | J8: Laying
A9: =IFERROR(Requirment[[#This Row],[Scenarios_reference]],"") -> Broiler_2.6 kg alive at 126 days_3 feeds_3 | B9: 8 | C9: =IF(COUNTIF($A$2:A9,A9)=1,ROW()-1,"") ->  | D9: 21 | E9: Pullets_Growers_2 | F9: =IFERROR(Requirment[[#This Row],[Formula_Name]],"") -> Growing | G9: 8 | H9: =IF(COUNTIF($F$2:F9,F9)=1,ROW()-1,"") ->  | I9: 24 | J9: Starter laying
A10: =IFERROR(Requirment[[#This Row],[Scenarios_reference]],"") -> Broiler_2.6 kg alive at 126 days_3 feeds_3 | B10: 9 | C10: =IF(COUNTIF($A$2:A10,A10)=1,ROW()-1,"") ->  | D10: 23 | E10: Laying Hen_High level 250 to 300 eggs per year_ 2 Feeds_2 | F10: =IFERROR(Requirment[[#This Row],[Formula_Name]],"") -> Starter | G10: 9 | H10: =IF(COUNTIF($F$2:F10,F10)=1,ROW()-1,"") ->  | I10: 32 | J10: 0
A11: =IFERROR(Requirment[[#This Row],[Scenarios_reference]],"") -> Broiler_2.6 kg alive at 126 days_4 feeds_4 | B11: 10 | C11: =IF(COUNTIF($A$2:A11,A11)=1,ROW()-1,"") -> 10 | D11: 25 | E11: Laying Hen_High level 250 to 300 eggs per year_ 3 Feeds_2 | F11: =IFERROR(Requirment[[#This Row],[Formula_Name]],"") -> Finishing 1 | G11: 10 | H11: =IF(COUNTIF($F$2:F11,F11)=1,ROW()-1,"") -> 10
A12: =IFERROR(Requirment[[#This Row],[Scenarios_reference]],"") -> Broiler_2.6 kg alive at 126 days_4 feeds_4 | B12: 11 | C12: =IF(COUNTIF($A$2:A12,A12)=1,ROW()-1,"") ->  | D12: 28 | E12: Laying Hen_Low level 170 eggs per year_ 2 Feeds_2 | F12: =IFERROR(Requirment[[#This Row],[Formula_Name]],"") -> Finishing 2 | G12: 11 | H12: =IF(COUNTIF($F$2:F12,F12)=1,ROW()-1,"") -> 11
A13: =IFERROR(Requirment[[#This Row],[Scenarios_reference]],"") -> Broiler_2.6 kg alive at 126 days_4 feeds_4 | B13: 12 | C13: =IF(COUNTIF($A$2:A13,A13)=1,ROW()-1,"") ->  | D13: 30 | E13: Laying hens_One feed ans grains no Min Max_1 | F13: =IFERROR(Requirment[[#This Row],[Formula_Name]],"") -> Growing | G13: 12 | H13: =IF(COUNTIF($F$2:F13,F13)=1,ROW()-1,"") -> 
A14: =IFERROR(Requirment[[#This Row],[Scenarios_reference]],"") -> Broiler_2.6 kg alive at 126 days_4 feeds_4 | B14: 13 | C14: =IF(COUNTIF($A$2:A14,A14)=1,ROW()-1,"") ->  | D14: 31 | E14: Broiler_Broiler_2.6 kg alive at 98 days_3 feeds_3_Finishing_Red clover silage_3 | F14: =IFERROR(Requirment[[#This Row],[Formula_Name]],"") -> Starter | G14: 13 | H14: =IF(COUNTIF($F$2:F14,F14)=1,ROW()-1,"") -> 
A15: =IFERROR(Requirment[[#This Row],[Scenarios_reference]],"") -> Broiler_2.6 kg alive at 98 days_2 feeds_2 | B15: 14 | C15: =IF(COUNTIF($A$2:A15,A15)=1,ROW()-1,"") -> 14 | D15: 32 | E15: __ | F15: =IFERROR(Requirment[[#This Row],[Formula_Name]],"") -> Single feed | G15: 14 | H15: =IF(COUNTIF($F$2:F15,F15)=1,ROW()-1,"") -> 14
A16: =IFERROR(Requirment[[#This Row],[Scenarios_reference]],"") -> Broiler_2.6 kg alive at 98 days_2 feeds_2 | B16: 15 | C16: =IF(COUNTIF($A$2:A16,A16)=1,ROW()-1,"") ->  | F16: =IFERROR(Requirment[[#This Row],[Formula_Name]],"") -> Starter | G16: 15 | H16: =IF(COUNTIF($F$2:F16,F16)=1,ROW()-1,"") -> 
A17: =IFERROR(Requirment[[#This Row],[Scenarios_reference]],"") -> Broiler_2.6 kg alive at 98 days_3 feeds_3 | B17: 16 | C17: =IF(COUNTIF($A$2:A17,A17)=1,ROW()-1,"") -> 16 | F17: =IFERROR(Requirment[[#This Row],[Formula_Name]],"") -> Finishing | G17: 16 | H17: =IF(COUNTIF($F$2:F17,F17)=1,ROW()-1,"") -> 
A18: =IFERROR(Requirment[[#This Row],[Scenarios_reference]],"") -> Broiler_2.6 kg alive at 98 days_3 feeds_3 | B18: 17 | C18: =IF(COUNTIF($A$2:A18,A18)=1,ROW()-1,"") ->  | F18: =IFERROR(Requirment[[#This Row],[Formula_Name]],"") -> Growing | G18: 17 | H18: =IF(COUNTIF($F$2:F18,F18)=1,ROW()-1,"") -> 
A19: =IFERROR(Requirment[[#This Row],[Scenarios_reference]],"") -> Broiler_2.6 kg alive at 98 days_3 feeds_3 | B19: 18 | C19: =IF(COUNTIF($A$2:A19,A19)=1,ROW()-1,"") ->  | F19: =IFERROR(Requirment[[#This Row],[Formula_Name]],"") -> Starter | G19: 18 | H19: =IF(COUNTIF($F$2:F19,F19)=1,ROW()-1,"") -> 
A20: =IFERROR(Requirment[[#This Row],[Scenarios_reference]],"") -> Broiler_2.4 kg alive 84 days_2 | B20: 19 | C20: =IF(COUNTIF($A$2:A20,A20)=1,ROW()-1,"") -> 19 | F20: =IFERROR(Requirment[[#This Row],[Formula_Name]],"") -> Finishing | G20: 19 | H20: =IF(COUNTIF($F$2:F20,F20)=1,ROW()-1,"") -> 
A21: =IFERROR(Requirment[[#This Row],[Scenarios_reference]],"") -> Broiler_2.4 kg alive 84 days_2 | B21: 20 | C21: =IF(COUNTIF($A$2:A21,A21)=1,ROW()-1,"") ->  | F21: =IFERROR(Requirment[[#This Row],[Formula_Name]],"") -> Starter | G21: 20 | H21: =IF(COUNTIF($F$2:F21,F21)=1,ROW()-1,"") -> 
A22: =IFERROR(Requirment[[#This Row],[Scenarios_reference]],"") -> Pullets_Growers_2 | B22: 21 | C22: =IF(COUNTIF($A$2:A22,A22)=1,ROW()-1,"") -> 21 | F22: =IFERROR(Requirment[[#This Row],[Formula_Name]],"") -> Growing | G22: 21 | H22: =IF(COUNTIF($F$2:F22,F22)=1,ROW()-1,"") -> 
A23: =IFERROR(Requirment[[#This Row],[Scenarios_reference]],"") -> Pullets_Growers_2 | B23: 22 | C23: =IF(COUNTIF($A$2:A23,A23)=1,ROW()-1,"") ->  | F23: =IFERROR(Requirment[[#This Row],[Formula_Name]],"") -> Starter | G23: 22 | H23: =IF(COUNTIF($F$2:F23,F23)=1,ROW()-1,"") -> 
A24: =IFERROR(Requirment[[#This Row],[Scenarios_reference]],"") -> Laying Hen_High level 250 to 300 eggs per year_ 2 Feeds_2 | B24: 23 | C24: =IF(COUNTIF($A$2:A24,A24)=1,ROW()-1,"") -> 23 | F24: =IFERROR(Requirment[[#This Row],[Formula_Name]],"") -> Laying | G24: 23 | H24: =IF(COUNTIF($F$2:F24,F24)=1,ROW()-1,"") -> 23
A25: =IFERROR(Requirment[[#This Row],[Scenarios_reference]],"") -> Laying Hen_High level 250 to 300 eggs per year_ 2 Feeds_2 | B25: 24 | C25: =IF(COUNTIF($A$2:A25,A25)=1,ROW()-1,"") ->  | F25: =IFERROR(Requirment[[#This Row],[Formula_Name]],"") -> Starter laying | G25: 24 | H25: =IF(COUNTIF($F$2:F25,F25)=1,ROW()-1,"") -> 24
A26: =IFERROR(Requirment[[#This Row],[Scenarios_reference]],"") -> Laying Hen_High level 250 to 300 eggs per year_ 3 Feeds_2 | B26: 25 | C26: =IF(COUNTIF($A$2:A26,A26)=1,ROW()-1,"") -> 25 | F26: =IFERROR(Requirment[[#This Row],[Formula_Name]],"") -> Laying | G26: 25 | H26: =IF(COUNTIF($F$2:F26,F26)=1,ROW()-1,"") -> 
A27: =IFERROR(Requirment[[#This Row],[Scenarios_reference]],"") -> Laying Hen_High level 250 to 300 eggs per year_ 3 Feeds_2 | B27: 26 | C27: =IF(COUNTIF($A$2:A27,A27)=1,ROW()-1,"") ->  | F27: =IFERROR(Requirment[[#This Row],[Formula_Name]],"") -> Laying | G27: 26 | H27: =IF(COUNTIF($F$2:F27,F27)=1,ROW()-1,"") -> 
A28: =IFERROR(Requirment[[#This Row],[Scenarios_reference]],"") -> Laying Hen_High level 250 to 300 eggs per year_ 3 Feeds_2 | B28: 27 | C28: =IF(COUNTIF($A$2:A28,A28)=1,ROW()-1,"") ->  | F28: =IFERROR(Requirment[[#This Row],[Formula_Name]],"") -> Starter laying | G28: 27 | H28: =IF(COUNTIF($F$2:F28,F28)=1,ROW()-1,"") -> 
A29: =IFERROR(Requirment[[#This Row],[Scenarios_reference]],"") -> Laying Hen_Low level 170 eggs per year_ 2 Feeds_2 | B29: 28 | C29: =IF(COUNTIF($A$2:A29,A29)=1,ROW()-1,"") -> 28 | F29: =IFERROR(Requirment[[#This Row],[Formula_Name]],"") -> Laying | G29: 28 | H29: =IF(COUNTIF($F$2:F29,F29)=1,ROW()-1,"") -> 
A30: =IFERROR(Requirment[[#This Row],[Scenarios_reference]],"") -> Laying Hen_Low level 170 eggs per year_ 2 Feeds_2 | B30: 29 | C30: =IF(COUNTIF($A$2:A30,A30)=1,ROW()-1,"") ->  | F30: =IFERROR(Requirment[[#This Row],[Formula_Name]],"") -> Starter laying | G30: 29 | H30: =IF(COUNTIF($F$2:F30,F30)=1,ROW()-1,"") -> 
A31: =IFERROR(Requirment[[#This Row],[Scenarios_reference]],"") -> Laying hens_One feed ans grains no Min Max_1 | B31: 30 | C31: =IF(COUNTIF($A$2:A31,A31)=1,ROW()-1,"") -> 30 | F31: =IFERROR(Requirment[[#This Row],[Formula_Name]],"") -> Single feed | G31: 30 | H31: =IF(COUNTIF($F$2:F31,F31)=1,ROW()-1,"") -> 
A32: =IFERROR(Requirment[[#This Row],[Scenarios_reference]],"") -> Broiler_Broiler_2.6 kg alive at 98 days_3 feeds_3_Finishing_Red clover silage_3 | B32: 31 | C32: =IF(COUNTIF($A$2:A32,A32)=1,ROW()-1,"") -> 31 | F32: =IFERROR(Requirment[[#This Row],[Formula_Name]],"") -> Finishing | G32: 31 | H32: =IF(COUNTIF($F$2:F32,F32)=1,ROW()-1,"") -> 
A33: =IFERROR(Requirment[[#This Row],[Scenarios_reference]],"") -> __ | B33: 32 | C33: =IF(COUNTIF($A$2:A33,A33)=1,ROW()-1,"") -> 32 | F33: =IFERROR(Requirment[[#This Row],[Formula_Name]],"") -> 0 | G33: 32 | H33: =IF(COUNTIF($F$2:F33,F33)=1,ROW()-1,"") -> 32
A34: =IFERROR(Requirment[[#This Row],[Scenarios_reference]],"") -> __ | B34: 33 | C34: =IF(COUNTIF($A$2:A34,A34)=1,ROW()-1,"") ->  | F34: =IFERROR(Requirment[[#This Row],[Formula_Name]],"") -> 0 | G34: 33 | H34: =IF(COUNTIF($F$2:F34,F34)=1,ROW()-1,"") -> 
A35: =IFERROR(Requirment[[#This Row],[Scenarios_reference]],"") -> __ | B35: 34 | C35: =IF(COUNTIF($A$2:A35,A35)=1,ROW()-1,"") ->  | F35: =IFERROR(Requirment[[#This Row],[Formula_Name]],"") -> 0 | G35: 34 | H35: =IF(COUNTIF($F$2:F35,F35)=1,ROW()-1,"") -> 
A36: =IFERROR(Requirment[[#This Row],[Scenarios_reference]],"") -> __ | B36: 35 | C36: =IF(COUNTIF($A$2:A36,A36)=1,ROW()-1,"") ->  | F36: =IFERROR(Requirment[[#This Row],[Formula_Name]],"") -> 0 | G36: 35 | H36: =IF(COUNTIF($F$2:F36,F36)=1,ROW()-1,"") -> 
A37: =IFERROR(Requirment[[#This Row],[Scenarios_reference]],"") -> __ | B37: 36 | C37: =IF(COUNTIF($A$2:A37,A37)=1,ROW()-1,"") ->  | F37: =IFERROR(Requirment[[#This Row],[Formula_Name]],"") -> 0 | G37: 36 | H37: =IF(COUNTIF($F$2:F37,F37)=1,ROW()-1,"") -> 
A38: =IFERROR(Requirment[[#This Row],[Scenarios_reference]],"") -> __ | B38: 37 | C38: =IF(COUNTIF($A$2:A38,A38)=1,ROW()-1,"") ->  | F38: =IFERROR(Requirment[[#This Row],[Formula_Name]],"") -> 0 | G38: 37 | H38: =IF(COUNTIF($F$2:F38,F38)=1,ROW()-1,"") -> 
A39: =IFERROR(Requirment[[#This Row],[Scenarios_reference]],"") -> __ | B39: 38 | C39: =IF(COUNTIF($A$2:A39,A39)=1,ROW()-1,"") ->  | F39: =IFERROR(Requirment[[#This Row],[Formula_Name]],"") -> 0 | G39: 38 | H39: =IF(COUNTIF($F$2:F39,F39)=1,ROW()-1,"") -> 
A40: =IFERROR(Requirment[[#This Row],[Scenarios_reference]],"") -> __ | B40: 39 | C40: =IF(COUNTIF($A$2:A40,A40)=1,ROW()-1,"") ->  | F40: =IFERROR(Requirment[[#This Row],[Formula_Name]],"") -> 0 | G40: 39 | H40: =IF(COUNTIF($F$2:F40,F40)=1,ROW()-1,"") -> 
A41: =IFERROR(Requirment[[#This Row],[Scenarios_reference]],"") -> __ | B41: 40 | C41: =IF(COUNTIF($A$2:A41,A41)=1,ROW()-1,"") ->  | F41: =IFERROR(Requirment[[#This Row],[Formula_Name]],"") -> 0 | G41: 40 | H41: =IF(COUNTIF($F$2:F41,F41)=1,ROW()-1,"") -> 
A42: =IFERROR(Requirment[[#This Row],[Scenarios_reference]],"") -> __ | B42: 41 | C42: =IF(COUNTIF($A$2:A42,A42)=1,ROW()-1,"") ->  | F42: =IFERROR(Requirment[[#This Row],[Formula_Name]],"") -> 0 | G42: 41 | H42: =IF(COUNTIF($F$2:F42,F42)=1,ROW()-1,"") -> 
A43: =IFERROR(Requirment[[#This Row],[Scenarios_reference]],"") -> __ | B43: 42 | C43: =IF(COUNTIF($A$2:A43,A43)=1,ROW()-1,"") ->  | F43: =IFERROR(Requirment[[#This Row],[Formula_Name]],"") -> 0 | G43: 42 | H43: =IF(COUNTIF($F$2:F43,F43)=1,ROW()-1,"") -> 
A44: =IFERROR(Requirment[[#This Row],[Scenarios_reference]],"") -> __ | B44: 43 | C44: =IF(COUNTIF($A$2:A44,A44)=1,ROW()-1,"") ->  | F44: =IFERROR(Requirment[[#This Row],[Formula_Name]],"") -> 0 | G44: 43 | H44: =IF(COUNTIF($F$2:F44,F44)=1,ROW()-1,"") -> 
A45: =IFERROR(Requirment[[#This Row],[Scenarios_reference]],"") -> __ | B45: 44 | C45: =IF(COUNTIF($A$2:A45,A45)=1,ROW()-1,"") ->  | F45: =IFERROR(Requirment[[#This Row],[Formula_Name]],"") -> 0 | G45: 44 | H45: =IF(COUNTIF($F$2:F45,F45)=1,ROW()-1,"") -> 
A46: =IFERROR(Requirment[[#This Row],[Scenarios_reference]],"") -> __ | B46: 45 | C46: =IF(COUNTIF($A$2:A46,A46)=1,ROW()-1,"") ->  | F46: =IFERROR(Requirment[[#This Row],[Formula_Name]],"") -> 0 | G46: 45 | H46: =IF(COUNTIF($F$2:F46,F46)=1,ROW()-1,"") -> 
A47: =IFERROR(Requirment[[#This Row],[Scenarios_reference]],"") -> __ | B47: 46 | C47: =IF(COUNTIF($A$2:A47,A47)=1,ROW()-1,"") ->  | F47: =IFERROR(Requirment[[#This Row],[Formula_Name]],"") -> 0 | G47: 46 | H47: =IF(COUNTIF($F$2:F47,F47)=1,ROW()-1,"") -> 
A48: =IFERROR(Requirment[[#This Row],[Scenarios_reference]],"") -> __ | B48: 47 | C48: =IF(COUNTIF($A$2:A48,A48)=1,ROW()-1,"") ->  | F48: =IFERROR(Requirment[[#This Row],[Formula_Name]],"") -> 0 | G48: 47 | H48: =IF(COUNTIF($F$2:F48,F48)=1,ROW()-1,"") -> 
A49: =IFERROR(Requirment[[#This Row],[Scenarios_reference]],"") -> __ | B49: 48 | C49: =IF(COUNTIF($A$2:A49,A49)=1,ROW()-1,"") ->  | F49: =IFERROR(Requirment[[#This Row],[Formula_Name]],"") -> 0 | G49: 48 | H49: =IF(COUNTIF($F$2:F49,F49)=1,ROW()-1,"") -> 
A50: =IFERROR(Requirment[[#This Row],[Scenarios_reference]],"") -> __ | B50: 49 | C50: =IF(COUNTIF($A$2:A50,A50)=1,ROW()-1,"") ->  | F50: =IFERROR(Requirment[[#This Row],[Formula_Name]],"") -> 0 | G50: 49 | H50: =IF(COUNTIF($F$2:F50,F50)=1,ROW()-1,"") -> 
A51: =IFERROR(Requirment[[#This Row],[Scenarios_reference]],"") -> __ | B51: 50 | C51: =IF(COUNTIF($A$2:A51,A51)=1,ROW()-1,"") ->  | F51: =IFERROR(Requirment[[#This Row],[Formula_Name]],"") -> 0 | G51: 50 | H51: =IF(COUNTIF($F$2:F51,F51)=1,ROW()-1,"") -> 
A52: =IFERROR(Requirment[[#This Row],[Scenarios_reference]],"") -> __ | B52: 51 | C52: =IF(COUNTIF($A$2:A52,A52)=1,ROW()-1,"") ->  | F52: =IFERROR(Requirment[[#This Row],[Formula_Name]],"") -> 0 | G52: 51 | H52: =IF(COUNTIF($F$2:F52,F52)=1,ROW()-1,"") -> 
A53: =IFERROR(Requirment[[#This Row],[Scenarios_reference]],"") -> __ | B53: 52 | C53: =IF(COUNTIF($A$2:A53,A53)=1,ROW()-1,"") ->  | F53: =IFERROR(Requirment[[#This Row],[Formula_Name]],"") -> 0 | G53: 52 | H53: =IF(COUNTIF($F$2:F53,F53)=1,ROW()-1,"") -> 
A54: =IFERROR(Requirment[[#This Row],[Scenarios_reference]],"") -> __ | B54: 53 | C54: =IF(COUNTIF($A$2:A54,A54)=1,ROW()-1,"") ->  | F54: =IFERROR(Requirment[[#This Row],[Formula_Name]],"") -> 0 | G54: 53 | H54: =IF(COUNTIF($F$2:F54,F54)=1,ROW()-1,"") -> 
A55: =IFERROR(Requirment[[#This Row],[Scenarios_reference]],"") -> __ | B55: 54 | C55: =IF(COUNTIF($A$2:A55,A55)=1,ROW()-1,"") ->  | F55: =IFERROR(Requirment[[#This Row],[Formula_Name]],"") -> 0 | G55: 54 | H55: =IF(COUNTIF($F$2:F55,F55)=1,ROW()-1,"") -> 
A56: =IFERROR(Requirment[[#This Row],[Scenarios_reference]],"") -> __ | B56: 55 | C56: =IF(COUNTIF($A$2:A56,A56)=1,ROW()-1,"") ->  | F56: =IFERROR(Requirment[[#This Row],[Formula_Name]],"") -> 0 | G56: 55 | H56: =IF(COUNTIF($F$2:F56,F56)=1,ROW()-1,"") -> 
A57: =IFERROR(Requirment[[#This Row],[Scenarios_reference]],"") -> __ | B57: 56 | C57: =IF(COUNTIF($A$2:A57,A57)=1,ROW()-1,"") ->  | F57: =IFERROR(Requirment[[#This Row],[Formula_Name]],"") -> 0 | G57: 56 | H57: =IF(COUNTIF($F$2:F57,F57)=1,ROW()-1,"") -> 
A58: =IFERROR(Requirment[[#This Row],[Scenarios_reference]],"") -> __ | B58: 57 | C58: =IF(COUNTIF($A$2:A58,A58)=1,ROW()-1,"") ->  | F58: =IFERROR(Requirment[[#This Row],[Formula_Name]],"") -> 0 | G58: 57 | H58: =IF(COUNTIF($F$2:F58,F58)=1,ROW()-1,"") -> 
A59: =IFERROR(Requirment[[#This Row],[Scenarios_reference]],"") -> __ | B59: 58 | C59: =IF(COUNTIF($A$2:A59,A59)=1,ROW()-1,"") ->  | F59: =IFERROR(Requirment[[#This Row],[Formula_Name]],"") -> 0 | G59: 58 | H59: =IF(COUNTIF($F$2:F59,F59)=1,ROW()-1,"") -> 
A60: =IFERROR(Requirment[[#This Row],[Scenarios_reference]],"") -> __ | B60: 59 | C60: =IF(COUNTIF($A$2:A60,A60)=1,ROW()-1,"") ->  | F60: =IFERROR(Requirment[[#This Row],[Formula_Name]],"") -> 0 | G60: 59 | H60: =IF(COUNTIF($F$2:F60,F60)=1,ROW()-1,"") -> 
A61: =IFERROR(Requirment[[#This Row],[Scenarios_reference]],"") -> __ | B61: 60 | C61: =IF(COUNTIF($A$2:A61,A61)=1,ROW()-1,"") ->  | F61: =IFERROR(Requirment[[#This Row],[Formula_Name]],"") -> 0 | G61: 60 | H61: =IF(COUNTIF($F$2:F61,F61)=1,ROW()-1,"") -> 
A62: =IFERROR(Requirment[[#This Row],[Scenarios_reference]],"") -> __ | B62: 61 | C62: =IF(COUNTIF($A$2:A62,A62)=1,ROW()-1,"") ->  | F62: =IFERROR(Requirment[[#This Row],[Formula_Name]],"") -> 0 | G62: 61 | H62: =IF(COUNTIF($F$2:F62,F62)=1,ROW()-1,"") -> 
A63: =IFERROR(Requirment[[#This Row],[Scenarios_reference]],"") -> __ | B63: 62 | C63: =IF(COUNTIF($A$2:A63,A63)=1,ROW()-1,"") ->  | F63: =IFERROR(Requirment[[#This Row],[Formula_Name]],"") -> 0 | G63: 62 | H63: =IF(COUNTIF($F$2:F63,F63)=1,ROW()-1,"") -> 
A64: =IFERROR(Requirment[[#This Row],[Scenarios_reference]],"") -> __ | B64: 63 | C64: =IF(COUNTIF($A$2:A64,A64)=1,ROW()-1,"") ->  | F64: =IFERROR(Requirment[[#This Row],[Formula_Name]],"") -> 0 | G64: 63 | H64: =IF(COUNTIF($F$2:F64,F64)=1,ROW()-1,"") -> 
A65: =IFERROR(Requirment[[#This Row],[Scenarios_reference]],"") -> __ | B65: 64 | C65: =IF(COUNTIF($A$2:A65,A65)=1,ROW()-1,"") ->  | F65: =IFERROR(Requirment[[#This Row],[Formula_Name]],"") -> 0 | G65: 64 | H65: =IF(COUNTIF($F$2:F65,F65)=1,ROW()-1,"") -> 
A66: =IFERROR(Requirment[[#This Row],[Scenarios_reference]],"") -> __ | B66: 65 | C66: =IF(COUNTIF($A$2:A66,A66)=1,ROW()-1,"") ->  | F66: =IFERROR(Requirment[[#This Row],[Formula_Name]],"") -> 0 | G66: 65 | H66: =IF(COUNTIF($F$2:F66,F66)=1,ROW()-1,"") -> 
A67: =IFERROR(Requirment[[#This Row],[Scenarios_reference]],"") -> __ | B67: =ROW()-1 -> 66 | C67: =IF(COUNTIF($A$2:A67,A67)=1,ROW()-1,"") ->  | D67: =IFERROR(SMALL(C:C,B67),"") ->  | E67: =IFERROR(INDEX($A$2:$A$99,D67),"") ->  | F67: =IFERROR(Requirment[[#This Row],[Formula_Name]],"") -> 0 | G67: =ROW()-1 -> 66 | H67: =IF(COUNTIF($F$2:F67,F67)=1,ROW()-1,"") ->  | I67: =IFERROR(SMALL(H:H,G67),"") ->  | J67: =IFERROR(INDEX($F$2:$F$99,I67),"") -> 
A68: =IFERROR(Requirment[[#This Row],[Scenarios_reference]],"") -> __ | B68: 67 | C68: =IF(COUNTIF($A$2:A68,A68)=1,ROW()-1,"") ->  | F68: =IFERROR(Requirment[[#This Row],[Formula_Name]],"") -> 0 | G68: 67 | H68: =IF(COUNTIF($F$2:F68,F68)=1,ROW()-1,"") -> 
A69: =IFERROR(Requirment[[#This Row],[Scenarios_reference]],"") -> __ | B69: 68 | C69: =IF(COUNTIF($A$2:A69,A69)=1,ROW()-1,"") ->  | F69: =IFERROR(Requirment[[#This Row],[Formula_Name]],"") -> 0 | G69: 68 | H69: =IF(COUNTIF($F$2:F69,F69)=1,ROW()-1,"") -> 
A70: =IFERROR(Requirment[[#This Row],[Scenarios_reference]],"") -> __ | B70: 69 | C70: =IF(COUNTIF($A$2:A70,A70)=1,ROW()-1,"") ->  | F70: =IFERROR(Requirment[[#This Row],[Formula_Name]],"") -> 0 | G70: 69 | H70: =IF(COUNTIF($F$2:F70,F70)=1,ROW()-1,"") -> 
A71: =IFERROR(Requirment[[#This Row],[Scenarios_reference]],"") -> __ | B71: 70 | C71: =IF(COUNTIF($A$2:A71,A71)=1,ROW()-1,"") ->  | F71: =IFERROR(Requirment[[#This Row],[Formula_Name]],"") -> 0 | G71: 70 | H71: =IF(COUNTIF($F$2:F71,F71)=1,ROW()-1,"") -> 
A72: =IFERROR(Requirment[[#This Row],[Scenarios_reference]],"") -> __ | B72: 71 | C72: =IF(COUNTIF($A$2:A72,A72)=1,ROW()-1,"") ->  | F72: =IFERROR(Requirment[[#This Row],[Formula_Name]],"") -> 0 | G72: 71 | H72: =IF(COUNTIF($F$2:F72,F72)=1,ROW()-1,"") -> 
A73: =IFERROR(Requirment[[#This Row],[Scenarios_reference]],"") -> __ | B73: 72 | C73: =IF(COUNTIF($A$2:A73,A73)=1,ROW()-1,"") ->  | F73: =IFERROR(Requirment[[#This Row],[Formula_Name]],"") -> 0 | G73: 72 | H73: =IF(COUNTIF($F$2:F73,F73)=1,ROW()-1,"") -> 
A74: =IFERROR(Requirment[[#This Row],[Scenarios_reference]],"") -> __ | B74: 73 | C74: =IF(COUNTIF($A$2:A74,A74)=1,ROW()-1,"") ->  | F74: =IFERROR(Requirment[[#This Row],[Formula_Name]],"") -> 0 | G74: 73 | H74: =IF(COUNTIF($F$2:F74,F74)=1,ROW()-1,"") -> 
A75: =IFERROR(Requirment[[#This Row],[Scenarios_reference]],"") -> __ | B75: 74 | C75: =IF(COUNTIF($A$2:A75,A75)=1,ROW()-1,"") ->  | F75: =IFERROR(Requirment[[#This Row],[Formula_Name]],"") -> 0 | G75: 74 | H75: =IF(COUNTIF($F$2:F75,F75)=1,ROW()-1,"") -> 
A76: =IFERROR(Requirment[[#This Row],[Scenarios_reference]],"") -> __ | B76: 75 | C76: =IF(COUNTIF($A$2:A76,A76)=1,ROW()-1,"") ->  | F76: =IFERROR(Requirment[[#This Row],[Formula_Name]],"") -> 0 | G76: 75 | H76: =IF(COUNTIF($F$2:F76,F76)=1,ROW()-1,"") -> 
A77: =IFERROR(Requirment[[#This Row],[Scenarios_reference]],"") -> __ | B77: 76 | C77: =IF(COUNTIF($A$2:A77,A77)=1,ROW()-1,"") ->  | F77: =IFERROR(Requirment[[#This Row],[Formula_Name]],"") -> 0 | G77: 76 | H77: =IF(COUNTIF($F$2:F77,F77)=1,ROW()-1,"") -> 
A78: =IFERROR(Requirment[[#This Row],[Scenarios_reference]],"") -> __ | B78: 77 | C78: =IF(COUNTIF($A$2:A78,A78)=1,ROW()-1,"") ->  | F78: =IFERROR(Requirment[[#This Row],[Formula_Name]],"") -> 0 | G78: 77 | H78: =IF(COUNTIF($F$2:F78,F78)=1,ROW()-1,"") -> 
A79: =IFERROR(Requirment[[#This Row],[Scenarios_reference]],"") -> __ | B79: 78 | C79: =IF(COUNTIF($A$2:A79,A79)=1,ROW()-1,"") ->  | F79: =IFERROR(Requirment[[#This Row],[Formula_Name]],"") -> 0 | G79: 78 | H79: =IF(COUNTIF($F$2:F79,F79)=1,ROW()-1,"") -> 
A80: =IFERROR(Requirment[[#This Row],[Scenarios_reference]],"") -> __ | B80: 79 | C80: =IF(COUNTIF($A$2:A80,A80)=1,ROW()-1,"") ->  | F80: =IFERROR(Requirment[[#This Row],[Formula_Name]],"") -> 0 | G80: 79 | H80: =IF(COUNTIF($F$2:F80,F80)=1,ROW()-1,"") -> 
A81: =IFERROR(Requirment[[#This Row],[Scenarios_reference]],"") -> __ | B81: 80 | C81: =IF(COUNTIF($A$2:A81,A81)=1,ROW()-1,"") ->  | F81: =IFERROR(Requirment[[#This Row],[Formula_Name]],"") -> 0 | G81: 80 | H81: =IF(COUNTIF($F$2:F81,F81)=1,ROW()-1,"") -> 
A82: =IFERROR(Requirment[[#This Row],[Scenarios_reference]],"") -> __ | B82: 81 | C82: =IF(COUNTIF($A$2:A82,A82)=1,ROW()-1,"") ->  | F82: =IFERROR(Requirment[[#This Row],[Formula_Name]],"") -> 0 | G82: 81 | H82: =IF(COUNTIF($F$2:F82,F82)=1,ROW()-1,"") -> 
A83: =IFERROR(Requirment[[#This Row],[Scenarios_reference]],"") -> __ | B83: 82 | C83: =IF(COUNTIF($A$2:A83,A83)=1,ROW()-1,"") ->  | F83: =IFERROR(Requirment[[#This Row],[Formula_Name]],"") -> 0 | G83: 82 | H83: =IF(COUNTIF($F$2:F83,F83)=1,ROW()-1,"") -> 
A84: =IFERROR(Requirment[[#This Row],[Scenarios_reference]],"") -> __ | B84: 83 | C84: =IF(COUNTIF($A$2:A84,A84)=1,ROW()-1,"") ->  | F84: =IFERROR(Requirment[[#This Row],[Formula_Name]],"") -> 0 | G84: 83 | H84: =IF(COUNTIF($F$2:F84,F84)=1,ROW()-1,"") -> 
A85: =IFERROR(Requirment[[#This Row],[Scenarios_reference]],"") -> __ | B85: 84 | C85: =IF(COUNTIF($A$2:A85,A85)=1,ROW()-1,"") ->  | F85: =IFERROR(Requirment[[#This Row],[Formula_Name]],"") -> 0 | G85: 84 | H85: =IF(COUNTIF($F$2:F85,F85)=1,ROW()-1,"") -> 
A86: =IFERROR(Requirment[[#This Row],[Scenarios_reference]],"") -> __ | B86: 85 | C86: =IF(COUNTIF($A$2:A86,A86)=1,ROW()-1,"") ->  | F86: =IFERROR(Requirment[[#This Row],[Formula_Name]],"") -> 0 | G86: 85 | H86: =IF(COUNTIF($F$2:F86,F86)=1,ROW()-1,"") -> 
A87: =IFERROR(Requirment[[#This Row],[Scenarios_reference]],"") -> __ | B87: 86 | C87: =IF(COUNTIF($A$2:A87,A87)=1,ROW()-1,"") ->  | F87: =IFERROR(Requirment[[#This Row],[Formula_Name]],"") -> 0 | G87: 86 | H87: =IF(COUNTIF($F$2:F87,F87)=1,ROW()-1,"") -> 
A88: =IFERROR(Requirment[[#This Row],[Scenarios_reference]],"") -> __ | B88: 87 | C88: =IF(COUNTIF($A$2:A88,A88)=1,ROW()-1,"") ->  | F88: =IFERROR(Requirment[[#This Row],[Formula_Name]],"") -> 0 | G88: 87 | H88: =IF(COUNTIF($F$2:F88,F88)=1,ROW()-1,"") -> 
A89: =IFERROR(Requirment[[#This Row],[Scenarios_reference]],"") -> __ | B89: 88 | C89: =IF(COUNTIF($A$2:A89,A89)=1,ROW()-1,"") ->  | F89: =IFERROR(Requirment[[#This Row],[Formula_Name]],"") -> 0 | G89: 88 | H89: =IF(COUNTIF($F$2:F89,F89)=1,ROW()-1,"") -> 
A90: =IFERROR(Requirment[[#This Row],[Scenarios_reference]],"") -> __ | B90: 89 | C90: =IF(COUNTIF($A$2:A90,A90)=1,ROW()-1,"") ->  | F90: =IFERROR(Requirment[[#This Row],[Formula_Name]],"") -> 0 | G90: 89 | H90: =IF(COUNTIF($F$2:F90,F90)=1,ROW()-1,"") -> 
A91: =IFERROR(Requirment[[#This Row],[Scenarios_reference]],"") -> __ | B91: 90 | C91: =IF(COUNTIF($A$2:A91,A91)=1,ROW()-1,"") ->  | F91: =IFERROR(Requirment[[#This Row],[Formula_Name]],"") -> 0 | G91: 90 | H91: =IF(COUNTIF($F$2:F91,F91)=1,ROW()-1,"") -> 
A92: =IFERROR(Requirment[[#This Row],[Scenarios_reference]],"") -> __ | B92: 91 | C92: =IF(COUNTIF($A$2:A92,A92)=1,ROW()-1,"") ->  | F92: =IFERROR(Requirment[[#This Row],[Formula_Name]],"") -> 0 | G92: 91 | H92: =IF(COUNTIF($F$2:F92,F92)=1,ROW()-1,"") -> 
A93: =IFERROR(Requirment[[#This Row],[Scenarios_reference]],"") -> __ | B93: 92 | C93: =IF(COUNTIF($A$2:A93,A93)=1,ROW()-1,"") ->  | F93: =IFERROR(Requirment[[#This Row],[Formula_Name]],"") -> 0 | G93: 92 | H93: =IF(COUNTIF($F$2:F93,F93)=1,ROW()-1,"") -> 
A94: =IFERROR(Requirment[[#This Row],[Scenarios_reference]],"") -> __ | B94: 93 | C94: =IF(COUNTIF($A$2:A94,A94)=1,ROW()-1,"") ->  | F94: =IFERROR(Requirment[[#This Row],[Formula_Name]],"") -> 0 | G94: 93 | H94: =IF(COUNTIF($F$2:F94,F94)=1,ROW()-1,"") -> 
A95: =IFERROR(Requirment[[#This Row],[Scenarios_reference]],"") -> __ | B95: 94 | C95: =IF(COUNTIF($A$2:A95,A95)=1,ROW()-1,"") ->  | F95: =IFERROR(Requirment[[#This Row],[Formula_Name]],"") -> 0 | G95: 94 | H95: =IF(COUNTIF($F$2:F95,F95)=1,ROW()-1,"") -> 
A96: =IFERROR(Requirment[[#This Row],[Scenarios_reference]],"") -> __ | B96: 95 | C96: =IF(COUNTIF($A$2:A96,A96)=1,ROW()-1,"") ->  | F96: =IFERROR(Requirment[[#This Row],[Formula_Name]],"") -> 0 | G96: 95 | H96: =IF(COUNTIF($F$2:F96,F96)=1,ROW()-1,"") -> 
A97: =IFERROR(Requirment[[#This Row],[Scenarios_reference]],"") -> __ | B97: 96 | C97: =IF(COUNTIF($A$2:A97,A97)=1,ROW()-1,"") ->  | F97: =IFERROR(Requirment[[#This Row],[Formula_Name]],"") -> 0 | G97: 96 | H97: =IF(COUNTIF($F$2:F97,F97)=1,ROW()-1,"") -> 
A98: =IFERROR(Requirment[[#This Row],[Scenarios_reference]],"") -> __ | B98: 97 | C98: =IF(COUNTIF($A$2:A98,A98)=1,ROW()-1,"") ->  | F98: =IFERROR(Requirment[[#This Row],[Formula_Name]],"") -> 0 | G98: 97 | H98: =IF(COUNTIF($F$2:F98,F98)=1,ROW()-1,"") -> 
A99: =IFERROR(Requirment[[#This Row],[Scenarios_reference]],"") -> __ | B99: 98 | C99: =IF(COUNTIF($A$2:A99,A99)=1,ROW()-1,"") ->  | F99: =IFERROR(Requirment[[#This Row],[Formula_Name]],"") -> 0 | G99: 98 | H99: =IF(COUNTIF($F$2:F99,F99)=1,ROW()-1,"") -> 
A100: =IFERROR(Requirment[[#This Row],[Scenarios_reference]],"") -> __ | B100: 99 | C100: =IF(COUNTIF($A$2:A100,A100)=1,ROW()-1,"") ->  | F100: =IFERROR(Requirment[[#This Row],[Formula_Name]],"") -> 0 | G100: 99 | H100: =IF(COUNTIF($F$2:F100,F100)=1,ROW()-1,"") -> 

Sheet About

Sheet References
